Body Name,Body,Service Label,Service Code,CIPFA Detailed Expenditure Type,CIPFA Detailed Expenditure Code,Date,Transaction Number,Net Amount,Supplier Name
Nottinghamshire County Council,1111/1001,Surplus or Deficit from Trading Undertak,TRADING,Supplies & Services,DDA,08/05/2013,02-10001,600.54,Xerox Office Supplies
Nottinghamshire County Council,1111/1001,Surplus or Deficit from Trading Undertak,TRADING,Supplies & Services,DDA,17/05/2013,02-10001,13356,Xerox Office Supplies
Nottinghamshire County Council,1111/1001,Surplus or Deficit from Trading Undertak,TRADING,Supplies & Services,DDA,30/05/2013,02-10001,1788,Premier Paper Group Ltd
Nottinghamshire County Council,1111/1001,Surplus or Deficit from Trading Undertak,TRADING,Supplies & Services,DDA,21/05/2013,02-10001,622.8,Heritage Envelopes Ltd
Nottinghamshire County Council,1111/1001,Surplus or Deficit from Trading Undertak,TRADING,Supplies & Services,DDA,30/05/2013,02-10001,1470.6,Talk Paper
Nottinghamshire County Council,1111/1001,Surplus or Deficit from Trading Undertak,TRADING,Supplies & Services,DDA,10/05/2013,02-10001,1366.2,Antalis
Nottinghamshire County Council,1111/1001,Surplus or Deficit from Trading Undertak,TRADING,Supplies & Services,DDA,17/05/2013,02-10001,747.68,Plastoreg Smidt Gmbh
Nottinghamshire County Council,1111/1001,Surplus or Deficit from Trading Undertak,TRADING,Supplies & Services,DDA,23/05/2013,02-10001,715.8,Henkel Loctite Adhesives Ltd
Nottinghamshire County Council,1111/1001,Surplus or Deficit from Trading Undertak,TRADING,Supplies & Services,DDA,23/05/2013,02-10001,805.8,Henkel Loctite Adhesives Ltd
Nottinghamshire County Council,1111/1001,Surplus or Deficit from Trading Undertak,TRADING,Supplies & Services,DDA,30/05/2013,02-10001,5115.2,Henkel Loctite Adhesives Ltd
Nottinghamshire County Council,1111/1001,Surplus or Deficit from Trading Undertak,TRADING,Supplies & Services,DAA,02/05/2013,02-10001,500.91,Robinsons Healthcare Ltd
Nottinghamshire County Council,1111/1001,Surplus or Deficit from Trading Undertak,TRADING,Supplies & Services,DAA,17/05/2013,02-10001,511.42,Snopake Ltd
Nottinghamshire County Council,1111/1001,Surplus or Deficit from Trading Undertak,TRADING,Supplies & Services,DAA,23/05/2013,02-10001,513.92,Snopake Ltd
Nottinghamshire County Council,1111/1001,Surplus or Deficit from Trading Undertak,TRADING,Supplies & Services,DAA,10/05/2013,02-10001,653.8,Pc World Business
Nottinghamshire County Council,1111/1001,Surplus or Deficit from Trading Undertak,TRADING,Supplies & Services,DAA,15/05/2013,02-10001,709.8,Vivid Laminating Technologies Ltd
Nottinghamshire County Council,1111/1001,Surplus or Deficit from Trading Undertak,TRADING,Supplies & Services,DAA,02/05/2013,02-10001,600.06,Qc Supplies Ltd
Nottinghamshire County Council,1111/1001,Surplus or Deficit from Trading Undertak,TRADING,Supplies & Services,DAA,02/05/2013,02-10001,2103.57,Qc Supplies Ltd
Nottinghamshire County Council,1111/1001,Surplus or Deficit from Trading Undertak,TRADING,Supplies & Services,DAA,08/05/2013,02-10001,708.52,Qc Supplies Ltd
Nottinghamshire County Council,1111/1001,Surplus or Deficit from Trading Undertak,TRADING,Supplies & Services,DAA,08/05/2013,02-10001,654.58,Qc Supplies Ltd
Nottinghamshire County Council,1111/1001,Surplus or Deficit from Trading Undertak,TRADING,Supplies & Services,DAA,10/05/2013,02-10001,675,Qc Supplies Ltd
Nottinghamshire County Council,1111/1001,Surplus or Deficit from Trading Undertak,TRADING,Supplies & Services,DAA,15/05/2013,02-10001,1514.64,Qc Supplies Ltd
Nottinghamshire County Council,1111/1001,Surplus or Deficit from Trading Undertak,TRADING,Supplies & Services,DAA,15/05/2013,02-10001,533.44,Qc Supplies Ltd
Nottinghamshire County Council,1111/1001,Surplus or Deficit from Trading Undertak,TRADING,Supplies & Services,DAA,21/05/2013,02-10001,1206.53,Qc Supplies Ltd
Nottinghamshire County Council,1111/1001,Surplus or Deficit from Trading Undertak,TRADING,Supplies & Services,DAA,21/05/2013,02-10001,566.04,Qc Supplies Ltd
Nottinghamshire County Council,1111/1001,Surplus or Deficit from Trading Undertak,TRADING,Supplies & Services,DAA,21/05/2013,02-10001,742.51,Qc Supplies Ltd
Nottinghamshire County Council,1111/1001,Surplus or Deficit from Trading Undertak,TRADING,Supplies & Services,DAA,23/05/2013,02-10001,1123.66,Qc Supplies Ltd
Nottinghamshire County Council,1111/1001,Surplus or Deficit from Trading Undertak,TRADING,Supplies & Services,DAA,23/05/2013,02-10001,2129.82,Qc Supplies Ltd
Nottinghamshire County Council,1111/1001,Surplus or Deficit from Trading Undertak,TRADING,Supplies & Services,DAA,08/05/2013,02-10001,634.22,Datapac
Nottinghamshire County Council,1111/1001,Surplus or Deficit from Trading Undertak,TRADING,Premises Related,BAA,08/05/2013,02-10001,554.35,Avery Dennison Office Products Uk Ltd
Nottinghamshire County Council,1111/1001,Surplus or Deficit from Trading Undertak,TRADING,Premises Related,BAA,15/05/2013,02-10001,704.72,Avery Dennison Office Products Uk Ltd
Nottinghamshire County Council,1111/1001,Surplus or Deficit from Trading Undertak,TRADING,Premises Related,BJA,15/05/2013,02-10001,1411.2,Polystar Plastics Ltd
Nottinghamshire County Council,1111/1001,Surplus or Deficit from Trading Undertak,TRADING,Premises Related,BJA,17/05/2013,02-10001,879.06,Polystar Plastics Ltd
Nottinghamshire County Council,1111/1001,Surplus or Deficit from Trading Undertak,TRADING,Premises Related,BJA,31/05/2013,02-10001,705.6,Polystar Plastics Ltd
Nottinghamshire County Council,1111/1001,Surplus or Deficit from Trading Undertak,TRADING,Premises Related,BJA,31/05/2013,02-10001,1632.54,Polystar Plastics Ltd
Nottinghamshire County Council,1111/1001,Surplus or Deficit from Trading Undertak,TRADING,Premises Related,BJA,31/05/2013,02-10001,2715.96,Polystar Plastics Ltd
Nottinghamshire County Council,1111/1001,Surplus or Deficit from Trading Undertak,TRADING,Premises Related,BJA,31/05/2013,02-10001,1317.12,Polystar Plastics Ltd
Nottinghamshire County Council,1111/1001,Surplus or Deficit from Trading Undertak,TRADING,Premises Related,BJA,31/05/2013,02-10001,705.6,Polystar Plastics Ltd
Nottinghamshire County Council,1111/1001,Surplus or Deficit from Trading Undertak,TRADING,Premises Related,BJA,10/05/2013,02-10001,1222.5,Kimberley Clark European Services Ltd
Nottinghamshire County Council,1111/1001,Surplus or Deficit from Trading Undertak,TRADING,Premises Related,BJA,21/05/2013,02-10001,929.7,Kimberley Clark European Services Ltd
Nottinghamshire County Council,1111/1001,Surplus or Deficit from Trading Undertak,TRADING,Premises Related,BJA,21/05/2013,02-10001,731.52,Kimberley Clark European Services Ltd
Nottinghamshire County Council,1111/1001,Surplus or Deficit from Trading Undertak,TRADING,Premises Related,BJA,02/05/2013,02-10001,917,Leafield Environmental Ltd
Nottinghamshire County Council,1111/1001,Surplus or Deficit from Trading Undertak,TRADING,Premises Related,BJA,10/05/2013,02-10001,557.7,Leafield Environmental Ltd
Nottinghamshire County Council,1111/1001,Surplus or Deficit from Trading Undertak,TRADING,Premises Related,BJA,30/05/2013,02-10001,536.2,Leafield Environmental Ltd
Nottinghamshire County Council,1111/1001,Surplus or Deficit from Trading Undertak,TRADING,Premises Related,BJA,02/05/2013,02-10001,1455.4,Cromwell Polythene Ltd
Nottinghamshire County Council,1111/1001,Surplus or Deficit from Trading Undertak,TRADING,Premises Related,BJA,21/05/2013,02-10001,570,Cromwell Polythene Ltd
Nottinghamshire County Council,1111/1001,Surplus or Deficit from Trading Undertak,TRADING,Premises Related,BJA,17/05/2013,02-10001,664.56,3M (United Kingdom) Plc
Nottinghamshire County Council,1111/1001,Surplus or Deficit from Trading Undertak,TRADING,Premises Related,BJA,08/05/2013,02-10001,642.96,Evans Vanodine International Ltd
Nottinghamshire County Council,1111/1001,Surplus or Deficit from Trading Undertak,TRADING,Premises Related,BJA,15/05/2013,02-10001,767.55,Evans Vanodine International Ltd
Nottinghamshire County Council,1111/1001,Surplus or Deficit from Trading Undertak,TRADING,Premises Related,BJA,15/05/2013,02-10001,1780.76,Johnson Diversey
Nottinghamshire County Council,1111/1001,Surplus or Deficit from Trading Undertak,TRADING,Premises Related,BJA,21/05/2013,02-10001,2707.45,Johnson Diversey
Nottinghamshire County Council,1111/1001,Surplus or Deficit from Trading Undertak,TRADING,Premises Related,BJA,02/05/2013,02-10001,1830,Premiere Products
Nottinghamshire County Council,1111/1001,Surplus or Deficit from Trading Undertak,TRADING,Premises Related,BJA,17/05/2013,02-10001,8789.02,Premiere Products
Nottinghamshire County Council,1111/1001,Surplus or Deficit from Trading Undertak,TRADING,Premises Related,BJA,17/05/2013,02-10001,3968.16,Premiere Products
Nottinghamshire County Council,1111/1001,Surplus or Deficit from Trading Undertak,TRADING,Premises Related,BJA,17/05/2013,02-10001,578.97,Premiere Products
Nottinghamshire County Council,1111/1001,Surplus or Deficit from Trading Undertak,TRADING,Premises Related,BJA,31/05/2013,02-10001,768,Premiere Products
Nottinghamshire County Council,1111/1001,Surplus or Deficit from Trading Undertak,TRADING,Premises Related,BJA,31/05/2013,02-10001,859.42,Premiere Products
Nottinghamshire County Council,1111/1001,Surplus or Deficit from Trading Undertak,TRADING,Premises Related,BJA,15/05/2013,02-10001,1130.43,Scot Young Research
Nottinghamshire County Council,1111/1001,Surplus or Deficit from Trading Undertak,TRADING,Premises Related,BJA,10/05/2013,02-10001,738.87,Numatic International Ltd
Nottinghamshire County Council,1111/1001,Surplus or Deficit from Trading Undertak,TRADING,Premises Related,BJA,21/05/2013,02-10001,640,Candor Services
Nottinghamshire County Council,1111/1001,Surplus or Deficit from Trading Undertak,TRADING,Supplies & Services,DAA,08/05/2013,02-10001,530.1,Brakes Catering Equipment
Nottinghamshire County Council,1111/1001,Surplus or Deficit from Trading Undertak,TRADING,Supplies & Services,DAA,02/05/2013,02-10001,1482.55,Disposable Supplies
Nottinghamshire County Council,1111/1001,Surplus or Deficit from Trading Undertak,TRADING,Supplies & Services,DAA,21/05/2013,02-10001,1075,Britin Uk Ltd
Nottinghamshire County Council,1111/1001,Surplus or Deficit from Trading Undertak,TRADING,Supplies & Services,DAA,21/05/2013,02-10001,620,Britin Uk Ltd
Nottinghamshire County Council,1111/1001,Surplus or Deficit from Trading Undertak,TRADING,Supplies & Services,DAA,30/05/2013,02-10001,3290,Britin Uk Ltd
Nottinghamshire County Council,1111/1001,Surplus or Deficit from Trading Undertak,TRADING,Supplies & Services,DAA,21/05/2013,02-10001,877.53,W V Howe (Hardware) Ltd
Nottinghamshire County Council,1111/1001,Surplus or Deficit from Trading Undertak,TRADING,Supplies & Services,DAA,30/05/2013,02-10001,1689.8,Catering Supplies (Wakefield) Ltd
Nottinghamshire County Council,1111/1001,Surplus or Deficit from Trading Undertak,TRADING,Supplies & Services,DAA,30/05/2013,02-10001,696.4,Catering Supplies (Wakefield) Ltd
Nottinghamshire County Council,1111/1001,Surplus or Deficit from Trading Undertak,TRADING,Supplies & Services,DAA,02/05/2013,02-10001,3106.58,Sca Hygiene
Nottinghamshire County Council,1111/1001,Surplus or Deficit from Trading Undertak,TRADING,Supplies & Services,DAA,10/05/2013,02-10001,6621,Sca Hygiene
Nottinghamshire County Council,1111/1001,Surplus or Deficit from Trading Undertak,TRADING,Supplies & Services,DAA,17/05/2013,02-10001,12272.15,Sca Hygiene
Nottinghamshire County Council,1111/1001,Surplus or Deficit from Trading Undertak,TRADING,Supplies & Services,DAA,23/05/2013,02-10001,8474.4,Sca Hygiene
Nottinghamshire County Council,1111/1001,Surplus or Deficit from Trading Undertak,TRADING,Supplies & Services,DBA,08/05/2013,02-10001,621.96,North West Tea Service Ltd
Nottinghamshire County Council,1111/1001,Surplus or Deficit from Trading Undertak,TRADING,Supplies & Services,DAA,21/05/2013,02-10001,980,Stearn Electric Company Ltd
Nottinghamshire County Council,1111/1001,Surplus or Deficit from Trading Undertak,TRADING,Supplies & Services,DCA,17/05/2013,02-10001,1326.7,Freudenberg Household Products Lp
Nottinghamshire County Council,1111/1001,Surplus or Deficit from Trading Undertak,TRADING,Supplies & Services,DCA,21/05/2013,02-10001,843.4,Freudenberg Household Products Lp
Nottinghamshire County Council,1111/1001,Surplus or Deficit from Trading Undertak,TRADING,Supplies & Services,DCA,30/05/2013,02-10001,800,Freudenberg Household Products Lp
Nottinghamshire County Council,1111/1001,Surplus or Deficit from Trading Undertak,TRADING,Supplies & Services,DCA,10/05/2013,02-10001,545.7,Shermond
Nottinghamshire County Council,1111/1001,Surplus or Deficit from Trading Undertak,TRADING,Supplies & Services,DCA,15/05/2013,02-10001,702.8,Shermond
Nottinghamshire County Council,1111/1001,Surplus or Deficit from Trading Undertak,TRADING,Supplies & Services,DCA,23/05/2013,02-10001,2358.07,Shermond
Nottinghamshire County Council,1111/1001,Surplus or Deficit from Trading Undertak,TRADING,Supplies & Services,DKA,10/05/2013,02-10001,760.6,Bunzl Cleaning & Hygiene Supplies
Nottinghamshire County Council,1111/1001,Surplus or Deficit from Trading Undertak,TRADING,Supplies & Services,DKA,15/05/2013,02-10001,614.4,Bunzl Cleaning & Hygiene Supplies
Nottinghamshire County Council,1111/1001,Surplus or Deficit from Trading Undertak,TRADING,Supplies & Services,DKA,21/05/2013,02-10001,2067.72,Bunzl Cleaning & Hygiene Supplies
Nottinghamshire County Council,1111/1001,Surplus or Deficit from Trading Undertak,TRADING,Supplies & Services,DKA,30/05/2013,02-10001,968.46,Bunzl Cleaning & Hygiene Supplies
Nottinghamshire County Council,1111/1001,Surplus or Deficit from Trading Undertak,TRADING,Supplies & Services,DKA,30/05/2013,02-10001,760.6,Bunzl Cleaning & Hygiene Supplies
Nottinghamshire County Council,1111/1001,Surplus or Deficit from Trading Undertak,TRADING,Supplies & Services,DAA,21/05/2013,02-10001,1875.5,R Scott & Sons Ltd
Nottinghamshire County Council,1111/1001,Surplus or Deficit from Trading Undertak,TRADING,Supplies & Services,DAA,21/05/2013,02-10001,4833.45,R Scott & Sons Ltd
Nottinghamshire County Council,1111/1001,Surplus or Deficit from Trading Undertak,TRADING,Supplies & Services,DAA,31/05/2013,02-10001,3928.4,R Scott & Sons Ltd
Nottinghamshire County Council,1111/1001,Surplus or Deficit from Trading Undertak,TRADING,Supplies & Services,DAA,31/05/2013,02-10001,954.5,R Scott & Sons Ltd
Nottinghamshire County Council,1111/1001,Surplus or Deficit from Trading Undertak,TRADING,Supplies & Services,DAA,24/05/2013,02-10001,589.8,Office Innovations
Nottinghamshire County Council,1111/1001,Surplus or Deficit from Trading Undertak,TRADING,Supplies & Services,DAA,21/05/2013,02-10001,583,Principal Furniture
Nottinghamshire County Council,1111/1001,Surplus or Deficit from Trading Undertak,TRADING,Supplies & Services,DAA,30/05/2013,02-10001,1224.8,Insight
Nottinghamshire County Council,1111/1001,Surplus or Deficit from Trading Undertak,TRADING,Supplies & Services,DAA,23/05/2013,02-10001,533.16,"Triumph, Tbs (South Wales) Ltd"
Nottinghamshire County Council,1111/1001,Surplus or Deficit from Trading Undertak,TRADING,Supplies & Services,DAA,07/05/2013,02-10001,2144,Welding Capacity Ltd
Nottinghamshire County Council,1111/1001,Surplus or Deficit from Trading Undertak,TRADING,Supplies & Services,DAA,08/05/2013,02-10001,2990,Titan Furniture (Uk) Ltd
Nottinghamshire County Council,1111/1001,Surplus or Deficit from Trading Undertak,TRADING,Supplies & Services,DAA,10/05/2013,02-10001,543,Aquila Business Products
Nottinghamshire County Council,1111/1001,Surplus or Deficit from Trading Undertak,TRADING,Supplies & Services,DAA,30/05/2013,02-10001,1574.44,R2 Solutions Ltd
Nottinghamshire County Council,1111/1001,Surplus or Deficit from Trading Undertak,TRADING,Supplies & Services,DAA,21/05/2013,02-10001,616,Efg Office Furniture Ltd
Nottinghamshire County Council,1111/1001,Surplus or Deficit from Trading Undertak,TRADING,Supplies & Services,DAA,23/05/2013,02-10001,1127.34,Efg Office Furniture Ltd
Nottinghamshire County Council,1111/1001,Surplus or Deficit from Trading Undertak,TRADING,Supplies & Services,DAA,08/05/2013,02-10001,2019.08,Gopak Ltd
Nottinghamshire County Council,1111/1001,Surplus or Deficit from Trading Undertak,TRADING,Supplies & Services,DAA,08/05/2013,02-10001,2475,Lockhart Catering Eqipment Ltd
Nottinghamshire County Council,1111/1001,Surplus or Deficit from Trading Undertak,TRADING,Supplies & Services,DAA,31/05/2013,02-10001,592.49,Primo Play Ltd
Nottinghamshire County Council,1111/1001,Surplus or Deficit from Trading Undertak,TRADING,Supplies & Services,DAA,07/05/2013,02-10001,1534,Capita Business Services Ltd
Nottinghamshire County Council,1111/1001,Surplus or Deficit from Trading Undertak,TRADING,Supplies & Services,DAA,08/05/2013,02-10001,6957.34,Eastpoint
Nottinghamshire County Council,1111/1001,Surplus or Deficit from Trading Undertak,TRADING,Supplies & Services,DAA,08/05/2013,02-10001,745.9,Eastpoint
Nottinghamshire County Council,1111/1001,Surplus or Deficit from Trading Undertak,TRADING,Supplies & Services,DAA,08/05/2013,02-10001,517.54,Eastpoint
Nottinghamshire County Council,1111/1001,Surplus or Deficit from Trading Undertak,TRADING,Supplies & Services,DAA,08/05/2013,02-10001,1635.18,Eastpoint
Nottinghamshire County Council,1111/1001,Surplus or Deficit from Trading Undertak,TRADING,Supplies & Services,DAA,30/05/2013,02-10001,556,Eastpoint
Nottinghamshire County Council,1111/1001,Surplus or Deficit from Trading Undertak,TRADING,Supplies & Services,DAA,08/05/2013,02-10001,607,Spaceright Europe Ltd
Nottinghamshire County Council,1111/1001,Surplus or Deficit from Trading Undertak,TRADING,Supplies & Services,DDA,21/05/2013,02-10001,710.3,Craftpacks
Nottinghamshire County Council,1111/1001,Surplus or Deficit from Trading Undertak,TRADING,Supplies & Services,DDA,15/05/2013,02-10001,1495.74,Newell Rubbermaid
Nottinghamshire County Council,1111/1001,Surplus or Deficit from Trading Undertak,TRADING,Supplies & Services,DDA,17/05/2013,02-10001,693,Newell Rubbermaid
Nottinghamshire County Council,1111/1001,Surplus or Deficit from Trading Undertak,TRADING,Supplies & Services,DDA,21/05/2013,02-10001,1708.16,Newell Rubbermaid
Nottinghamshire County Council,1111/1001,Surplus or Deficit from Trading Undertak,TRADING,Supplies & Services,DDA,15/05/2013,02-10001,620.15,Newclay Products Ltd
Nottinghamshire County Council,1111/1001,Surplus or Deficit from Trading Undertak,TRADING,Supplies & Services,DDA,15/05/2013,02-10001,661.3,Scolaquip Ltd
Nottinghamshire County Council,1111/1001,Surplus or Deficit from Trading Undertak,TRADING,Supplies & Services,DDA,30/05/2013,02-10001,6103.11,Staedtler (Uk) Ltd
Nottinghamshire County Council,1111/1001,Surplus or Deficit from Trading Undertak,TRADING,Supplies & Services,DDA,23/05/2013,02-10001,667.12,Rapesco Office Products Plc
Nottinghamshire County Council,1111/1001,Surplus or Deficit from Trading Undertak,TRADING,Supplies & Services,DDA,17/05/2013,02-10001,2152.36,Higher Kings Mill Ltd
Nottinghamshire County Council,1111/1001,Surplus or Deficit from Trading Undertak,TRADING,Supplies & Services,DDA,23/05/2013,02-10001,537.68,Higher Kings Mill Ltd
Nottinghamshire County Council,1111/1001,Surplus or Deficit from Trading Undertak,TRADING,Supplies & Services,DDA,17/05/2013,02-10001,1051.86,Exaclair Limited
Nottinghamshire County Council,1111/1001,Surplus or Deficit from Trading Undertak,TRADING,Supplies & Services,DDA,08/05/2013,02-10001,647.28,Creativity International Ltd
Nottinghamshire County Council,1111/1001,Surplus or Deficit from Trading Undertak,TRADING,Supplies & Services,DDA,08/05/2013,02-10001,527.45,Creativity International Ltd
Nottinghamshire County Council,1111/1001,Surplus or Deficit from Trading Undertak,TRADING,Supplies & Services,DDA,15/05/2013,02-10001,857.05,Creativity International Ltd
Nottinghamshire County Council,1111/1001,Surplus or Deficit from Trading Undertak,TRADING,Supplies & Services,DDA,10/05/2013,02-10001,649.01,Bright Ideas Marketing Ltd
Nottinghamshire County Council,1111/1001,Surplus or Deficit from Trading Undertak,TRADING,Supplies & Services,DAA,30/05/2013,02-10001,686.4,William Sinclair Horticulture Ltd
Nottinghamshire County Council,1111/1001,Surplus or Deficit from Trading Undertak,TRADING,Supplies & Services,DAA,21/05/2013,02-10001,533.01,Brian Clegg (Educational Products) Ltd
Nottinghamshire County Council,1111/1001,Surplus or Deficit from Trading Undertak,TRADING,Supplies & Services,DAA,31/05/2013,02-10001,714.46,Brian Clegg (Educational Products) Ltd
Nottinghamshire County Council,1111/1001,Surplus or Deficit from Trading Undertak,TRADING,Supplies & Services,DAA,10/05/2013,02-10001,575.72,Witzig'S Ltd
Nottinghamshire County Council,1111/1001,Surplus or Deficit from Trading Undertak,TRADING,Supplies & Services,DAA,17/05/2013,02-10001,794.84,Monarch Computer Furniture
Nottinghamshire County Council,1111/1001,Surplus or Deficit from Trading Undertak,TRADING,Supplies & Services,DAA,21/05/2013,02-10001,792.91,Monarch Computer Furniture
Nottinghamshire County Council,1111/1001,Surplus or Deficit from Trading Undertak,TRADING,Supplies & Services,DAA,21/05/2013,02-10001,557.56,Cicada Educational Equipment Ltd
Nottinghamshire County Council,1111/1001,Surplus or Deficit from Trading Undertak,TRADING,Supplies & Services,DAA,13/05/2013,02-10001,831.6,Langley Mechanical Services Ltd
Nottinghamshire County Council,1111/1001,Surplus or Deficit from Trading Undertak,TRADING,Supplies & Services,DAA,21/05/2013,02-10001,6856,Langley Mechanical Services Ltd
Nottinghamshire County Council,1111/1001,Surplus or Deficit from Trading Undertak,TRADING,Supplies & Services,DFA,21/05/2013,02-10001,900,Advanced Chorus Application Software Ltd
Nottinghamshire County Council,1111/1001,Surplus or Deficit from Trading Undertak,TRADING,Supplies & Services,DFA,21/05/2013,02-10001,1800,Advanced Chorus Application Software Ltd
Nottinghamshire County Council,1111/1001,Surplus or Deficit from Trading Undertak,TRADING,Supplies & Services,DFA,21/05/2013,02-10001,3834,Advanced Chorus Application Software Ltd
Nottinghamshire County Council,1111/1001,Surplus or Deficit from Trading Undertak,TRADING,Premises Related,BDA,13/05/2013,02-10001,714.63,Mge Partners
Nottinghamshire County Council,1111/1001,Surplus or Deficit from Trading Undertak,TRADING,Employee Related,AAA,07/05/2013,02-10001,1321.78,Frontline Recruitment Ltd
Nottinghamshire County Council,1111/1001,Surplus or Deficit from Trading Undertak,TRADING,Employee Related,AAA,07/05/2013,02-10001,1297.47,Frontline Recruitment Ltd
Nottinghamshire County Council,1111/1001,Surplus or Deficit from Trading Undertak,TRADING,Employee Related,AAA,21/05/2013,02-10001,1490.78,Frontline Recruitment Ltd
Nottinghamshire County Council,1111/1001,Surplus or Deficit from Trading Undertak,TRADING,Employee Related,AAA,24/05/2013,02-10001,1223.46,Frontline Recruitment Ltd
Nottinghamshire County Council,1111/1001,Children and Young People,CYP,Premises Related,BAA,28/05/2013,12-14532,5200,Kingsforth Security Fencing Limited
Nottinghamshire County Council,1111/1001,Children and Young People,CYP,Premises Related,BDA,28/05/2013,12-14527,2910.24,Mansfield Dist Leisure Trust c/o Se
Nottinghamshire County Council,1111/1001,Children and Young People,CYP,Premises Related,BFA,09/05/2013,12-10358,1542.3,Parkwood Leisure Ltd
Nottinghamshire County Council,1111/1001,Children and Young People,CYP,Transport Related,CCA,15/05/2013,12-10579,1178.88,Johnson Bros Tours Ltd
Nottinghamshire County Council,1111/1001,Children and Young People,CYP,Transport Related,CCA,15/05/2013,12-10622,1176.33,BN Gibson Ltd
Nottinghamshire County Council,1111/1001,Children and Young People,CYP,Transport Related,CCA,15/05/2013,12-10623,1407.03,BN Gibson Ltd
Nottinghamshire County Council,1111/1001,Children and Young People,CYP,Transport Related,CCA,15/05/2013,12-10630,1022,P & P Taxis
Nottinghamshire County Council,1111/1001,Children and Young People,CYP,Supplies & Services,DAA,15/05/2013,12-10657,2052.39,Transform Schools
Nottinghamshire County Council,1111/1001,Children and Young People,CYP,Supplies & Services,DBA,07/05/2013,12-10111,163.17,Arnold Dairies Ltd
Nottinghamshire County Council,1111/1001,Children and Young People,CYP,Supplies & Services,DBA,07/05/2013,12-10113,637.57,Brake Bros Ltd
Nottinghamshire County Council,1111/1001,Children and Young People,CYP,Supplies & Services,DBA,07/05/2013,12-10114,491.03,Brake Bros Ltd
Nottinghamshire County Council,1111/1001,Children and Young People,CYP,Supplies & Services,DBA,22/05/2013,12-13961,210.32,M Maloney Country Butchers & B Ltd
Nottinghamshire County Council,1111/1001,Children and Young People,CYP,Supplies & Services,DBA,22/05/2013,12-13962,318.52,M Maloney Country Butchers & B Ltd
Nottinghamshire County Council,1111/1001,Children and Young People,CYP,Supplies & Services,DBA,24/05/2013,12-14100,170.05,Arnold Dairies Ltd
Nottinghamshire County Council,1111/1001,Children and Young People,CYP,Supplies & Services,DBA,24/05/2013,12-14102,224.56,Brake Bros Ltd
Nottinghamshire County Council,1111/1001,Children and Young People,CYP,Supplies & Services,DBA,24/05/2013,12-14103,426.68,Brake Bros Ltd
Nottinghamshire County Council,1111/1001,Children and Young People,CYP,Supplies & Services,DBA,24/05/2013,12-14104,461.39,Brake Bros Ltd
Nottinghamshire County Council,1111/1001,Children and Young People,CYP,Supplies & Services,DBA,28/05/2013,12-14120,311.29,Brake Bros Ltd
Nottinghamshire County Council,1111/1001,Children and Young People,CYP,Supplies & Services,DBA,29/05/2013,12-14364,533.6,Brake Bros Ltd
Nottinghamshire County Council,1111/1001,Children and Young People,CYP,Supplies & Services,DBA,29/05/2013,12-14365,803.48,Brake Bros Ltd
Nottinghamshire County Council,1111/1001,Children and Young People,CYP,Supplies & Services,DBA,29/05/2013,12-14367,204.41,Brake Bros Ltd
Nottinghamshire County Council,1111/1001,Children and Young People,CYP,Supplies & Services,DBA,29/05/2013,12-14368,159.03,Brake Bros Ltd
Nottinghamshire County Council,1111/1001,Children and Young People,CYP,Supplies & Services,DBA,30/05/2013,12-14469,155.1,Arnold Dairies Ltd
Nottinghamshire County Council,1111/1001,Children and Young People,CYP,Supplies & Services,DEA,29/05/2013,12-14382,6449.63,Orchestras Live
Nottinghamshire County Council,1111/1001,Children and Young People,CYP,Supplies & Services,DFA,01/05/2013,12-10017,6.95,PC Werth Ltd
Nottinghamshire County Council,1111/1001,Children and Young People,CYP,Supplies & Services,DFA,02/05/2013,12-10096,500.15,Lantec Services Ltd
Nottinghamshire County Council,1111/1001,Children and Young People,CYP,Supplies & Services,DFA,07/05/2013,12-10267,578.52,Lantec Services Ltd
Nottinghamshire County Council,1111/1001,Children and Young People,CYP,Supplies & Services,DHA,24/05/2013,12-14105,6600,Brotherwood Automobility Ltd
Nottinghamshire County Council,1111/1001,Children and Young People,CYP,Supplies & Services,DKA,02/05/2013,12-10092,2000,Ash Lea School
Nottinghamshire County Council,1111/1001,Children and Young People,CYP,Supplies & Services,DKA,02/05/2013,12-10093,4640,Ash Lea School
Nottinghamshire County Council,1111/1001,Children and Young People,CYP,Supplies & Services,DKA,02/05/2013,12-10094,7500,Ash Lea School
Nottinghamshire County Council,1111/1001,Children and Young People,CYP,Supplies & Services,DKA,02/05/2013,12-10095,9184,Ash Lea School
Nottinghamshire County Council,1111/1001,Children and Young People,CYP,Supplies & Services,DKA,07/05/2013,12-10108,1246,Leverton C Of E Academy
Nottinghamshire County Council,1111/1001,Children and Young People,CYP,Supplies & Services,DKA,07/05/2013,12-10109,2492,Holgate School
Nottinghamshire County Council,1111/1001,Children and Young People,CYP,Supplies & Services,DKA,07/05/2013,12-10117,4975,Muskham Primary School
Nottinghamshire County Council,1111/1001,Children and Young People,CYP,Supplies & Services,DKA,07/05/2013,12-10271,1052.08,Midland Hotel
Nottinghamshire County Council,1111/1001,Children and Young People,CYP,Supplies & Services,DKA,09/05/2013,12-10365,10000,Right 2 B Me
Nottinghamshire County Council,1111/1001,Children and Young People,CYP,Supplies & Services,DKA,20/05/2013,12-10775,15806.15,Brookside Primary School
Nottinghamshire County Council,1111/1001,Children and Young People,CYP,Supplies & Services,DKA,23/05/2013,12-14523,1920,Horizon Social Housing Ltd
Nottinghamshire County Council,1111/1001,Children and Young People,CYP,Supplies & Services,DKA,23/05/2013,12-14524,1500,Horizon Social Housing Ltd
Nottinghamshire County Council,1111/1001,Children and Young People,CYP,Third Party Payments,EBA,28/05/2013,12-14541,63459.6,Family Action
Nottinghamshire County Council,1111/1001,Children and Young People,CYP,Third Party Payments,EFA,01/05/2013,12-10011,9495.5,C Jamison
Nottinghamshire County Council,1111/1001,Children and Young People,CYP,Third Party Payments,EGA,07/05/2013,12-10120,972.7,Alphabet House Day Nursery
Nottinghamshire County Council,1111/1001,Children and Young People,CYP,Third Party Payments,EGA,07/05/2013,12-10268,15500,Halliwell Homes
Nottinghamshire County Council,1111/1001,Children and Young People,CYP,Third Party Payments,EGA,07/05/2013,12-10269,2815.8,Parallel Parents
Nottinghamshire County Council,1111/1001,Children and Young People,CYP,Third Party Payments,EGA,07/05/2013,12-10270,16117,Wings Education Ltd
Nottinghamshire County Council,1111/1001,Children and Young People,CYP,Third Party Payments,EGA,14/05/2013,12-10535,694.79,Cherubs Day Nursery Executive House
Nottinghamshire County Council,1111/1001,Children and Young People,CYP,Third Party Payments,EGA,14/05/2013,12-10536,2084.37,Pretty Windows Ltd
Nottinghamshire County Council,1111/1001,Children and Young People,CYP,Third Party Payments,EGA,14/05/2013,12-10537,694.79,Daisies Day Nursery
Nottinghamshire County Council,1111/1001,Children and Young People,CYP,Third Party Payments,EGA,14/05/2013,12-10538,694.79,Noahs Ark Playgroup
Nottinghamshire County Council,1111/1001,Children and Young People,CYP,Third Party Payments,EGA,16/05/2013,12-10747,694.79,Carnarvon Pre-School
Nottinghamshire County Council,1111/1001,Children and Young People,CYP,Third Party Payments,EGA,16/05/2013,12-10748,694.79,J A Thorpe
Nottinghamshire County Council,1111/1001,Children and Young People,CYP,Third Party Payments,EGA,16/05/2013,12-10749,3605.78,Early Years Playgroup
Nottinghamshire County Council,1111/1001,Children and Young People,CYP,Third Party Payments,EGA,21/05/2013,12-10821,2408.6,North Notts College
Nottinghamshire County Council,1111/1001,Children and Young People,CYP,Third Party Payments,EGA,21/05/2013,12-10822,4168.74,Granby House Nursery
Nottinghamshire County Council,1111/1001,Children and Young People,CYP,Third Party Payments,EGA,22/05/2013,12-14511,3423.95,Five Rivers Child Care Ltd
Nottinghamshire County Council,1111/1001,Children and Young People,CYP,Third Party Payments,EGA,23/05/2013,12-14083,926.38,Young Rascals Day Nursery
Nottinghamshire County Council,1111/1001,Children and Young People,CYP,Third Party Payments,EGA,23/05/2013,12-14084,1977.48,Arnold House Day Nursery
Nottinghamshire County Council,1111/1001,Children and Young People,CYP,Third Party Payments,EGA,23/05/2013,12-14086,694.79,North Muskham Playgroup
Nottinghamshire County Council,1111/1001,Children and Young People,CYP,Third Party Payments,EGA,23/05/2013,12-14525,98800.15,Core Assets Fostering Limited
Nottinghamshire County Council,1111/1001,Children and Young People,CYP,Third Party Payments,EGA,29/05/2013,12-14369,1647,Portland College
Nottinghamshire County Council,1111/1001,Children and Young People,CYP,Third Party Payments,EGA,29/05/2013,12-14370,5739.33,Treehouse Care Fostering Solutions
Nottinghamshire County Council,1111/1001,Children and Young People,CYP,Third Party Payments,EGA,29/05/2013,12-14548,11514.33,Prestige Adolescent Care & Educatio
Nottinghamshire County Council,1111/1001,Children and Young People,CYP,Third Party Payments,EGA,29/05/2013,12-14552,55714.29,Turnaround
Nottinghamshire County Council,1111/1001,Children and Young People,CYP,Third Party Payments,EGA,29/05/2013,12-14553,9720,Turnaround
Nottinghamshire County Council,1111/1001,Children and Young People,CYP,Third Party Payments,EGA,30/05/2013,12-14560,10100.71,Turnaround
Nottinghamshire County Council,1111/1001,Children and Young People,CYP,Third Party Payments,EHA,31/05/2013,12-14567,300000,Faith In Families
Nottinghamshire County Council,1111/1001,Children and Young People,CYP,Support Services,HAA,15/05/2013,12-10635,528,P & P Taxis
Nottinghamshire County Council,1111/1001,Children and Young People,CYP,Support Services,HAA,21/05/2013,12-10800,3208.72,Stagecoach Services Ltd
Nottinghamshire County Council,1111/1001,Children and Young People,CYP,Support Services,HAA,21/05/2013,12-10804,722.14,Stagecoach Services Ltd
Nottinghamshire County Council,1111/1001,Children and Young People,CYP,Support Services,HAA,21/05/2013,12-10805,2726.58,Stagecoach Services Ltd
Nottinghamshire County Council,1111/1001,Children and Young People,CYP,Support Services,HAA,21/05/2013,12-10806,2737.48,Stagecoach Services Ltd
Nottinghamshire County Council,1111/1001,Children and Young People,CYP,Support Services,HAA,21/05/2013,12-10807,1680,Travel Wright Ltd
Nottinghamshire County Council,1111/1001,Adult Social Care and Health,ASCH,Premises Related,BAA,21/05/2013,12-13958,538.5,Elf Property Care
Nottinghamshire County Council,1111/1001,Adult Social Care and Health,ASCH,Premises Related,BCA,24/05/2013,12-14119,759.5,Forever Fuels Ltd
Nottinghamshire County Council,1111/1001,Adult Social Care and Health,ASCH,Premises Related,BGA,30/05/2013,12-14556,1027.3,Dawson Rentals Portable Cold Storag
Nottinghamshire County Council,1111/1001,Adult Social Care and Health,ASCH,Transport Related,CBA,15/05/2013,12-10573,669.4,A Line Taxis
Nottinghamshire County Council,1111/1001,Adult Social Care and Health,ASCH,Transport Related,CBA,15/05/2013,12-10614,3408.51,Mct Uk Ltd
Nottinghamshire County Council,1111/1001,Adult Social Care and Health,ASCH,Transport Related,CCA,13/05/2013,12-10523,1144,Srcl Ltd
Nottinghamshire County Council,1111/1001,Adult Social Care and Health,ASCH,Transport Related,CCA,13/05/2013,12-10524,1184.4,Srcl Ltd
Nottinghamshire County Council,1111/1001,Adult Social Care and Health,ASCH,Transport Related,CCA,13/05/2013,12-10525,1386,Srcl Ltd
Nottinghamshire County Council,1111/1001,Adult Social Care and Health,ASCH,Transport Related,CCA,13/05/2013,12-10526,1188.6,Srcl Ltd
Nottinghamshire County Council,1111/1001,Adult Social Care and Health,ASCH,Transport Related,CCA,13/05/2013,12-10527,1785,Srcl Ltd
Nottinghamshire County Council,1111/1001,Adult Social Care and Health,ASCH,Transport Related,CCA,15/05/2013,12-10616,1251.12,Sprays Transport Ltd
Nottinghamshire County Council,1111/1001,Adult Social Care and Health,ASCH,Transport Related,CCA,15/05/2013,12-10617,634.28,Sprays Transport Ltd
Nottinghamshire County Council,1111/1001,Adult Social Care and Health,ASCH,Transport Related,CCA,15/05/2013,12-10618,1329.36,Sprays Transport Ltd
Nottinghamshire County Council,1111/1001,Adult Social Care and Health,ASCH,Transport Related,CCA,15/05/2013,12-10643,2100,T Selfe
Nottinghamshire County Council,1111/1001,Adult Social Care and Health,ASCH,Supplies & Services,DBA,07/05/2013,12-10111,1415.55,Arnold Dairies Ltd
Nottinghamshire County Council,1111/1001,Adult Social Care and Health,ASCH,Supplies & Services,DBA,07/05/2013,12-10112,947.5,Brake Bros Ltd
Nottinghamshire County Council,1111/1001,Adult Social Care and Health,ASCH,Supplies & Services,DBA,07/05/2013,12-10113,191.47,Brake Bros Ltd
Nottinghamshire County Council,1111/1001,Adult Social Care and Health,ASCH,Supplies & Services,DBA,07/05/2013,12-10114,249.57,Brake Bros Ltd
Nottinghamshire County Council,1111/1001,Adult Social Care and Health,ASCH,Supplies & Services,DBA,22/05/2013,12-13961,5169.12,M Maloney Country Butchers & B Ltd
Nottinghamshire County Council,1111/1001,Adult Social Care and Health,ASCH,Supplies & Services,DBA,22/05/2013,12-13962,2528.83,M Maloney Country Butchers & B Ltd
Nottinghamshire County Council,1111/1001,Adult Social Care and Health,ASCH,Supplies & Services,DBA,24/05/2013,12-14100,1431.75,Arnold Dairies Ltd
Nottinghamshire County Council,1111/1001,Adult Social Care and Health,ASCH,Supplies & Services,DBA,24/05/2013,12-14101,938.12,Brake Bros Ltd
Nottinghamshire County Council,1111/1001,Adult Social Care and Health,ASCH,Supplies & Services,DBA,24/05/2013,12-14102,179.3,Brake Bros Ltd
Nottinghamshire County Council,1111/1001,Adult Social Care and Health,ASCH,Supplies & Services,DBA,24/05/2013,12-14103,1532.36,Brake Bros Ltd
Nottinghamshire County Council,1111/1001,Adult Social Care and Health,ASCH,Supplies & Services,DBA,24/05/2013,12-14104,2571.29,Brake Bros Ltd
Nottinghamshire County Council,1111/1001,Adult Social Care and Health,ASCH,Supplies & Services,DBA,28/05/2013,12-14120,349.39,Brake Bros Ltd
Nottinghamshire County Council,1111/1001,Adult Social Care and Health,ASCH,Supplies & Services,DBA,29/05/2013,12-14363,736.4,Brake Bros Ltd
Nottinghamshire County Council,1111/1001,Adult Social Care and Health,ASCH,Supplies & Services,DBA,29/05/2013,12-14364,304.23,Brake Bros Ltd
Nottinghamshire County Council,1111/1001,Adult Social Care and Health,ASCH,Supplies & Services,DBA,29/05/2013,12-14365,3617.54,Brake Bros Ltd
Nottinghamshire County Council,1111/1001,Adult Social Care and Health,ASCH,Supplies & Services,DBA,29/05/2013,12-14366,603.77,Brake Bros Ltd
Nottinghamshire County Council,1111/1001,Adult Social Care and Health,ASCH,Supplies & Services,DBA,29/05/2013,12-14367,85.61,Brake Bros Ltd
Nottinghamshire County Council,1111/1001,Adult Social Care and Health,ASCH,Supplies & Services,DBA,29/05/2013,12-14368,1698.58,Brake Bros Ltd
Nottinghamshire County Council,1111/1001,Adult Social Care and Health,ASCH,Supplies & Services,DBA,30/05/2013,12-14469,1238.87,Arnold Dairies Ltd
Nottinghamshire County Council,1111/1001,Adult Social Care and Health,ASCH,Supplies & Services,DBA,30/05/2013,12-14555,596.26,Mkg Food Products Ltd
Nottinghamshire County Council,1111/1001,Adult Social Care and Health,ASCH,Supplies & Services,DEA,03/05/2013,12-10107,1939.52,Eden Supported Living Ltd
Nottinghamshire County Council,1111/1001,Adult Social Care and Health,ASCH,Third Party Payments,ECA,07/05/2013,12-10126,512.44,Spring Water Lodge
Nottinghamshire County Council,1111/1001,Adult Social Care and Health,ASCH,Third Party Payments,ECA,07/05/2013,12-10128,1024.89,Oaks Care Centre
Nottinghamshire County Council,1111/1001,Adult Social Care and Health,ASCH,Third Party Payments,ECA,07/05/2013,12-10136,667.73,Berry Hill Park
Nottinghamshire County Council,1111/1001,Adult Social Care and Health,ASCH,Third Party Payments,ECA,07/05/2013,12-10137,729.84,Berry Hill Park
Nottinghamshire County Council,1111/1001,Adult Social Care and Health,ASCH,Third Party Payments,ECA,07/05/2013,12-10140,419.27,Countrywide Care Homes Ltd T/A Clum
Nottinghamshire County Council,1111/1001,Adult Social Care and Health,ASCH,Third Party Payments,ECA,07/05/2013,12-10141,760.9,Countrywide Care Homes Ltd T/A Clum
Nottinghamshire County Council,1111/1001,Adult Social Care and Health,ASCH,Third Party Payments,ECA,07/05/2013,12-10142,1506.27,Countrywide Care Homes Ltd T/A Clum
Nottinghamshire County Council,1111/1001,Adult Social Care and Health,ASCH,Third Party Payments,ECA,07/05/2013,12-10143,1273.34,Countrywide Care Homes Ltd T/A Clum
Nottinghamshire County Council,1111/1001,Adult Social Care and Health,ASCH,Third Party Payments,ECA,07/05/2013,12-10144,729.84,Countrywide Care Homes Ltd T/A Clum
Nottinghamshire County Council,1111/1001,Adult Social Care and Health,ASCH,Third Party Payments,ECA,07/05/2013,12-10146,698.79,Landermeads Nursing Home
Nottinghamshire County Council,1111/1001,Adult Social Care and Health,ASCH,Third Party Payments,ECA,07/05/2013,12-10150,791.96,Burkitt Care Home
Nottinghamshire County Council,1111/1001,Adult Social Care and Health,ASCH,Third Party Payments,ECA,07/05/2013,12-10152,1242.29,Countrywide Care Homes Ltd T/A Gate
Nottinghamshire County Council,1111/1001,Adult Social Care and Health,ASCH,Third Party Payments,ECA,07/05/2013,12-10154,869.6,Wren Hall Nursing Home
Nottinghamshire County Council,1111/1001,Adult Social Care and Health,ASCH,Third Party Payments,ECA,07/05/2013,12-10155,869.6,Wren Hall Nursing Home
Nottinghamshire County Council,1111/1001,Adult Social Care and Health,ASCH,Third Party Payments,ECA,07/05/2013,12-10156,869.6,Wren Hall Nursing Home
Nottinghamshire County Council,1111/1001,Adult Social Care and Health,ASCH,Third Party Payments,ECA,07/05/2013,12-10157,869.6,Wren Hall Nursing Home
Nottinghamshire County Council,1111/1001,Adult Social Care and Health,ASCH,Third Party Payments,ECA,07/05/2013,12-10158,869.6,Wren Hall Nursing Home
Nottinghamshire County Council,1111/1001,Adult Social Care and Health,ASCH,Third Party Payments,ECA,07/05/2013,12-10160,869.6,Wren Hall Nursing Home
Nottinghamshire County Council,1111/1001,Adult Social Care and Health,ASCH,Third Party Payments,ECA,07/05/2013,12-10162,869.6,Wren Hall Nursing Home
Nottinghamshire County Council,1111/1001,Adult Social Care and Health,ASCH,Third Party Payments,ECA,07/05/2013,12-10163,869.6,Wren Hall Nursing Home
Nottinghamshire County Council,1111/1001,Adult Social Care and Health,ASCH,Third Party Payments,ECA,07/05/2013,12-10164,869.6,Wren Hall Nursing Home
Nottinghamshire County Council,1111/1001,Adult Social Care and Health,ASCH,Third Party Payments,ECA,07/05/2013,12-10165,869.6,Wren Hall Nursing Home
Nottinghamshire County Council,1111/1001,Adult Social Care and Health,ASCH,Third Party Payments,ECA,07/05/2013,12-10166,869.6,Wren Hall Nursing Home
Nottinghamshire County Council,1111/1001,Adult Social Care and Health,ASCH,Third Party Payments,ECA,07/05/2013,12-10167,869.6,Wren Hall Nursing Home
Nottinghamshire County Council,1111/1001,Adult Social Care and Health,ASCH,Third Party Payments,ECA,07/05/2013,12-10168,869.6,Wren Hall Nursing Home
Nottinghamshire County Council,1111/1001,Adult Social Care and Health,ASCH,Third Party Payments,ECA,07/05/2013,12-10169,869.6,Wren Hall Nursing Home
Nottinghamshire County Council,1111/1001,Adult Social Care and Health,ASCH,Third Party Payments,ECA,07/05/2013,12-10170,869.6,Wren Hall Nursing Home
Nottinghamshire County Council,1111/1001,Adult Social Care and Health,ASCH,Third Party Payments,ECA,07/05/2013,12-10171,869.59,Wren Hall Nursing Home
Nottinghamshire County Council,1111/1001,Adult Social Care and Health,ASCH,Third Party Payments,ECA,07/05/2013,12-10172,869.6,Wren Hall Nursing Home
Nottinghamshire County Council,1111/1001,Adult Social Care and Health,ASCH,Third Party Payments,ECA,07/05/2013,12-10173,869.6,Wren Hall Nursing Home
Nottinghamshire County Council,1111/1001,Adult Social Care and Health,ASCH,Third Party Payments,ECA,07/05/2013,12-10174,869.6,Wren Hall Nursing Home
Nottinghamshire County Council,1111/1001,Adult Social Care and Health,ASCH,Third Party Payments,ECA,07/05/2013,12-10175,869.6,Wren Hall Nursing Home
Nottinghamshire County Council,1111/1001,Adult Social Care and Health,ASCH,Third Party Payments,ECA,07/05/2013,12-10180,1180.17,Hazel Grove Nursing Home
Nottinghamshire County Council,1111/1001,Adult Social Care and Health,ASCH,Third Party Payments,ECA,07/05/2013,12-10187,434.8,Eton Park Nursing Home
Nottinghamshire County Council,1111/1001,Adult Social Care and Health,ASCH,Third Party Payments,ECA,07/05/2013,12-10189,434.8,Eton Park Nursing Home
Nottinghamshire County Council,1111/1001,Adult Social Care and Health,ASCH,Third Party Payments,ECA,07/05/2013,12-10190,434.8,Eton Park Nursing Home
Nottinghamshire County Council,1111/1001,Adult Social Care and Health,ASCH,Third Party Payments,ECA,07/05/2013,12-10191,434.8,Eton Park Nursing Home
Nottinghamshire County Council,1111/1001,Adult Social Care and Health,ASCH,Third Party Payments,ECA,07/05/2013,12-10192,434.8,Eton Park Nursing Home
Nottinghamshire County Council,1111/1001,Adult Social Care and Health,ASCH,Third Party Payments,ECA,07/05/2013,12-10193,434.8,Eton Park Nursing Home
Nottinghamshire County Council,1111/1001,Adult Social Care and Health,ASCH,Third Party Payments,ECA,07/05/2013,12-10194,434.8,Eton Park Nursing Home
Nottinghamshire County Council,1111/1001,Adult Social Care and Health,ASCH,Third Party Payments,ECA,07/05/2013,12-10197,1382.04,Mansfield Manor Care Home
Nottinghamshire County Council,1111/1001,Adult Social Care and Health,ASCH,Third Party Payments,ECA,07/05/2013,12-10214,714.31,Cherry Holt Care Home
Nottinghamshire County Council,1111/1001,Adult Social Care and Health,ASCH,Third Party Payments,ECA,07/05/2013,12-10223,217.4,Carlton House Nursing Home
Nottinghamshire County Council,1111/1001,Adult Social Care and Health,ASCH,Third Party Payments,ECA,07/05/2013,12-10265,201.87,Jubilee Court Nursing Home
Nottinghamshire County Council,1111/1001,Adult Social Care and Health,ASCH,Third Party Payments,ECA,13/05/2013,12-10456,512.44,Countrywide Care Homes Ltd T/A Clum
Nottinghamshire County Council,1111/1001,Adult Social Care and Health,ASCH,Third Party Payments,ECA,13/05/2013,12-10461,313.69,Aslockton Hall Nursing Home
Nottinghamshire County Council,1111/1001,Adult Social Care and Health,ASCH,Third Party Payments,ECA,13/05/2013,12-10463,1475.21,Burkitt Care Home
Nottinghamshire County Council,1111/1001,Adult Social Care and Health,ASCH,Third Party Payments,ECA,13/05/2013,12-10465,217.4,Wren Hall Nursing Home
Nottinghamshire County Council,1111/1001,Adult Social Care and Health,ASCH,Third Party Payments,ECA,13/05/2013,12-10466,823.01,Haddon House
Nottinghamshire County Council,1111/1001,Adult Social Care and Health,ASCH,Third Party Payments,ECA,13/05/2013,12-10474,376.42,Eagle Nursing Home
Nottinghamshire County Council,1111/1001,Adult Social Care and Health,ASCH,Third Party Payments,ECA,13/05/2013,12-10476,170.81,Balmore Country House
Nottinghamshire County Council,1111/1001,Adult Social Care and Health,ASCH,Third Party Payments,ECA,13/05/2013,12-10486,652.2,Stoke House Nursing Home
Nottinghamshire County Council,1111/1001,Adult Social Care and Health,ASCH,Third Party Payments,ECA,13/05/2013,12-10491,295.04,Parkside Care Home
Nottinghamshire County Council,1111/1001,Adult Social Care and Health,ASCH,Third Party Payments,ECA,13/05/2013,12-10515,108.7,Jubilee Court Nursing Home
Nottinghamshire County Council,1111/1001,Adult Social Care and Health,ASCH,Third Party Payments,ECA,13/05/2013,12-10516,403.74,Jubilee Court Nursing Home
Nottinghamshire County Council,1111/1001,Adult Social Care and Health,ASCH,Third Party Payments,ECA,21/05/2013,12-10833,445.7,Bramcote Hills Care Home
Nottinghamshire County Council,1111/1001,Adult Social Care and Health,ASCH,Third Party Payments,ECA,21/05/2013,12-10839,445.7,Bramcote Hills Care Home
Nottinghamshire County Council,1111/1001,Adult Social Care and Health,ASCH,Third Party Payments,ECA,21/05/2013,12-10841,445.7,Bramcote Hills Care Home
Nottinghamshire County Council,1111/1001,Adult Social Care and Health,ASCH,Third Party Payments,ECA,21/05/2013,12-10842,445.7,Bramcote Hills Care Home
Nottinghamshire County Council,1111/1001,Adult Social Care and Health,ASCH,Third Party Payments,ECA,21/05/2013,12-10843,445.7,Bramcote Hills Care Home
Nottinghamshire County Council,1111/1001,Adult Social Care and Health,ASCH,Third Party Payments,ECA,21/05/2013,12-10857,445.7,The Grange Nursing Home
Nottinghamshire County Council,1111/1001,Adult Social Care and Health,ASCH,Third Party Payments,ECA,21/05/2013,12-10859,445.7,The Grange Nursing Home
Nottinghamshire County Council,1111/1001,Adult Social Care and Health,ASCH,Third Party Payments,ECA,21/05/2013,12-10861,445.7,The Grange Nursing Home
Nottinghamshire County Council,1111/1001,Adult Social Care and Health,ASCH,Third Party Payments,ECA,21/05/2013,12-10862,445.7,The Grange Nursing Home
Nottinghamshire County Council,1111/1001,Adult Social Care and Health,ASCH,Third Party Payments,ECA,21/05/2013,12-10863,445.7,The Grange Nursing Home
Nottinghamshire County Council,1111/1001,Adult Social Care and Health,ASCH,Third Party Payments,ECA,21/05/2013,12-10864,445.7,The Grange Nursing Home
Nottinghamshire County Council,1111/1001,Adult Social Care and Health,ASCH,Third Party Payments,ECA,21/05/2013,12-10896,445.7,Belle Vue
Nottinghamshire County Council,1111/1001,Adult Social Care and Health,ASCH,Third Party Payments,ECA,21/05/2013,12-10897,445.7,Belle Vue
Nottinghamshire County Council,1111/1001,Adult Social Care and Health,ASCH,Third Party Payments,ECA,21/05/2013,12-10898,-652.2,Belle Vue
Nottinghamshire County Council,1111/1001,Adult Social Care and Health,ASCH,Third Party Payments,ECA,21/05/2013,12-10900,-652.2,Belle Vue
Nottinghamshire County Council,1111/1001,Adult Social Care and Health,ASCH,Third Party Payments,ECA,21/05/2013,12-10902,445.7,Belle Vue
Nottinghamshire County Council,1111/1001,Adult Social Care and Health,ASCH,Third Party Payments,ECA,21/05/2013,12-10903,445.7,Belle Vue
Nottinghamshire County Council,1111/1001,Adult Social Care and Health,ASCH,Third Party Payments,ECA,21/05/2013,12-10904,445.7,Belle Vue
Nottinghamshire County Council,1111/1001,Adult Social Care and Health,ASCH,Third Party Payments,ECA,21/05/2013,12-10905,-652.2,Belle Vue
Nottinghamshire County Council,1111/1001,Adult Social Care and Health,ASCH,Third Party Payments,ECA,21/05/2013,12-10908,-652.2,Belle Vue
Nottinghamshire County Council,1111/1001,Adult Social Care and Health,ASCH,Third Party Payments,ECA,21/05/2013,12-10914,445.7,Ashcroft
Nottinghamshire County Council,1111/1001,Adult Social Care and Health,ASCH,Third Party Payments,ECA,21/05/2013,12-10915,445.7,Ashcroft
Nottinghamshire County Council,1111/1001,Adult Social Care and Health,ASCH,Third Party Payments,ECA,21/05/2013,12-10916,445.7,Ashcroft
Nottinghamshire County Council,1111/1001,Adult Social Care and Health,ASCH,Third Party Payments,ECA,21/05/2013,12-10917,445.7,Ashcroft
Nottinghamshire County Council,1111/1001,Adult Social Care and Health,ASCH,Third Party Payments,ECA,21/05/2013,12-10920,445.7,Ashcroft
Nottinghamshire County Council,1111/1001,Adult Social Care and Health,ASCH,Third Party Payments,ECA,21/05/2013,12-10921,445.7,Ashcroft
Nottinghamshire County Council,1111/1001,Adult Social Care and Health,ASCH,Third Party Payments,ECA,21/05/2013,12-10923,445.7,Ashcroft
Nottinghamshire County Council,1111/1001,Adult Social Care and Health,ASCH,Third Party Payments,ECA,21/05/2013,12-10924,445.7,Ashcroft
Nottinghamshire County Council,1111/1001,Adult Social Care and Health,ASCH,Third Party Payments,ECA,21/05/2013,12-10925,445.7,Ashcroft
Nottinghamshire County Council,1111/1001,Adult Social Care and Health,ASCH,Third Party Payments,ECA,21/05/2013,12-10926,445.7,Ashcroft
Nottinghamshire County Council,1111/1001,Adult Social Care and Health,ASCH,Third Party Payments,ECA,21/05/2013,12-10936,445.7,Ashcroft
Nottinghamshire County Council,1111/1001,Adult Social Care and Health,ASCH,Third Party Payments,ECA,21/05/2013,12-10938,445.7,Kingsthorpe View Nursing Home
Nottinghamshire County Council,1111/1001,Adult Social Care and Health,ASCH,Third Party Payments,ECA,21/05/2013,12-10939,445.7,Kingsthorpe View Nursing Home
Nottinghamshire County Council,1111/1001,Adult Social Care and Health,ASCH,Third Party Payments,ECA,21/05/2013,12-10940,445.7,Kingsthorpe View Nursing Home
Nottinghamshire County Council,1111/1001,Adult Social Care and Health,ASCH,Third Party Payments,ECA,21/05/2013,12-10942,445.7,Kingsthorpe View Nursing Home
Nottinghamshire County Council,1111/1001,Adult Social Care and Health,ASCH,Third Party Payments,ECA,21/05/2013,12-10943,445.7,Kingsthorpe View Nursing Home
Nottinghamshire County Council,1111/1001,Adult Social Care and Health,ASCH,Third Party Payments,ECA,21/05/2013,12-10949,445.7,HC1 Ltd Re. Oaklands (Whaley Thorns
Nottinghamshire County Council,1111/1001,Adult Social Care and Health,ASCH,Third Party Payments,ECA,21/05/2013,12-10953,445.7,Beauvale Nursing Home
Nottinghamshire County Council,1111/1001,Adult Social Care and Health,ASCH,Third Party Payments,ECA,21/05/2013,12-10955,481.39,Beauvale Nursing Home
Nottinghamshire County Council,1111/1001,Adult Social Care and Health,ASCH,Third Party Payments,ECA,21/05/2013,12-10956,445.7,Beauvale Nursing Home
Nottinghamshire County Council,1111/1001,Adult Social Care and Health,ASCH,Third Party Payments,ECA,21/05/2013,12-10958,445.7,Beauvale Nursing Home
Nottinghamshire County Council,1111/1001,Adult Social Care and Health,ASCH,Third Party Payments,ECA,21/05/2013,12-10962,445.7,Beauvale Nursing Home
Nottinghamshire County Council,1111/1001,Adult Social Care and Health,ASCH,Third Party Payments,ECA,21/05/2013,12-10963,235.26,Beauvale Nursing Home
Nottinghamshire County Council,1111/1001,Adult Social Care and Health,ASCH,Third Party Payments,ECA,21/05/2013,12-10964,445.7,Beauvale Nursing Home
Nottinghamshire County Council,1111/1001,Adult Social Care and Health,ASCH,Third Party Payments,ECA,21/05/2013,12-10965,445.7,Beauvale Nursing Home
Nottinghamshire County Council,1111/1001,Adult Social Care and Health,ASCH,Third Party Payments,ECA,21/05/2013,12-10978,445.7,Avalon Nursing Home
Nottinghamshire County Council,1111/1001,Adult Social Care and Health,ASCH,Third Party Payments,ECA,21/05/2013,12-10979,445.7,Avalon Nursing Home
Nottinghamshire County Council,1111/1001,Adult Social Care and Health,ASCH,Third Party Payments,ECA,21/05/2013,12-10981,445.7,Avalon Nursing Home
Nottinghamshire County Council,1111/1001,Adult Social Care and Health,ASCH,Third Party Payments,ECA,21/05/2013,12-10984,445.7,Avalon Nursing Home
Nottinghamshire County Council,1111/1001,Adult Social Care and Health,ASCH,Third Party Payments,ECA,21/05/2013,12-10985,445.7,Avalon Nursing Home
Nottinghamshire County Council,1111/1001,Adult Social Care and Health,ASCH,Third Party Payments,ECA,21/05/2013,12-10986,445.7,Avalon Nursing Home
Nottinghamshire County Council,1111/1001,Adult Social Care and Health,ASCH,Third Party Payments,ECA,21/05/2013,12-10988,445.7,Avalon Nursing Home
Nottinghamshire County Council,1111/1001,Adult Social Care and Health,ASCH,Third Party Payments,ECA,21/05/2013,12-10989,445.7,Avalon Nursing Home
Nottinghamshire County Council,1111/1001,Adult Social Care and Health,ASCH,Third Party Payments,ECA,21/05/2013,12-10993,445.7,Avalon Nursing Home
Nottinghamshire County Council,1111/1001,Adult Social Care and Health,ASCH,Third Party Payments,ECA,21/05/2013,12-10994,445.7,Avalon Nursing Home
Nottinghamshire County Council,1111/1001,Adult Social Care and Health,ASCH,Third Party Payments,ECA,21/05/2013,12-10998,445.7,Silverwood Care Home
Nottinghamshire County Council,1111/1001,Adult Social Care and Health,ASCH,Third Party Payments,ECA,21/05/2013,12-10999,445.7,Silverwood Care Home
Nottinghamshire County Council,1111/1001,Adult Social Care and Health,ASCH,Third Party Payments,ECA,21/05/2013,12-11002,445.7,Silverwood Care Home
Nottinghamshire County Council,1111/1001,Adult Social Care and Health,ASCH,Third Party Payments,ECA,21/05/2013,12-11004,445.7,Silverwood Care Home
Nottinghamshire County Council,1111/1001,Adult Social Care and Health,ASCH,Third Party Payments,ECA,21/05/2013,12-11006,445.7,Silverwood Care Home
Nottinghamshire County Council,1111/1001,Adult Social Care and Health,ASCH,Third Party Payments,ECA,21/05/2013,12-11009,445.7,Silverwood Care Home
Nottinghamshire County Council,1111/1001,Adult Social Care and Health,ASCH,Third Party Payments,ECA,21/05/2013,12-11011,445.7,Silverwood Care Home
Nottinghamshire County Council,1111/1001,Adult Social Care and Health,ASCH,Third Party Payments,ECA,21/05/2013,12-11014,445.7,Silverwood Care Home
Nottinghamshire County Council,1111/1001,Adult Social Care and Health,ASCH,Third Party Payments,ECA,21/05/2013,12-11015,445.7,Silverwood Care Home
Nottinghamshire County Council,1111/1001,Adult Social Care and Health,ASCH,Third Party Payments,ECA,21/05/2013,12-11019,445.7,Acacia Care Centre
Nottinghamshire County Council,1111/1001,Adult Social Care and Health,ASCH,Third Party Payments,ECA,21/05/2013,12-11022,445.7,Spring Water Lodge
Nottinghamshire County Council,1111/1001,Adult Social Care and Health,ASCH,Third Party Payments,ECA,21/05/2013,12-11024,445.7,Spring Water Lodge
Nottinghamshire County Council,1111/1001,Adult Social Care and Health,ASCH,Third Party Payments,ECA,21/05/2013,12-11025,445.7,Spring Water Lodge
Nottinghamshire County Council,1111/1001,Adult Social Care and Health,ASCH,Third Party Payments,ECA,21/05/2013,12-11028,445.7,Spring Water Lodge
Nottinghamshire County Council,1111/1001,Adult Social Care and Health,ASCH,Third Party Payments,ECA,21/05/2013,12-11076,445.7,Oaks Care Centre
Nottinghamshire County Council,1111/1001,Adult Social Care and Health,ASCH,Third Party Payments,ECA,21/05/2013,12-11079,445.7,Oaks Care Centre
Nottinghamshire County Council,1111/1001,Adult Social Care and Health,ASCH,Third Party Payments,ECA,21/05/2013,12-11082,445.7,Oaks Care Centre
Nottinghamshire County Council,1111/1001,Adult Social Care and Health,ASCH,Third Party Payments,ECA,21/05/2013,12-11083,445.7,Oaks Care Centre
Nottinghamshire County Council,1111/1001,Adult Social Care and Health,ASCH,Third Party Payments,ECA,21/05/2013,12-11086,445.7,Oaks Care Centre
Nottinghamshire County Council,1111/1001,Adult Social Care and Health,ASCH,Third Party Payments,ECA,21/05/2013,12-11091,445.7,Oaks Care Centre
Nottinghamshire County Council,1111/1001,Adult Social Care and Health,ASCH,Third Party Payments,ECA,21/05/2013,12-11097,445.7,Oaks Care Centre
Nottinghamshire County Council,1111/1001,Adult Social Care and Health,ASCH,Third Party Payments,ECA,21/05/2013,12-11098,445.7,Oaks Care Centre
Nottinghamshire County Council,1111/1001,Adult Social Care and Health,ASCH,Third Party Payments,ECA,21/05/2013,12-11100,445.7,Oaks Care Centre
Nottinghamshire County Council,1111/1001,Adult Social Care and Health,ASCH,Third Party Payments,ECA,21/05/2013,12-11111,445.7,Oaks Care Centre
Nottinghamshire County Council,1111/1001,Adult Social Care and Health,ASCH,Third Party Payments,ECA,21/05/2013,12-11112,445.7,Oaks Care Centre
Nottinghamshire County Council,1111/1001,Adult Social Care and Health,ASCH,Third Party Payments,ECA,21/05/2013,12-11131,445.7,Charnwood House
Nottinghamshire County Council,1111/1001,Adult Social Care and Health,ASCH,Third Party Payments,ECA,21/05/2013,12-11132,445.7,Charnwood House
Nottinghamshire County Council,1111/1001,Adult Social Care and Health,ASCH,Third Party Payments,ECA,21/05/2013,12-11136,445.7,Charnwood House
Nottinghamshire County Council,1111/1001,Adult Social Care and Health,ASCH,Third Party Payments,ECA,21/05/2013,12-11138,445.7,Charnwood House
Nottinghamshire County Council,1111/1001,Adult Social Care and Health,ASCH,Third Party Payments,ECA,21/05/2013,12-11142,445.7,Charnwood House
Nottinghamshire County Council,1111/1001,Adult Social Care and Health,ASCH,Third Party Payments,ECA,21/05/2013,12-11143,445.7,Charnwood House
Nottinghamshire County Council,1111/1001,Adult Social Care and Health,ASCH,Third Party Payments,ECA,21/05/2013,12-11148,445.7,Charnwood House
Nottinghamshire County Council,1111/1001,Adult Social Care and Health,ASCH,Third Party Payments,ECA,21/05/2013,12-11154,445.7,Charnwood House
Nottinghamshire County Council,1111/1001,Adult Social Care and Health,ASCH,Third Party Payments,ECA,21/05/2013,12-11155,445.7,Charnwood House
Nottinghamshire County Council,1111/1001,Adult Social Care and Health,ASCH,Third Party Payments,ECA,21/05/2013,12-11160,445.7,Four Seasons (Evedale) Ltd Re Sycam
Nottinghamshire County Council,1111/1001,Adult Social Care and Health,ASCH,Third Party Payments,ECA,21/05/2013,12-11163,445.7,Four Seasons (Evedale) Ltd Re Sycam
Nottinghamshire County Council,1111/1001,Adult Social Care and Health,ASCH,Third Party Payments,ECA,21/05/2013,12-11165,445.71,Four Seasons (Evedale) Ltd Re Sycam
Nottinghamshire County Council,1111/1001,Adult Social Care and Health,ASCH,Third Party Payments,ECA,21/05/2013,12-11173,445.7,Four Seasons (Evedale) Ltd Re Sycam
Nottinghamshire County Council,1111/1001,Adult Social Care and Health,ASCH,Third Party Payments,ECA,21/05/2013,12-11174,445.7,Four Seasons (Evedale) Ltd Re Sycam
Nottinghamshire County Council,1111/1001,Adult Social Care and Health,ASCH,Third Party Payments,ECA,21/05/2013,12-11184,445.7,Ferndene Care Home
Nottinghamshire County Council,1111/1001,Adult Social Care and Health,ASCH,Third Party Payments,ECA,21/05/2013,12-11185,533.27,Ferndene Care Home
Nottinghamshire County Council,1111/1001,Adult Social Care and Health,ASCH,Third Party Payments,ECA,21/05/2013,12-11194,445.7,Howson Care Centre
Nottinghamshire County Council,1111/1001,Adult Social Care and Health,ASCH,Third Party Payments,ECA,21/05/2013,12-11195,445.7,Howson Care Centre
Nottinghamshire County Council,1111/1001,Adult Social Care and Health,ASCH,Third Party Payments,ECA,21/05/2013,12-11196,598.4,Howson Care Centre
Nottinghamshire County Council,1111/1001,Adult Social Care and Health,ASCH,Third Party Payments,ECA,21/05/2013,12-11198,598.4,Howson Care Centre
Nottinghamshire County Council,1111/1001,Adult Social Care and Health,ASCH,Third Party Payments,ECA,21/05/2013,12-11199,445.7,Howson Care Centre
Nottinghamshire County Council,1111/1001,Adult Social Care and Health,ASCH,Third Party Payments,ECA,21/05/2013,12-11200,445.7,Howson Care Centre
Nottinghamshire County Council,1111/1001,Adult Social Care and Health,ASCH,Third Party Payments,ECA,21/05/2013,12-11203,445.7,Churchfield Drive Care Home
Nottinghamshire County Council,1111/1001,Adult Social Care and Health,ASCH,Third Party Payments,ECA,21/05/2013,12-11206,445.7,Churchfield Drive Care Home
Nottinghamshire County Council,1111/1001,Adult Social Care and Health,ASCH,Third Party Payments,ECA,21/05/2013,12-11208,445.7,Churchfield Drive Care Home
Nottinghamshire County Council,1111/1001,Adult Social Care and Health,ASCH,Third Party Payments,ECA,21/05/2013,12-11210,445.7,Churchfield Drive Care Home
Nottinghamshire County Council,1111/1001,Adult Social Care and Health,ASCH,Third Party Payments,ECA,21/05/2013,12-11215,445.7,Churchfield Drive Care Home
Nottinghamshire County Council,1111/1001,Adult Social Care and Health,ASCH,Third Party Payments,ECA,21/05/2013,12-11216,445.7,Churchfield Drive Care Home
Nottinghamshire County Council,1111/1001,Adult Social Care and Health,ASCH,Third Party Payments,ECA,21/05/2013,12-11217,445.7,Churchfield Drive Care Home
Nottinghamshire County Council,1111/1001,Adult Social Care and Health,ASCH,Third Party Payments,ECA,21/05/2013,12-11222,445.7,Churchfield Drive Care Home
Nottinghamshire County Council,1111/1001,Adult Social Care and Health,ASCH,Third Party Payments,ECA,21/05/2013,12-11223,445.7,Churchfield Drive Care Home
Nottinghamshire County Council,1111/1001,Adult Social Care and Health,ASCH,Third Party Payments,ECA,21/05/2013,12-11247,445.7,Churchfield Nursing Home
Nottinghamshire County Council,1111/1001,Adult Social Care and Health,ASCH,Third Party Payments,ECA,21/05/2013,12-11248,445.7,Churchfield Nursing Home
Nottinghamshire County Council,1111/1001,Adult Social Care and Health,ASCH,Third Party Payments,ECA,21/05/2013,12-11249,737.16,Churchfield Nursing Home
Nottinghamshire County Council,1111/1001,Adult Social Care and Health,ASCH,Third Party Payments,ECA,21/05/2013,12-11257,-11133.99,Eastlands Care Home
Nottinghamshire County Council,1111/1001,Adult Social Care and Health,ASCH,Third Party Payments,ECA,21/05/2013,12-11271,445.7,Kirkby Manor Care Home
Nottinghamshire County Council,1111/1001,Adult Social Care and Health,ASCH,Third Party Payments,ECA,21/05/2013,12-11272,445.7,Kirkby Manor Care Home
Nottinghamshire County Council,1111/1001,Adult Social Care and Health,ASCH,Third Party Payments,ECA,21/05/2013,12-11273,598.4,Kirkby Manor Care Home
Nottinghamshire County Council,1111/1001,Adult Social Care and Health,ASCH,Third Party Payments,ECA,21/05/2013,12-11274,598.4,Kirkby Manor Care Home
Nottinghamshire County Council,1111/1001,Adult Social Care and Health,ASCH,Third Party Payments,ECA,21/05/2013,12-11275,445.7,Kirkby Manor Care Home
Nottinghamshire County Council,1111/1001,Adult Social Care and Health,ASCH,Third Party Payments,ECA,21/05/2013,12-11276,445.7,Kirkby Manor Care Home
Nottinghamshire County Council,1111/1001,Adult Social Care and Health,ASCH,Third Party Payments,ECA,21/05/2013,12-11277,445.7,Kirkby Manor Care Home
Nottinghamshire County Council,1111/1001,Adult Social Care and Health,ASCH,Third Party Payments,ECA,21/05/2013,12-11279,445.7,Kirkby Manor Care Home
Nottinghamshire County Council,1111/1001,Adult Social Care and Health,ASCH,Third Party Payments,ECA,21/05/2013,12-11280,445.7,Kirkby Manor Care Home
Nottinghamshire County Council,1111/1001,Adult Social Care and Health,ASCH,Third Party Payments,ECA,21/05/2013,12-11281,445.7,Kirkby Manor Care Home
Nottinghamshire County Council,1111/1001,Adult Social Care and Health,ASCH,Third Party Payments,ECA,21/05/2013,12-11282,445.7,Kirkby Manor Care Home
Nottinghamshire County Council,1111/1001,Adult Social Care and Health,ASCH,Third Party Payments,ECA,21/05/2013,12-11283,445.7,Kirkby Manor Care Home
Nottinghamshire County Council,1111/1001,Adult Social Care and Health,ASCH,Third Party Payments,ECA,21/05/2013,12-11284,445.7,Kirkby Manor Care Home
Nottinghamshire County Council,1111/1001,Adult Social Care and Health,ASCH,Third Party Payments,ECA,21/05/2013,12-11314,445.7,Stoneyford Christian Nursing Home
Nottinghamshire County Council,1111/1001,Adult Social Care and Health,ASCH,Third Party Payments,ECA,21/05/2013,12-11319,445.7,Stoneyford Christian Nursing Home
Nottinghamshire County Council,1111/1001,Adult Social Care and Health,ASCH,Third Party Payments,ECA,21/05/2013,12-11320,445.7,Stoneyford Christian Nursing Home
Nottinghamshire County Council,1111/1001,Adult Social Care and Health,ASCH,Third Party Payments,ECA,21/05/2013,12-11321,445.7,Stoneyford Christian Nursing Home
Nottinghamshire County Council,1111/1001,Adult Social Care and Health,ASCH,Third Party Payments,ECA,21/05/2013,12-11322,445.7,Stoneyford Christian Nursing Home
Nottinghamshire County Council,1111/1001,Adult Social Care and Health,ASCH,Third Party Payments,ECA,21/05/2013,12-11324,445.7,Stoneyford Christian Nursing Home
Nottinghamshire County Council,1111/1001,Adult Social Care and Health,ASCH,Third Party Payments,ECA,21/05/2013,12-11326,445.7,Stoneyford Christian Nursing Home
Nottinghamshire County Council,1111/1001,Adult Social Care and Health,ASCH,Third Party Payments,ECA,21/05/2013,12-11328,445.7,Stoneyford Christian Nursing Home
Nottinghamshire County Council,1111/1001,Adult Social Care and Health,ASCH,Third Party Payments,ECA,21/05/2013,12-11332,445.7,Stoneyford Christian Nursing Home
Nottinghamshire County Council,1111/1001,Adult Social Care and Health,ASCH,Third Party Payments,ECA,21/05/2013,12-11333,445.7,Stoneyford Christian Nursing Home
Nottinghamshire County Council,1111/1001,Adult Social Care and Health,ASCH,Third Party Payments,ECA,21/05/2013,12-11334,445.7,Stoneyford Christian Nursing Home
Nottinghamshire County Council,1111/1001,Adult Social Care and Health,ASCH,Third Party Payments,ECA,21/05/2013,12-11336,445.7,Stoneyford Christian Nursing Home
Nottinghamshire County Council,1111/1001,Adult Social Care and Health,ASCH,Third Party Payments,ECA,21/05/2013,12-11337,445.7,Stoneyford Christian Nursing Home
Nottinghamshire County Council,1111/1001,Adult Social Care and Health,ASCH,Third Party Payments,ECA,21/05/2013,12-11338,445.7,Stoneyford Christian Nursing Home
Nottinghamshire County Council,1111/1001,Adult Social Care and Health,ASCH,Third Party Payments,ECA,21/05/2013,12-11339,445.7,Stoneyford Christian Nursing Home
Nottinghamshire County Council,1111/1001,Adult Social Care and Health,ASCH,Third Party Payments,ECA,21/05/2013,12-11342,445.7,Stoneyford Christian Nursing Home
Nottinghamshire County Council,1111/1001,Adult Social Care and Health,ASCH,Third Party Payments,ECA,21/05/2013,12-11343,445.7,Stoneyford Christian Nursing Home
Nottinghamshire County Council,1111/1001,Adult Social Care and Health,ASCH,Third Party Payments,ECA,21/05/2013,12-11344,445.7,Stoneyford Christian Nursing Home
Nottinghamshire County Council,1111/1001,Adult Social Care and Health,ASCH,Third Party Payments,ECA,21/05/2013,12-11345,445.7,St Augustine's Court
Nottinghamshire County Council,1111/1001,Adult Social Care and Health,ASCH,Third Party Payments,ECA,21/05/2013,12-11346,-652.2,St Augustine's Court
Nottinghamshire County Council,1111/1001,Adult Social Care and Health,ASCH,Third Party Payments,ECA,21/05/2013,12-11348,445.7,St Augustine's Court
Nottinghamshire County Council,1111/1001,Adult Social Care and Health,ASCH,Third Party Payments,ECA,21/05/2013,12-11349,445.7,St Augustine's Court
Nottinghamshire County Council,1111/1001,Adult Social Care and Health,ASCH,Third Party Payments,ECA,21/05/2013,12-11353,445.7,Beeches Nursing Home
Nottinghamshire County Council,1111/1001,Adult Social Care and Health,ASCH,Third Party Payments,ECA,21/05/2013,12-11354,445.7,Beeches Nursing Home
Nottinghamshire County Council,1111/1001,Adult Social Care and Health,ASCH,Third Party Payments,ECA,21/05/2013,12-11355,445.7,Beeches Nursing Home
Nottinghamshire County Council,1111/1001,Adult Social Care and Health,ASCH,Third Party Payments,ECA,21/05/2013,12-11356,445.7,Beeches Nursing Home
Nottinghamshire County Council,1111/1001,Adult Social Care and Health,ASCH,Third Party Payments,ECA,21/05/2013,12-11359,445.7,Beeches Nursing Home
Nottinghamshire County Council,1111/1001,Adult Social Care and Health,ASCH,Third Party Payments,ECA,21/05/2013,12-11361,445.7,Beeches Nursing Home
Nottinghamshire County Council,1111/1001,Adult Social Care and Health,ASCH,Third Party Payments,ECA,21/05/2013,12-11362,445.7,Beeches Nursing Home
Nottinghamshire County Council,1111/1001,Adult Social Care and Health,ASCH,Third Party Payments,ECA,21/05/2013,12-11363,445.7,Beeches Nursing Home
Nottinghamshire County Council,1111/1001,Adult Social Care and Health,ASCH,Third Party Payments,ECA,21/05/2013,12-11364,445.7,Beeches Nursing Home
Nottinghamshire County Council,1111/1001,Adult Social Care and Health,ASCH,Third Party Payments,ECA,21/05/2013,12-11366,445.7,Beeches Nursing Home
Nottinghamshire County Council,1111/1001,Adult Social Care and Health,ASCH,Third Party Payments,ECA,21/05/2013,12-11367,445.7,Berry Hill Park
Nottinghamshire County Council,1111/1001,Adult Social Care and Health,ASCH,Third Party Payments,ECA,21/05/2013,12-11368,445.7,Berry Hill Park
Nottinghamshire County Council,1111/1001,Adult Social Care and Health,ASCH,Third Party Payments,ECA,21/05/2013,12-11369,445.7,Berry Hill Park
Nottinghamshire County Council,1111/1001,Adult Social Care and Health,ASCH,Third Party Payments,ECA,21/05/2013,12-11374,445.7,Berry Hill Park
Nottinghamshire County Council,1111/1001,Adult Social Care and Health,ASCH,Third Party Payments,ECA,21/05/2013,12-11375,445.7,Berry Hill Park
Nottinghamshire County Council,1111/1001,Adult Social Care and Health,ASCH,Third Party Payments,ECA,21/05/2013,12-11376,445.7,Berry Hill Park
Nottinghamshire County Council,1111/1001,Adult Social Care and Health,ASCH,Third Party Payments,ECA,21/05/2013,12-11378,445.7,Berry Hill Park
Nottinghamshire County Council,1111/1001,Adult Social Care and Health,ASCH,Third Party Payments,ECA,21/05/2013,12-11379,445.7,Berry Hill Park
Nottinghamshire County Council,1111/1001,Adult Social Care and Health,ASCH,Third Party Payments,ECA,21/05/2013,12-11381,445.7,Berry Hill Park
Nottinghamshire County Council,1111/1001,Adult Social Care and Health,ASCH,Third Party Payments,ECA,21/05/2013,12-11382,445.7,Berry Hill Park
Nottinghamshire County Council,1111/1001,Adult Social Care and Health,ASCH,Third Party Payments,ECA,21/05/2013,12-11384,445.7,Berry Hill Park
Nottinghamshire County Council,1111/1001,Adult Social Care and Health,ASCH,Third Party Payments,ECA,21/05/2013,12-11409,445.7,Landermeads Nursing Home
Nottinghamshire County Council,1111/1001,Adult Social Care and Health,ASCH,Third Party Payments,ECA,21/05/2013,12-11410,445.7,Landermeads Nursing Home
Nottinghamshire County Council,1111/1001,Adult Social Care and Health,ASCH,Third Party Payments,ECA,21/05/2013,12-11411,445.7,Landermeads Nursing Home
Nottinghamshire County Council,1111/1001,Adult Social Care and Health,ASCH,Third Party Payments,ECA,21/05/2013,12-11412,445.7,Landermeads Nursing Home
Nottinghamshire County Council,1111/1001,Adult Social Care and Health,ASCH,Third Party Payments,ECA,21/05/2013,12-11413,445.7,Landermeads Nursing Home
Nottinghamshire County Council,1111/1001,Adult Social Care and Health,ASCH,Third Party Payments,ECA,21/05/2013,12-11414,445.7,Landermeads Nursing Home
Nottinghamshire County Council,1111/1001,Adult Social Care and Health,ASCH,Third Party Payments,ECA,21/05/2013,12-11415,445.7,Landermeads Nursing Home
Nottinghamshire County Council,1111/1001,Adult Social Care and Health,ASCH,Third Party Payments,ECA,21/05/2013,12-11416,598.4,Landermeads Nursing Home
Nottinghamshire County Council,1111/1001,Adult Social Care and Health,ASCH,Third Party Payments,ECA,21/05/2013,12-11417,598.4,Landermeads Nursing Home
Nottinghamshire County Council,1111/1001,Adult Social Care and Health,ASCH,Third Party Payments,ECA,21/05/2013,12-11419,445.7,Landermeads Nursing Home
Nottinghamshire County Council,1111/1001,Adult Social Care and Health,ASCH,Third Party Payments,ECA,21/05/2013,12-11420,445.7,Landermeads Nursing Home
Nottinghamshire County Council,1111/1001,Adult Social Care and Health,ASCH,Third Party Payments,ECA,21/05/2013,12-11421,445.7,Landermeads Nursing Home
Nottinghamshire County Council,1111/1001,Adult Social Care and Health,ASCH,Third Party Payments,ECA,21/05/2013,12-11422,445.7,Landermeads Nursing Home
Nottinghamshire County Council,1111/1001,Adult Social Care and Health,ASCH,Third Party Payments,ECA,21/05/2013,12-11423,445.7,Landermeads Nursing Home
Nottinghamshire County Council,1111/1001,Adult Social Care and Health,ASCH,Third Party Payments,ECA,21/05/2013,12-11425,445.7,Landermeads Nursing Home
Nottinghamshire County Council,1111/1001,Adult Social Care and Health,ASCH,Third Party Payments,ECA,21/05/2013,12-11426,445.7,Landermeads Nursing Home
Nottinghamshire County Council,1111/1001,Adult Social Care and Health,ASCH,Third Party Payments,ECA,21/05/2013,12-11429,445.7,Landermeads Nursing Home
Nottinghamshire County Council,1111/1001,Adult Social Care and Health,ASCH,Third Party Payments,ECA,21/05/2013,12-11431,445.7,Landermeads Nursing Home
Nottinghamshire County Council,1111/1001,Adult Social Care and Health,ASCH,Third Party Payments,ECA,21/05/2013,12-11432,445.7,Landermeads Nursing Home
Nottinghamshire County Council,1111/1001,Adult Social Care and Health,ASCH,Third Party Payments,ECA,21/05/2013,12-11472,445.7,Highfields Nursing Home
Nottinghamshire County Council,1111/1001,Adult Social Care and Health,ASCH,Third Party Payments,ECA,21/05/2013,12-11473,445.7,Highfields Nursing Home
Nottinghamshire County Council,1111/1001,Adult Social Care and Health,ASCH,Third Party Payments,ECA,21/05/2013,12-11474,445.7,Highfields Nursing Home
Nottinghamshire County Council,1111/1001,Adult Social Care and Health,ASCH,Third Party Payments,ECA,21/05/2013,12-11475,445.7,Highfields Nursing Home
Nottinghamshire County Council,1111/1001,Adult Social Care and Health,ASCH,Third Party Payments,ECA,21/05/2013,12-11476,445.7,Highfields Nursing Home
Nottinghamshire County Council,1111/1001,Adult Social Care and Health,ASCH,Third Party Payments,ECA,21/05/2013,12-11500,445.7,Albemarle Hall Nursing Home
Nottinghamshire County Council,1111/1001,Adult Social Care and Health,ASCH,Third Party Payments,ECA,21/05/2013,12-11502,445.7,Albemarle Hall Nursing Home
Nottinghamshire County Council,1111/1001,Adult Social Care and Health,ASCH,Third Party Payments,ECA,21/05/2013,12-11505,445.7,Albemarle Hall Nursing Home
Nottinghamshire County Council,1111/1001,Adult Social Care and Health,ASCH,Third Party Payments,ECA,21/05/2013,12-11509,445.7,Alexandra House Nursing Home
Nottinghamshire County Council,1111/1001,Adult Social Care and Health,ASCH,Third Party Payments,ECA,21/05/2013,12-11510,445.7,Alexandra House Nursing Home
Nottinghamshire County Council,1111/1001,Adult Social Care and Health,ASCH,Third Party Payments,ECA,21/05/2013,12-11511,445.7,Alexandra House Nursing Home
Nottinghamshire County Council,1111/1001,Adult Social Care and Health,ASCH,Third Party Payments,ECA,21/05/2013,12-11513,445.7,Alexandra House Nursing Home
Nottinghamshire County Council,1111/1001,Adult Social Care and Health,ASCH,Third Party Payments,ECA,21/05/2013,12-11515,445.7,Alexandra House Nursing Home
Nottinghamshire County Council,1111/1001,Adult Social Care and Health,ASCH,Third Party Payments,ECA,21/05/2013,12-11518,445.7,Alexandra House Nursing Home
Nottinghamshire County Council,1111/1001,Adult Social Care and Health,ASCH,Third Party Payments,ECA,21/05/2013,12-11519,445.7,Alexandra House Nursing Home
Nottinghamshire County Council,1111/1001,Adult Social Care and Health,ASCH,Third Party Payments,ECA,21/05/2013,12-11522,445.7,Lawn Park Nursing Home
Nottinghamshire County Council,1111/1001,Adult Social Care and Health,ASCH,Third Party Payments,ECA,21/05/2013,12-11523,445.7,Lawn Park Nursing Home
Nottinghamshire County Council,1111/1001,Adult Social Care and Health,ASCH,Third Party Payments,ECA,21/05/2013,12-11524,434.8,Lawn Park Nursing Home
Nottinghamshire County Council,1111/1001,Adult Social Care and Health,ASCH,Third Party Payments,ECA,21/05/2013,12-11526,445.7,Lawn Park Nursing Home
Nottinghamshire County Council,1111/1001,Adult Social Care and Health,ASCH,Third Party Payments,ECA,21/05/2013,12-11528,445.7,Lawn Park Nursing Home
Nottinghamshire County Council,1111/1001,Adult Social Care and Health,ASCH,Third Party Payments,ECA,21/05/2013,12-11531,445.7,Lawn Park Nursing Home
Nottinghamshire County Council,1111/1001,Adult Social Care and Health,ASCH,Third Party Payments,ECA,21/05/2013,12-11532,445.7,Lawn Park Nursing Home
Nottinghamshire County Council,1111/1001,Adult Social Care and Health,ASCH,Third Party Payments,ECA,21/05/2013,12-11535,445.7,Lawn Park Nursing Home
Nottinghamshire County Council,1111/1001,Adult Social Care and Health,ASCH,Third Party Payments,ECA,21/05/2013,12-11538,445.7,Lawn Park Nursing Home
Nottinghamshire County Council,1111/1001,Adult Social Care and Health,ASCH,Third Party Payments,ECA,21/05/2013,12-11539,445.7,Lawn Park Nursing Home
Nottinghamshire County Council,1111/1001,Adult Social Care and Health,ASCH,Third Party Payments,ECA,21/05/2013,12-11540,445.7,Lawn Park Nursing Home
Nottinghamshire County Council,1111/1001,Adult Social Care and Health,ASCH,Third Party Payments,ECA,21/05/2013,12-11541,445.7,Lawn Park Nursing Home
Nottinghamshire County Council,1111/1001,Adult Social Care and Health,ASCH,Third Party Payments,ECA,21/05/2013,12-11543,445.7,Lawn Park Nursing Home
Nottinghamshire County Council,1111/1001,Adult Social Care and Health,ASCH,Third Party Payments,ECA,21/05/2013,12-11546,445.7,Lawn Park Nursing Home
Nottinghamshire County Council,1111/1001,Adult Social Care and Health,ASCH,Third Party Payments,ECA,21/05/2013,12-11552,445.7,Eliot House
Nottinghamshire County Council,1111/1001,Adult Social Care and Health,ASCH,Third Party Payments,ECA,21/05/2013,12-11553,446.28,Eliot House
Nottinghamshire County Council,1111/1001,Adult Social Care and Health,ASCH,Third Party Payments,ECA,21/05/2013,12-11560,445.7,Bluebell Lodge
Nottinghamshire County Council,1111/1001,Adult Social Care and Health,ASCH,Third Party Payments,ECA,21/05/2013,12-11597,445.7,Ashley House Nursing Home
Nottinghamshire County Council,1111/1001,Adult Social Care and Health,ASCH,Third Party Payments,ECA,21/05/2013,12-11598,445.7,Ashley House Nursing Home
Nottinghamshire County Council,1111/1001,Adult Social Care and Health,ASCH,Third Party Payments,ECA,21/05/2013,12-11599,445.7,Ashley House Nursing Home
Nottinghamshire County Council,1111/1001,Adult Social Care and Health,ASCH,Third Party Payments,ECA,21/05/2013,12-11600,598.4,Ashley House Nursing Home
Nottinghamshire County Council,1111/1001,Adult Social Care and Health,ASCH,Third Party Payments,ECA,21/05/2013,12-11601,445.7,Ashley House Nursing Home
Nottinghamshire County Council,1111/1001,Adult Social Care and Health,ASCH,Third Party Payments,ECA,21/05/2013,12-11603,445.7,Ashley House Nursing Home
Nottinghamshire County Council,1111/1001,Adult Social Care and Health,ASCH,Third Party Payments,ECA,21/05/2013,12-11605,445.7,Ashley House Nursing Home
Nottinghamshire County Council,1111/1001,Adult Social Care and Health,ASCH,Third Party Payments,ECA,21/05/2013,12-11606,445.7,Ashley House Nursing Home
Nottinghamshire County Council,1111/1001,Adult Social Care and Health,ASCH,Third Party Payments,ECA,21/05/2013,12-11607,445.7,Ashley House Nursing Home
Nottinghamshire County Council,1111/1001,Adult Social Care and Health,ASCH,Third Party Payments,ECA,21/05/2013,12-11608,598.4,Ashley House Nursing Home
Nottinghamshire County Council,1111/1001,Adult Social Care and Health,ASCH,Third Party Payments,ECA,21/05/2013,12-11609,598.4,Ashley House Nursing Home
Nottinghamshire County Council,1111/1001,Adult Social Care and Health,ASCH,Third Party Payments,ECA,21/05/2013,12-11610,445.7,Ashley House Nursing Home
Nottinghamshire County Council,1111/1001,Adult Social Care and Health,ASCH,Third Party Payments,ECA,21/05/2013,12-11611,445.7,Ashley House Nursing Home
Nottinghamshire County Council,1111/1001,Adult Social Care and Health,ASCH,Third Party Payments,ECA,21/05/2013,12-11612,445.7,Ashley House Nursing Home
Nottinghamshire County Council,1111/1001,Adult Social Care and Health,ASCH,Third Party Payments,ECA,21/05/2013,12-11613,445.7,Ashley House Nursing Home
Nottinghamshire County Council,1111/1001,Adult Social Care and Health,ASCH,Third Party Payments,ECA,21/05/2013,12-11614,445.7,Ashley House Nursing Home
Nottinghamshire County Council,1111/1001,Adult Social Care and Health,ASCH,Third Party Payments,ECA,21/05/2013,12-11615,1413.1,Ashley House Nursing Home
Nottinghamshire County Council,1111/1001,Adult Social Care and Health,ASCH,Third Party Payments,ECA,21/05/2013,12-11616,445.7,Ashley House Nursing Home
Nottinghamshire County Council,1111/1001,Adult Social Care and Health,ASCH,Third Party Payments,ECA,21/05/2013,12-11617,598.4,Ashley House Nursing Home
Nottinghamshire County Council,1111/1001,Adult Social Care and Health,ASCH,Third Party Payments,ECA,21/05/2013,12-11619,445.7,Aslockton Hall Nursing Home
Nottinghamshire County Council,1111/1001,Adult Social Care and Health,ASCH,Third Party Payments,ECA,21/05/2013,12-11621,445.7,Aslockton Hall Nursing Home
Nottinghamshire County Council,1111/1001,Adult Social Care and Health,ASCH,Third Party Payments,ECA,21/05/2013,12-11622,445.7,Aslockton Hall Nursing Home
Nottinghamshire County Council,1111/1001,Adult Social Care and Health,ASCH,Third Party Payments,ECA,21/05/2013,12-11623,445.7,Aslockton Hall Nursing Home
Nottinghamshire County Council,1111/1001,Adult Social Care and Health,ASCH,Third Party Payments,ECA,21/05/2013,12-11625,439.16,Aslockton Hall Nursing Home
Nottinghamshire County Council,1111/1001,Adult Social Care and Health,ASCH,Third Party Payments,ECA,21/05/2013,12-11626,445.7,Aslockton Hall Nursing Home
Nottinghamshire County Council,1111/1001,Adult Social Care and Health,ASCH,Third Party Payments,ECA,21/05/2013,12-11646,445.7,Pinxton Manor
Nottinghamshire County Council,1111/1001,Adult Social Care and Health,ASCH,Third Party Payments,ECA,21/05/2013,12-11647,445.7,Rodenvine Nottm Ltd T/A Parker Hous
Nottinghamshire County Council,1111/1001,Adult Social Care and Health,ASCH,Third Party Payments,ECA,21/05/2013,12-11648,445.7,Rodenvine Nottm Ltd T/A Parker Hous
Nottinghamshire County Council,1111/1001,Adult Social Care and Health,ASCH,Third Party Payments,ECA,21/05/2013,12-11649,445.7,Rodenvine Nottm Ltd T/A Parker Hous
Nottinghamshire County Council,1111/1001,Adult Social Care and Health,ASCH,Third Party Payments,ECA,21/05/2013,12-11651,445.7,Rodenvine Nottm Ltd T/A Parker Hous
Nottinghamshire County Council,1111/1001,Adult Social Care and Health,ASCH,Third Party Payments,ECA,21/05/2013,12-11653,445.7,Rodenvine Nottm Ltd T/A Parker Hous
Nottinghamshire County Council,1111/1001,Adult Social Care and Health,ASCH,Third Party Payments,ECA,21/05/2013,12-11656,445.7,Rodenvine Nottm Ltd T/A Parker Hous
Nottinghamshire County Council,1111/1001,Adult Social Care and Health,ASCH,Third Party Payments,ECA,21/05/2013,12-11657,445.7,Gables Nursing Home
Nottinghamshire County Council,1111/1001,Adult Social Care and Health,ASCH,Third Party Payments,ECA,21/05/2013,12-11658,445.7,Gables Nursing Home
Nottinghamshire County Council,1111/1001,Adult Social Care and Health,ASCH,Third Party Payments,ECA,21/05/2013,12-11659,445.7,Gables Nursing Home
Nottinghamshire County Council,1111/1001,Adult Social Care and Health,ASCH,Third Party Payments,ECA,21/05/2013,12-11660,445.69,Gables Nursing Home
Nottinghamshire County Council,1111/1001,Adult Social Care and Health,ASCH,Third Party Payments,ECA,21/05/2013,12-11661,445.7,Gables Nursing Home
Nottinghamshire County Council,1111/1001,Adult Social Care and Health,ASCH,Third Party Payments,ECA,21/05/2013,12-11662,445.7,Gables Nursing Home
Nottinghamshire County Council,1111/1001,Adult Social Care and Health,ASCH,Third Party Payments,ECA,21/05/2013,12-11682,445.7,Forest Hill Nursing Home
Nottinghamshire County Council,1111/1001,Adult Social Care and Health,ASCH,Third Party Payments,ECA,21/05/2013,12-11683,445.7,Forest Hill Nursing Home
Nottinghamshire County Council,1111/1001,Adult Social Care and Health,ASCH,Third Party Payments,ECA,21/05/2013,12-11684,188.21,Forest Hill Nursing Home
Nottinghamshire County Council,1111/1001,Adult Social Care and Health,ASCH,Third Party Payments,ECA,21/05/2013,12-11685,445.7,Forest Hill Nursing Home
Nottinghamshire County Council,1111/1001,Adult Social Care and Health,ASCH,Third Party Payments,ECA,21/05/2013,12-11686,533.27,Forest Hill Nursing Home
Nottinghamshire County Council,1111/1001,Adult Social Care and Health,ASCH,Third Party Payments,ECA,21/05/2013,12-11687,445.7,Forest Hill Nursing Home
Nottinghamshire County Council,1111/1001,Adult Social Care and Health,ASCH,Third Party Payments,ECA,21/05/2013,12-11688,445.7,Forest Hill Nursing Home
Nottinghamshire County Council,1111/1001,Adult Social Care and Health,ASCH,Third Party Payments,ECA,21/05/2013,12-11689,445.7,Forest Hill Nursing Home
Nottinghamshire County Council,1111/1001,Adult Social Care and Health,ASCH,Third Party Payments,ECA,21/05/2013,12-11690,445.7,Forest Hill Nursing Home
Nottinghamshire County Council,1111/1001,Adult Social Care and Health,ASCH,Third Party Payments,ECA,21/05/2013,12-11691,445.7,Forest Hill Nursing Home
Nottinghamshire County Council,1111/1001,Adult Social Care and Health,ASCH,Third Party Payments,ECA,21/05/2013,12-11692,445.7,Forest Hill Nursing Home
Nottinghamshire County Council,1111/1001,Adult Social Care and Health,ASCH,Third Party Payments,ECA,21/05/2013,12-11693,445.7,Forest Hill Nursing Home
Nottinghamshire County Council,1111/1001,Adult Social Care and Health,ASCH,Third Party Payments,ECA,21/05/2013,12-11694,445.7,Forest Hill Nursing Home
Nottinghamshire County Council,1111/1001,Adult Social Care and Health,ASCH,Third Party Payments,ECA,21/05/2013,12-11695,445.7,Forest Hill Nursing Home
Nottinghamshire County Council,1111/1001,Adult Social Care and Health,ASCH,Third Party Payments,ECA,21/05/2013,12-11696,445.7,Forest Hill Nursing Home
Nottinghamshire County Council,1111/1001,Adult Social Care and Health,ASCH,Third Party Payments,ECA,21/05/2013,12-11697,445.7,Forest Hill Nursing Home
Nottinghamshire County Council,1111/1001,Adult Social Care and Health,ASCH,Third Party Payments,ECA,21/05/2013,12-11698,445.7,Forest Hill Nursing Home
Nottinghamshire County Council,1111/1001,Adult Social Care and Health,ASCH,Third Party Payments,ECA,21/05/2013,12-11699,445.7,Forest Hill Nursing Home
Nottinghamshire County Council,1111/1001,Adult Social Care and Health,ASCH,Third Party Payments,ECA,21/05/2013,12-11700,-68.14,Forest Hill Nursing Home
Nottinghamshire County Council,1111/1001,Adult Social Care and Health,ASCH,Third Party Payments,ECA,21/05/2013,12-11701,445.7,Forest Hill Nursing Home
Nottinghamshire County Council,1111/1001,Adult Social Care and Health,ASCH,Third Party Payments,ECA,21/05/2013,12-11711,445.7,Woodhall Park Nursing Home
Nottinghamshire County Council,1111/1001,Adult Social Care and Health,ASCH,Third Party Payments,ECA,21/05/2013,12-11712,445.7,Woodthorpe Manor Nursing Home
Nottinghamshire County Council,1111/1001,Adult Social Care and Health,ASCH,Third Party Payments,ECA,21/05/2013,12-11713,445.7,Woodthorpe Manor Nursing Home
Nottinghamshire County Council,1111/1001,Adult Social Care and Health,ASCH,Third Party Payments,ECA,21/05/2013,12-11714,445.7,Woodthorpe Manor Nursing Home
Nottinghamshire County Council,1111/1001,Adult Social Care and Health,ASCH,Third Party Payments,ECA,21/05/2013,12-11715,445.7,Woodthorpe Manor Nursing Home
Nottinghamshire County Council,1111/1001,Adult Social Care and Health,ASCH,Third Party Payments,ECA,21/05/2013,12-11716,445.7,Woodthorpe Manor Nursing Home
Nottinghamshire County Council,1111/1001,Adult Social Care and Health,ASCH,Third Party Payments,ECA,21/05/2013,12-11717,445.7,Woodthorpe Manor Nursing Home
Nottinghamshire County Council,1111/1001,Adult Social Care and Health,ASCH,Third Party Payments,ECA,21/05/2013,12-11718,-652.2,Woodthorpe Manor Nursing Home
Nottinghamshire County Council,1111/1001,Adult Social Care and Health,ASCH,Third Party Payments,ECA,21/05/2013,12-11730,445.7,The Moorlands Nursing Home
Nottinghamshire County Council,1111/1001,Adult Social Care and Health,ASCH,Third Party Payments,ECA,21/05/2013,12-11731,445.7,The Moorlands Nursing Home
Nottinghamshire County Council,1111/1001,Adult Social Care and Health,ASCH,Third Party Payments,ECA,21/05/2013,12-11732,445.7,The Moorlands Nursing Home
Nottinghamshire County Council,1111/1001,Adult Social Care and Health,ASCH,Third Party Payments,ECA,21/05/2013,12-11736,445.7,The Moorlands Nursing Home
Nottinghamshire County Council,1111/1001,Adult Social Care and Health,ASCH,Third Party Payments,ECA,21/05/2013,12-11738,445.7,The Moorlands Nursing Home
Nottinghamshire County Council,1111/1001,Adult Social Care and Health,ASCH,Third Party Payments,ECA,21/05/2013,12-11739,-346.26,Burkitt Care Home
Nottinghamshire County Council,1111/1001,Adult Social Care and Health,ASCH,Third Party Payments,ECA,21/05/2013,12-11741,445.7,Burkitt Care Home
Nottinghamshire County Council,1111/1001,Adult Social Care and Health,ASCH,Third Party Payments,ECA,21/05/2013,12-11743,445.7,Burkitt Care Home
Nottinghamshire County Council,1111/1001,Adult Social Care and Health,ASCH,Third Party Payments,ECA,21/05/2013,12-11744,445.7,Burkitt Care Home
Nottinghamshire County Council,1111/1001,Adult Social Care and Health,ASCH,Third Party Payments,ECA,21/05/2013,12-11745,445.7,Burkitt Care Home
Nottinghamshire County Council,1111/1001,Adult Social Care and Health,ASCH,Third Party Payments,ECA,21/05/2013,12-11746,445.7,Burkitt Care Home
Nottinghamshire County Council,1111/1001,Adult Social Care and Health,ASCH,Third Party Payments,ECA,21/05/2013,12-11747,721.48,Burkitt Care Home
Nottinghamshire County Council,1111/1001,Adult Social Care and Health,ASCH,Third Party Payments,ECA,21/05/2013,12-11748,445.7,Burkitt Care Home
Nottinghamshire County Council,1111/1001,Adult Social Care and Health,ASCH,Third Party Payments,ECA,21/05/2013,12-11749,445.7,Burkitt Care Home
Nottinghamshire County Council,1111/1001,Adult Social Care and Health,ASCH,Third Party Payments,ECA,21/05/2013,12-11750,445.7,Burkitt Care Home
Nottinghamshire County Council,1111/1001,Adult Social Care and Health,ASCH,Third Party Payments,ECA,21/05/2013,12-11751,445.7,Burkitt Care Home
Nottinghamshire County Council,1111/1001,Adult Social Care and Health,ASCH,Third Party Payments,ECA,21/05/2013,12-11753,445.7,Burkitt Care Home
Nottinghamshire County Council,1111/1001,Adult Social Care and Health,ASCH,Third Party Payments,ECA,21/05/2013,12-11771,445.7,Church Farm Nursing Home Ltd
Nottinghamshire County Council,1111/1001,Adult Social Care and Health,ASCH,Third Party Payments,ECA,21/05/2013,12-11772,445.7,Church Farm Nursing Home Ltd
Nottinghamshire County Council,1111/1001,Adult Social Care and Health,ASCH,Third Party Payments,ECA,21/05/2013,12-11773,445.7,Church Farm Nursing Home Ltd
Nottinghamshire County Council,1111/1001,Adult Social Care and Health,ASCH,Third Party Payments,ECA,21/05/2013,12-11774,445.7,Church Farm Nursing Home Ltd
Nottinghamshire County Council,1111/1001,Adult Social Care and Health,ASCH,Third Party Payments,ECA,21/05/2013,12-11775,445.7,Church Farm Nursing Home Ltd
Nottinghamshire County Council,1111/1001,Adult Social Care and Health,ASCH,Third Party Payments,ECA,21/05/2013,12-11776,445.7,Church Farm Nursing Home Ltd
Nottinghamshire County Council,1111/1001,Adult Social Care and Health,ASCH,Third Party Payments,ECA,21/05/2013,12-11778,445.7,Church Farm Nursing Home Ltd
Nottinghamshire County Council,1111/1001,Adult Social Care and Health,ASCH,Third Party Payments,ECA,21/05/2013,12-11779,445.7,Church Farm Nursing Home Ltd
Nottinghamshire County Council,1111/1001,Adult Social Care and Health,ASCH,Third Party Payments,ECA,21/05/2013,12-11780,445.7,Church Farm Nursing Home Ltd
Nottinghamshire County Council,1111/1001,Adult Social Care and Health,ASCH,Third Party Payments,ECA,21/05/2013,12-11781,445.7,Church Farm Nursing Home Ltd
Nottinghamshire County Council,1111/1001,Adult Social Care and Health,ASCH,Third Party Payments,ECA,21/05/2013,12-11782,445.7,Church Farm Nursing Home Ltd
Nottinghamshire County Council,1111/1001,Adult Social Care and Health,ASCH,Third Party Payments,ECA,21/05/2013,12-11786,598.4,Gables Care Homes Limited
Nottinghamshire County Council,1111/1001,Adult Social Care and Health,ASCH,Third Party Payments,ECA,21/05/2013,12-11789,445.7,Countrywide Care Homes Ltd T/A Gate
Nottinghamshire County Council,1111/1001,Adult Social Care and Health,ASCH,Third Party Payments,ECA,21/05/2013,12-11791,445.7,Countrywide Care Homes Ltd T/A Gate
Nottinghamshire County Council,1111/1001,Adult Social Care and Health,ASCH,Third Party Payments,ECA,21/05/2013,12-11793,598.4,Countrywide Care Homes Ltd T/A Gate
Nottinghamshire County Council,1111/1001,Adult Social Care and Health,ASCH,Third Party Payments,ECA,21/05/2013,12-11795,445.7,Countrywide Care Homes Ltd T/A Gate
Nottinghamshire County Council,1111/1001,Adult Social Care and Health,ASCH,Third Party Payments,ECA,21/05/2013,12-11796,445.7,Countrywide Care Homes Ltd T/A Gate
Nottinghamshire County Council,1111/1001,Adult Social Care and Health,ASCH,Third Party Payments,ECA,21/05/2013,12-11800,445.7,Countrywide Care Homes Ltd T/A Gate
Nottinghamshire County Council,1111/1001,Adult Social Care and Health,ASCH,Third Party Payments,ECA,21/05/2013,12-11802,598.4,Countrywide Care Homes Ltd T/A Gate
Nottinghamshire County Council,1111/1001,Adult Social Care and Health,ASCH,Third Party Payments,ECA,21/05/2013,12-11803,445.7,Countrywide Care Homes Ltd T/A Gate
Nottinghamshire County Council,1111/1001,Adult Social Care and Health,ASCH,Third Party Payments,ECA,21/05/2013,12-11805,598.4,Countrywide Care Homes Ltd T/A Gate
Nottinghamshire County Council,1111/1001,Adult Social Care and Health,ASCH,Third Party Payments,ECA,21/05/2013,12-11808,445.7,Countrywide Care Homes Ltd T/A Gate
Nottinghamshire County Council,1111/1001,Adult Social Care and Health,ASCH,Third Party Payments,ECA,21/05/2013,12-11812,445.7,Countrywide Care Homes Ltd T/A Gate
Nottinghamshire County Council,1111/1001,Adult Social Care and Health,ASCH,Third Party Payments,ECA,21/05/2013,12-11815,445.7,Countrywide Care Homes Ltd T/A Gate
Nottinghamshire County Council,1111/1001,Adult Social Care and Health,ASCH,Third Party Payments,ECA,21/05/2013,12-11816,445.7,Countrywide Care Homes Ltd T/A Gate
Nottinghamshire County Council,1111/1001,Adult Social Care and Health,ASCH,Third Party Payments,ECA,21/05/2013,12-11817,445.7,Countrywide Care Homes Ltd T/A Gate
Nottinghamshire County Council,1111/1001,Adult Social Care and Health,ASCH,Third Party Payments,ECA,21/05/2013,12-11820,445.7,Countrywide Care Homes Ltd T/A Gate
Nottinghamshire County Council,1111/1001,Adult Social Care and Health,ASCH,Third Party Payments,ECA,21/05/2013,12-11822,445.7,Countrywide Care Homes Ltd T/A Gate
Nottinghamshire County Council,1111/1001,Adult Social Care and Health,ASCH,Third Party Payments,ECA,21/05/2013,12-11829,445.7,Red Rose Nursing Home
Nottinghamshire County Council,1111/1001,Adult Social Care and Health,ASCH,Third Party Payments,ECA,21/05/2013,12-11831,948.33,Red Rose Nursing Home
Nottinghamshire County Council,1111/1001,Adult Social Care and Health,ASCH,Third Party Payments,ECA,21/05/2013,12-11832,445.7,Red Rose Nursing Home
Nottinghamshire County Council,1111/1001,Adult Social Care and Health,ASCH,Third Party Payments,ECA,21/05/2013,12-11833,445.7,Red Rose Nursing Home
Nottinghamshire County Council,1111/1001,Adult Social Care and Health,ASCH,Third Party Payments,ECA,21/05/2013,12-11834,445.7,Red Rose Nursing Home
Nottinghamshire County Council,1111/1001,Adult Social Care and Health,ASCH,Third Party Payments,ECA,21/05/2013,12-11836,445.7,Red Rose Nursing Home
Nottinghamshire County Council,1111/1001,Adult Social Care and Health,ASCH,Third Party Payments,ECA,21/05/2013,12-11837,445.7,Red Rose Nursing Home
Nottinghamshire County Council,1111/1001,Adult Social Care and Health,ASCH,Third Party Payments,ECA,21/05/2013,12-11856,445.7,Wren Hall Nursing Home
Nottinghamshire County Council,1111/1001,Adult Social Care and Health,ASCH,Third Party Payments,ECA,21/05/2013,12-11857,590.09,Wren Hall Nursing Home
Nottinghamshire County Council,1111/1001,Adult Social Care and Health,ASCH,Third Party Payments,ECA,21/05/2013,12-11858,445.7,Wren Hall Nursing Home
Nottinghamshire County Council,1111/1001,Adult Social Care and Health,ASCH,Third Party Payments,ECA,21/05/2013,12-11861,445.7,Wren Hall Nursing Home
Nottinghamshire County Council,1111/1001,Adult Social Care and Health,ASCH,Third Party Payments,ECA,21/05/2013,12-11862,219.58,Wren Hall Nursing Home
Nottinghamshire County Council,1111/1001,Adult Social Care and Health,ASCH,Third Party Payments,ECA,21/05/2013,12-11863,445.7,Wren Hall Nursing Home
Nottinghamshire County Council,1111/1001,Adult Social Care and Health,ASCH,Third Party Payments,ECA,21/05/2013,12-11864,445.7,Wren Hall Nursing Home
Nottinghamshire County Council,1111/1001,Adult Social Care and Health,ASCH,Third Party Payments,ECA,21/05/2013,12-11865,445.7,Wren Hall Nursing Home
Nottinghamshire County Council,1111/1001,Adult Social Care and Health,ASCH,Third Party Payments,ECA,21/05/2013,12-11866,445.7,Wren Hall Nursing Home
Nottinghamshire County Council,1111/1001,Adult Social Care and Health,ASCH,Third Party Payments,ECA,21/05/2013,12-11867,445.7,Wren Hall Nursing Home
Nottinghamshire County Council,1111/1001,Adult Social Care and Health,ASCH,Third Party Payments,ECA,21/05/2013,12-11868,445.7,Wren Hall Nursing Home
Nottinghamshire County Council,1111/1001,Adult Social Care and Health,ASCH,Third Party Payments,ECA,21/05/2013,12-11869,445.7,Wren Hall Nursing Home
Nottinghamshire County Council,1111/1001,Adult Social Care and Health,ASCH,Third Party Payments,ECA,21/05/2013,12-11901,445.7,Sherwood Grange Care Ltd (In Admins
Nottinghamshire County Council,1111/1001,Adult Social Care and Health,ASCH,Third Party Payments,ECA,21/05/2013,12-11904,445.7,Sherwood Grange Care Ltd (In Admins
Nottinghamshire County Council,1111/1001,Adult Social Care and Health,ASCH,Third Party Payments,ECA,21/05/2013,12-11905,445.7,Sherwood Grange Care Ltd (In Admins
Nottinghamshire County Council,1111/1001,Adult Social Care and Health,ASCH,Third Party Payments,ECA,21/05/2013,12-11906,445.7,Sherwood Grange Care Ltd (In Admins
Nottinghamshire County Council,1111/1001,Adult Social Care and Health,ASCH,Third Party Payments,ECA,21/05/2013,12-11907,445.7,Sherwood Grange Care Ltd (In Admins
Nottinghamshire County Council,1111/1001,Adult Social Care and Health,ASCH,Third Party Payments,ECA,21/05/2013,12-11908,445.7,Sherwood Grange Care Ltd (In Admins
Nottinghamshire County Council,1111/1001,Adult Social Care and Health,ASCH,Third Party Payments,ECA,21/05/2013,12-11909,445.7,Sherwood Grange Care Ltd (In Admins
Nottinghamshire County Council,1111/1001,Adult Social Care and Health,ASCH,Third Party Payments,ECA,21/05/2013,12-11911,445.7,Sherwood Grange Care Ltd (In Admins
Nottinghamshire County Council,1111/1001,Adult Social Care and Health,ASCH,Third Party Payments,ECA,21/05/2013,12-11912,445.7,Sherwood Grange Care Ltd (In Admins
Nottinghamshire County Council,1111/1001,Adult Social Care and Health,ASCH,Third Party Payments,ECA,21/05/2013,12-11915,445.7,Sherwood Grange Care Ltd (In Admins
Nottinghamshire County Council,1111/1001,Adult Social Care and Health,ASCH,Third Party Payments,ECA,21/05/2013,12-11916,445.7,Sherwood Grange Care Ltd (In Admins
Nottinghamshire County Council,1111/1001,Adult Social Care and Health,ASCH,Third Party Payments,ECA,21/05/2013,12-11918,445.7,Sherwood Grange Care Ltd (In Admins
Nottinghamshire County Council,1111/1001,Adult Social Care and Health,ASCH,Third Party Payments,ECA,21/05/2013,12-11919,445.7,Sherwood Grange Care Ltd (In Admins
Nottinghamshire County Council,1111/1001,Adult Social Care and Health,ASCH,Third Party Payments,ECA,21/05/2013,12-11921,445.7,Sherwood Grange Care Ltd (In Admins
Nottinghamshire County Council,1111/1001,Adult Social Care and Health,ASCH,Third Party Payments,ECA,21/05/2013,12-11925,445.7,Sherwood Grange Care Ltd (In Admins
Nottinghamshire County Council,1111/1001,Adult Social Care and Health,ASCH,Third Party Payments,ECA,21/05/2013,12-11926,445.7,Sherwood Grange Care Ltd (In Admins
Nottinghamshire County Council,1111/1001,Adult Social Care and Health,ASCH,Third Party Payments,ECA,21/05/2013,12-11927,1066.53,The Grange Nursing Home
Nottinghamshire County Council,1111/1001,Adult Social Care and Health,ASCH,Third Party Payments,ECA,21/05/2013,12-11928,445.7,The Grange Nursing Home
Nottinghamshire County Council,1111/1001,Adult Social Care and Health,ASCH,Third Party Payments,ECA,21/05/2013,12-11929,598.4,Haddon House
Nottinghamshire County Council,1111/1001,Adult Social Care and Health,ASCH,Third Party Payments,ECA,21/05/2013,12-11930,445.7,Haddon House
Nottinghamshire County Council,1111/1001,Adult Social Care and Health,ASCH,Third Party Payments,ECA,21/05/2013,12-12049,445.7,Hawthorne Nursing Home
Nottinghamshire County Council,1111/1001,Adult Social Care and Health,ASCH,Third Party Payments,ECA,21/05/2013,12-12050,445.7,Hawthorne Nursing Home
Nottinghamshire County Council,1111/1001,Adult Social Care and Health,ASCH,Third Party Payments,ECA,21/05/2013,12-12051,445.7,Hawthorne Nursing Home
Nottinghamshire County Council,1111/1001,Adult Social Care and Health,ASCH,Third Party Payments,ECA,21/05/2013,12-12052,598.4,Hawthorne Nursing Home
Nottinghamshire County Council,1111/1001,Adult Social Care and Health,ASCH,Third Party Payments,ECA,21/05/2013,12-12053,445.7,Hawthorne Nursing Home
Nottinghamshire County Council,1111/1001,Adult Social Care and Health,ASCH,Third Party Payments,ECA,21/05/2013,12-12054,445.7,Hawthorne Nursing Home
Nottinghamshire County Council,1111/1001,Adult Social Care and Health,ASCH,Third Party Payments,ECA,21/05/2013,12-12055,445.7,Hawthorne Nursing Home
Nottinghamshire County Council,1111/1001,Adult Social Care and Health,ASCH,Third Party Payments,ECA,21/05/2013,12-12056,445.7,Hawthorne Nursing Home
Nottinghamshire County Council,1111/1001,Adult Social Care and Health,ASCH,Third Party Payments,ECA,21/05/2013,12-12057,445.7,Hawthorne Nursing Home
Nottinghamshire County Council,1111/1001,Adult Social Care and Health,ASCH,Third Party Payments,ECA,21/05/2013,12-12068,445.7,Hazel Grove Nursing Home
Nottinghamshire County Council,1111/1001,Adult Social Care and Health,ASCH,Third Party Payments,ECA,21/05/2013,12-12069,445.7,Hazel Grove Nursing Home
Nottinghamshire County Council,1111/1001,Adult Social Care and Health,ASCH,Third Party Payments,ECA,21/05/2013,12-12070,445.7,Hazel Grove Nursing Home
Nottinghamshire County Council,1111/1001,Adult Social Care and Health,ASCH,Third Party Payments,ECA,21/05/2013,12-12071,445.7,Hazel Grove Nursing Home
Nottinghamshire County Council,1111/1001,Adult Social Care and Health,ASCH,Third Party Payments,ECA,21/05/2013,12-12074,598.4,Hazel Grove Nursing Home
Nottinghamshire County Council,1111/1001,Adult Social Care and Health,ASCH,Third Party Payments,ECA,21/05/2013,12-12075,445.7,Hazel Grove Nursing Home
Nottinghamshire County Council,1111/1001,Adult Social Care and Health,ASCH,Third Party Payments,ECA,21/05/2013,12-12077,445.7,Hazel Grove Nursing Home
Nottinghamshire County Council,1111/1001,Adult Social Care and Health,ASCH,Third Party Payments,ECA,21/05/2013,12-12079,445.7,Hazel Grove Nursing Home
Nottinghamshire County Council,1111/1001,Adult Social Care and Health,ASCH,Third Party Payments,ECA,21/05/2013,12-12080,445.7,Hazel Grove Nursing Home
Nottinghamshire County Council,1111/1001,Adult Social Care and Health,ASCH,Third Party Payments,ECA,21/05/2013,12-12081,445.7,Hazel Grove Nursing Home
Nottinghamshire County Council,1111/1001,Adult Social Care and Health,ASCH,Third Party Payments,ECA,21/05/2013,12-12088,445.7,Carisbrooke Nursing Home
Nottinghamshire County Council,1111/1001,Adult Social Care and Health,ASCH,Third Party Payments,ECA,21/05/2013,12-12099,598.4,Craegmoor Healthcare
Nottinghamshire County Council,1111/1001,Adult Social Care and Health,ASCH,Third Party Payments,ECA,21/05/2013,12-12116,445.7,Four Seasons Homes (Ilkeston) Limit
Nottinghamshire County Council,1111/1001,Adult Social Care and Health,ASCH,Third Party Payments,ECA,21/05/2013,12-12117,598.4,Four Seasons Homes (Ilkeston) Limit
Nottinghamshire County Council,1111/1001,Adult Social Care and Health,ASCH,Third Party Payments,ECA,21/05/2013,12-12118,445.7,Four Seasons Homes (Ilkeston) Limit
Nottinghamshire County Council,1111/1001,Adult Social Care and Health,ASCH,Third Party Payments,ECA,21/05/2013,12-12120,445.7,Four Seasons Homes (Ilkeston) Limit
Nottinghamshire County Council,1111/1001,Adult Social Care and Health,ASCH,Third Party Payments,ECA,21/05/2013,12-12121,445.7,Four Seasons Homes (Ilkeston) Limit
Nottinghamshire County Council,1111/1001,Adult Social Care and Health,ASCH,Third Party Payments,ECA,21/05/2013,12-12122,445.7,Four Seasons Homes (Ilkeston) Limit
Nottinghamshire County Council,1111/1001,Adult Social Care and Health,ASCH,Third Party Payments,ECA,21/05/2013,12-12123,445.7,Four Seasons Homes (Ilkeston) Limit
Nottinghamshire County Council,1111/1001,Adult Social Care and Health,ASCH,Third Party Payments,ECA,21/05/2013,12-12159,445.7,Beeston Lodge Nursing Home
Nottinghamshire County Council,1111/1001,Adult Social Care and Health,ASCH,Third Party Payments,ECA,21/05/2013,12-12161,445.7,Beeston Lodge Nursing Home
Nottinghamshire County Council,1111/1001,Adult Social Care and Health,ASCH,Third Party Payments,ECA,21/05/2013,12-12162,445.7,Beeston Lodge Nursing Home
Nottinghamshire County Council,1111/1001,Adult Social Care and Health,ASCH,Third Party Payments,ECA,21/05/2013,12-12163,445.7,Beeston Lodge Nursing Home
Nottinghamshire County Council,1111/1001,Adult Social Care and Health,ASCH,Third Party Payments,ECA,21/05/2013,12-12164,445.7,Beeston Lodge Nursing Home
Nottinghamshire County Council,1111/1001,Adult Social Care and Health,ASCH,Third Party Payments,ECA,21/05/2013,12-12165,445.7,Beeston Lodge Nursing Home
Nottinghamshire County Council,1111/1001,Adult Social Care and Health,ASCH,Third Party Payments,ECA,21/05/2013,12-12166,445.7,Beeston Lodge Nursing Home
Nottinghamshire County Council,1111/1001,Adult Social Care and Health,ASCH,Third Party Payments,ECA,21/05/2013,12-12168,445.7,Beeston Lodge Nursing Home
Nottinghamshire County Council,1111/1001,Adult Social Care and Health,ASCH,Third Party Payments,ECA,21/05/2013,12-12169,445.7,Beeston Lodge Nursing Home
Nottinghamshire County Council,1111/1001,Adult Social Care and Health,ASCH,Third Party Payments,ECA,21/05/2013,12-12171,445.7,Beeston Lodge Nursing Home
Nottinghamshire County Council,1111/1001,Adult Social Care and Health,ASCH,Third Party Payments,ECA,21/05/2013,12-12172,445.7,Beeston Lodge Nursing Home
Nottinghamshire County Council,1111/1001,Adult Social Care and Health,ASCH,Third Party Payments,ECA,21/05/2013,12-12173,445.7,Beeston Lodge Nursing Home
Nottinghamshire County Council,1111/1001,Adult Social Care and Health,ASCH,Third Party Payments,ECA,21/05/2013,12-12199,445.7,Eton Park Nursing Home
Nottinghamshire County Council,1111/1001,Adult Social Care and Health,ASCH,Third Party Payments,ECA,21/05/2013,12-12201,445.7,Eton Park Nursing Home
Nottinghamshire County Council,1111/1001,Adult Social Care and Health,ASCH,Third Party Payments,ECA,21/05/2013,12-12202,445.7,Eton Park Nursing Home
Nottinghamshire County Council,1111/1001,Adult Social Care and Health,ASCH,Third Party Payments,ECA,21/05/2013,12-12203,445.7,Eton Park Nursing Home
Nottinghamshire County Council,1111/1001,Adult Social Care and Health,ASCH,Third Party Payments,ECA,21/05/2013,12-12204,445.7,Eton Park Nursing Home
Nottinghamshire County Council,1111/1001,Adult Social Care and Health,ASCH,Third Party Payments,ECA,21/05/2013,12-12205,445.7,Eton Park Nursing Home
Nottinghamshire County Council,1111/1001,Adult Social Care and Health,ASCH,Third Party Payments,ECA,21/05/2013,12-12206,445.7,Eton Park Nursing Home
Nottinghamshire County Council,1111/1001,Adult Social Care and Health,ASCH,Third Party Payments,ECA,21/05/2013,12-12209,445.7,Eton Park Residential Home
Nottinghamshire County Council,1111/1001,Adult Social Care and Health,ASCH,Third Party Payments,ECA,21/05/2013,12-12214,445.7,Eton Park Residential Home
Nottinghamshire County Council,1111/1001,Adult Social Care and Health,ASCH,Third Party Payments,ECA,21/05/2013,12-12231,445.7,Aj & Sa Verjee
Nottinghamshire County Council,1111/1001,Adult Social Care and Health,ASCH,Third Party Payments,ECA,21/05/2013,12-12232,445.7,Aj & Sa Verjee
Nottinghamshire County Council,1111/1001,Adult Social Care and Health,ASCH,Third Party Payments,ECA,21/05/2013,12-12233,445.7,Aj & Sa Verjee
Nottinghamshire County Council,1111/1001,Adult Social Care and Health,ASCH,Third Party Payments,ECA,21/05/2013,12-12234,445.7,Aj & Sa Verjee
Nottinghamshire County Council,1111/1001,Adult Social Care and Health,ASCH,Third Party Payments,ECA,21/05/2013,12-12237,705.79,Aj & Sa Verjee
Nottinghamshire County Council,1111/1001,Adult Social Care and Health,ASCH,Third Party Payments,ECA,21/05/2013,12-12240,439.16,Eagle Nursing Home
Nottinghamshire County Council,1111/1001,Adult Social Care and Health,ASCH,Third Party Payments,ECA,21/05/2013,12-12252,445.7,Adbolton Hall Nursing Home
Nottinghamshire County Council,1111/1001,Adult Social Care and Health,ASCH,Third Party Payments,ECA,21/05/2013,12-12253,445.7,Adbolton Hall Nursing Home
Nottinghamshire County Council,1111/1001,Adult Social Care and Health,ASCH,Third Party Payments,ECA,21/05/2013,12-12254,445.39,Adbolton Hall Nursing Home
Nottinghamshire County Council,1111/1001,Adult Social Care and Health,ASCH,Third Party Payments,ECA,21/05/2013,12-12255,445.7,Adbolton Hall Nursing Home
Nottinghamshire County Council,1111/1001,Adult Social Care and Health,ASCH,Third Party Payments,ECA,21/05/2013,12-12256,445.7,Adbolton Hall Nursing Home
Nottinghamshire County Council,1111/1001,Adult Social Care and Health,ASCH,Third Party Payments,ECA,21/05/2013,12-12257,445.7,Adbolton Hall Nursing Home
Nottinghamshire County Council,1111/1001,Adult Social Care and Health,ASCH,Third Party Payments,ECA,21/05/2013,12-12258,445.7,Adbolton Hall Nursing Home
Nottinghamshire County Council,1111/1001,Adult Social Care and Health,ASCH,Third Party Payments,ECA,21/05/2013,12-12259,445.7,Adbolton Hall Nursing Home
Nottinghamshire County Council,1111/1001,Adult Social Care and Health,ASCH,Third Party Payments,ECA,21/05/2013,12-12260,445.7,Adbolton Hall Nursing Home
Nottinghamshire County Council,1111/1001,Adult Social Care and Health,ASCH,Third Party Payments,ECA,21/05/2013,12-12261,445.7,Adbolton Hall Nursing Home
Nottinghamshire County Council,1111/1001,Adult Social Care and Health,ASCH,Third Party Payments,ECA,21/05/2013,12-12262,445.7,Adbolton Hall Nursing Home
Nottinghamshire County Council,1111/1001,Adult Social Care and Health,ASCH,Third Party Payments,ECA,21/05/2013,12-12264,445.7,Adbolton Hall Nursing Home
Nottinghamshire County Council,1111/1001,Adult Social Care and Health,ASCH,Third Party Payments,ECA,21/05/2013,12-12266,445.7,Adbolton Hall Nursing Home
Nottinghamshire County Council,1111/1001,Adult Social Care and Health,ASCH,Third Party Payments,ECA,21/05/2013,12-12267,445.7,Adbolton Hall Nursing Home
Nottinghamshire County Council,1111/1001,Adult Social Care and Health,ASCH,Third Party Payments,ECA,21/05/2013,12-12328,445.7,Elmbank Nursing Home
Nottinghamshire County Council,1111/1001,Adult Social Care and Health,ASCH,Third Party Payments,ECA,21/05/2013,12-12329,-652.2,Elmbank Nursing Home
Nottinghamshire County Council,1111/1001,Adult Social Care and Health,ASCH,Third Party Payments,ECA,21/05/2013,12-12330,445.7,Elmbank Nursing Home
Nottinghamshire County Council,1111/1001,Adult Social Care and Health,ASCH,Third Party Payments,ECA,21/05/2013,12-12332,445.7,Elmbank Nursing Home
Nottinghamshire County Council,1111/1001,Adult Social Care and Health,ASCH,Third Party Payments,ECA,21/05/2013,12-12333,445.7,Elmbank Nursing Home
Nottinghamshire County Council,1111/1001,Adult Social Care and Health,ASCH,Third Party Payments,ECA,21/05/2013,12-12334,445.7,Elmbank Nursing Home
Nottinghamshire County Council,1111/1001,Adult Social Care and Health,ASCH,Third Party Payments,ECA,21/05/2013,12-12335,445.7,Elmbank Nursing Home
Nottinghamshire County Council,1111/1001,Adult Social Care and Health,ASCH,Third Party Payments,ECA,21/05/2013,12-12346,445.7,Park House Nursing Home
Nottinghamshire County Council,1111/1001,Adult Social Care and Health,ASCH,Third Party Payments,ECA,21/05/2013,12-12348,434.8,Park House Nursing Home
Nottinghamshire County Council,1111/1001,Adult Social Care and Health,ASCH,Third Party Payments,ECA,21/05/2013,12-12350,445.7,Park House Nursing Home
Nottinghamshire County Council,1111/1001,Adult Social Care and Health,ASCH,Third Party Payments,ECA,21/05/2013,12-12351,445.7,Park House Nursing Home
Nottinghamshire County Council,1111/1001,Adult Social Care and Health,ASCH,Third Party Payments,ECA,21/05/2013,12-12369,445.7,Rutland Manor Nursing Home
Nottinghamshire County Council,1111/1001,Adult Social Care and Health,ASCH,Third Party Payments,ECA,21/05/2013,12-12370,445.7,Rutland Manor Nursing Home
Nottinghamshire County Council,1111/1001,Adult Social Care and Health,ASCH,Third Party Payments,ECA,21/05/2013,12-12371,-652.2,Rutland Manor Nursing Home
Nottinghamshire County Council,1111/1001,Adult Social Care and Health,ASCH,Third Party Payments,ECA,21/05/2013,12-12372,-652.2,Rutland Manor Nursing Home
Nottinghamshire County Council,1111/1001,Adult Social Care and Health,ASCH,Third Party Payments,ECA,21/05/2013,12-12386,445.7,Mansfield Manor Care Home
Nottinghamshire County Council,1111/1001,Adult Social Care and Health,ASCH,Third Party Payments,ECA,21/05/2013,12-12387,445.7,Mansfield Manor Care Home
Nottinghamshire County Council,1111/1001,Adult Social Care and Health,ASCH,Third Party Payments,ECA,21/05/2013,12-12389,445.7,Mansfield Manor Care Home
Nottinghamshire County Council,1111/1001,Adult Social Care and Health,ASCH,Third Party Payments,ECA,21/05/2013,12-12390,445.7,Mansfield Manor Care Home
Nottinghamshire County Council,1111/1001,Adult Social Care and Health,ASCH,Third Party Payments,ECA,21/05/2013,12-12394,445.7,Mansfield Manor Care Home
Nottinghamshire County Council,1111/1001,Adult Social Care and Health,ASCH,Third Party Payments,ECA,21/05/2013,12-12395,445.7,Mansfield Manor Care Home
Nottinghamshire County Council,1111/1001,Adult Social Care and Health,ASCH,Third Party Payments,ECA,21/05/2013,12-12396,445.7,Mansfield Manor Care Home
Nottinghamshire County Council,1111/1001,Adult Social Care and Health,ASCH,Third Party Payments,ECA,21/05/2013,12-12398,445.7,Mansfield Manor Care Home
Nottinghamshire County Council,1111/1001,Adult Social Care and Health,ASCH,Third Party Payments,ECA,21/05/2013,12-12399,445.7,Mansfield Manor Care Home
Nottinghamshire County Council,1111/1001,Adult Social Care and Health,ASCH,Third Party Payments,ECA,21/05/2013,12-12400,445.7,Mansfield Manor Care Home
Nottinghamshire County Council,1111/1001,Adult Social Care and Health,ASCH,Third Party Payments,ECA,21/05/2013,12-12401,445.7,Mansfield Manor Care Home
Nottinghamshire County Council,1111/1001,Adult Social Care and Health,ASCH,Third Party Payments,ECA,21/05/2013,12-12402,445.7,Mansfield Manor Care Home
Nottinghamshire County Council,1111/1001,Adult Social Care and Health,ASCH,Third Party Payments,ECA,21/05/2013,12-12432,445.7,Balmore Country House
Nottinghamshire County Council,1111/1001,Adult Social Care and Health,ASCH,Third Party Payments,ECA,21/05/2013,12-12433,445.7,Balmore Country House
Nottinghamshire County Council,1111/1001,Adult Social Care and Health,ASCH,Third Party Payments,ECA,21/05/2013,12-12434,445.7,Balmore Country House
Nottinghamshire County Council,1111/1001,Adult Social Care and Health,ASCH,Third Party Payments,ECA,21/05/2013,12-12435,445.7,Balmore Country House
Nottinghamshire County Council,1111/1001,Adult Social Care and Health,ASCH,Third Party Payments,ECA,21/05/2013,12-12438,445.7,Balmore Country House
Nottinghamshire County Council,1111/1001,Adult Social Care and Health,ASCH,Third Party Payments,ECA,21/05/2013,12-12442,445.7,Balmore Country House
Nottinghamshire County Council,1111/1001,Adult Social Care and Health,ASCH,Third Party Payments,ECA,21/05/2013,12-12443,445.7,Balmore Country House
Nottinghamshire County Council,1111/1001,Adult Social Care and Health,ASCH,Third Party Payments,ECA,21/05/2013,12-12445,445.7,Balmore Country House
Nottinghamshire County Council,1111/1001,Adult Social Care and Health,ASCH,Third Party Payments,ECA,21/05/2013,12-12446,445.7,Balmore Country House
Nottinghamshire County Council,1111/1001,Adult Social Care and Health,ASCH,Third Party Payments,ECA,21/05/2013,12-12458,445.7,Sycamore Lodge Nursing Home
Nottinghamshire County Council,1111/1001,Adult Social Care and Health,ASCH,Third Party Payments,ECA,21/05/2013,12-12466,445.7,Field House Nursing Home
Nottinghamshire County Council,1111/1001,Adult Social Care and Health,ASCH,Third Party Payments,ECA,21/05/2013,12-12467,445.7,Field House Nursing Home
Nottinghamshire County Council,1111/1001,Adult Social Care and Health,ASCH,Third Party Payments,ECA,21/05/2013,12-12470,445.7,Field House Nursing Home
Nottinghamshire County Council,1111/1001,Adult Social Care and Health,ASCH,Third Party Payments,ECA,21/05/2013,12-12471,445.7,Field House Nursing Home
Nottinghamshire County Council,1111/1001,Adult Social Care and Health,ASCH,Third Party Payments,ECA,21/05/2013,12-12473,445.7,Field House Nursing Home
Nottinghamshire County Council,1111/1001,Adult Social Care and Health,ASCH,Third Party Payments,ECA,21/05/2013,12-12475,445.7,Field House Nursing Home
Nottinghamshire County Council,1111/1001,Adult Social Care and Health,ASCH,Third Party Payments,ECA,21/05/2013,12-12494,445.7,Giltbrook Carehomes Ltd
Nottinghamshire County Council,1111/1001,Adult Social Care and Health,ASCH,Third Party Payments,ECA,21/05/2013,12-12495,445.7,Giltbrook Carehomes Ltd
Nottinghamshire County Council,1111/1001,Adult Social Care and Health,ASCH,Third Party Payments,ECA,21/05/2013,12-12500,2293.6,Giltbrook Carehomes Ltd
Nottinghamshire County Council,1111/1001,Adult Social Care and Health,ASCH,Third Party Payments,ECA,21/05/2013,12-12502,445.7,Giltbrook Carehomes Ltd
Nottinghamshire County Council,1111/1001,Adult Social Care and Health,ASCH,Third Party Payments,ECA,21/05/2013,12-12503,445.7,Giltbrook Carehomes Ltd
Nottinghamshire County Council,1111/1001,Adult Social Care and Health,ASCH,Third Party Payments,ECA,21/05/2013,12-12504,445.7,Giltbrook Carehomes Ltd
Nottinghamshire County Council,1111/1001,Adult Social Care and Health,ASCH,Third Party Payments,ECA,21/05/2013,12-12507,445.7,Giltbrook Carehomes Ltd
Nottinghamshire County Council,1111/1001,Adult Social Care and Health,ASCH,Third Party Payments,ECA,21/05/2013,12-12510,-652.2,The Firs
Nottinghamshire County Council,1111/1001,Adult Social Care and Health,ASCH,Third Party Payments,ECA,21/05/2013,12-12535,598.4,Lowmoor Nursing Home
Nottinghamshire County Council,1111/1001,Adult Social Care and Health,ASCH,Third Party Payments,ECA,21/05/2013,12-12536,445.7,Lowmoor Nursing Home
Nottinghamshire County Council,1111/1001,Adult Social Care and Health,ASCH,Third Party Payments,ECA,21/05/2013,12-12537,445.7,Lowmoor Nursing Home
Nottinghamshire County Council,1111/1001,Adult Social Care and Health,ASCH,Third Party Payments,ECA,21/05/2013,12-12538,445.7,Lowmoor Nursing Home
Nottinghamshire County Council,1111/1001,Adult Social Care and Health,ASCH,Third Party Payments,ECA,21/05/2013,12-12539,445.7,Lowmoor Nursing Home
Nottinghamshire County Council,1111/1001,Adult Social Care and Health,ASCH,Third Party Payments,ECA,21/05/2013,12-12540,445.7,Lowmoor Nursing Home
Nottinghamshire County Council,1111/1001,Adult Social Care and Health,ASCH,Third Party Payments,ECA,21/05/2013,12-12541,445.7,Lowmoor Nursing Home
Nottinghamshire County Council,1111/1001,Adult Social Care and Health,ASCH,Third Party Payments,ECA,21/05/2013,12-12542,445.7,Lowmoor Nursing Home
Nottinghamshire County Council,1111/1001,Adult Social Care and Health,ASCH,Third Party Payments,ECA,21/05/2013,12-12544,445.7,Lowmoor Nursing Home
Nottinghamshire County Council,1111/1001,Adult Social Care and Health,ASCH,Third Party Payments,ECA,21/05/2013,12-12545,598.4,Lowmoor Nursing Home
Nottinghamshire County Council,1111/1001,Adult Social Care and Health,ASCH,Third Party Payments,ECA,21/05/2013,12-12608,445.7,Bramcote House Nursing Home
Nottinghamshire County Council,1111/1001,Adult Social Care and Health,ASCH,Third Party Payments,ECA,21/05/2013,12-12609,445.7,Bramcote House Nursing Home
Nottinghamshire County Council,1111/1001,Adult Social Care and Health,ASCH,Third Party Payments,ECA,21/05/2013,12-12612,445.7,Bramcote House Nursing Home
Nottinghamshire County Council,1111/1001,Adult Social Care and Health,ASCH,Third Party Payments,ECA,21/05/2013,12-12613,445.7,Bramcote House Nursing Home
Nottinghamshire County Council,1111/1001,Adult Social Care and Health,ASCH,Third Party Payments,ECA,21/05/2013,12-12617,2914.74,Melbourne House Nursing Home
Nottinghamshire County Council,1111/1001,Adult Social Care and Health,ASCH,Third Party Payments,ECA,21/05/2013,12-12629,445.7,Hallcroft Nursing Home
Nottinghamshire County Council,1111/1001,Adult Social Care and Health,ASCH,Third Party Payments,ECA,21/05/2013,12-12630,445.7,Hallcroft Nursing Home
Nottinghamshire County Council,1111/1001,Adult Social Care and Health,ASCH,Third Party Payments,ECA,21/05/2013,12-12632,445.7,Hallcroft Nursing Home
Nottinghamshire County Council,1111/1001,Adult Social Care and Health,ASCH,Third Party Payments,ECA,21/05/2013,12-12634,445.7,Hallcroft Nursing Home
Nottinghamshire County Council,1111/1001,Adult Social Care and Health,ASCH,Third Party Payments,ECA,21/05/2013,12-12635,445.7,Hallcroft Nursing Home
Nottinghamshire County Council,1111/1001,Adult Social Care and Health,ASCH,Third Party Payments,ECA,21/05/2013,12-12637,445.7,Hallcroft Nursing Home
Nottinghamshire County Council,1111/1001,Adult Social Care and Health,ASCH,Third Party Payments,ECA,21/05/2013,12-12638,445.7,Hallcroft Nursing Home
Nottinghamshire County Council,1111/1001,Adult Social Care and Health,ASCH,Third Party Payments,ECA,21/05/2013,12-12639,445.7,Hallcroft Nursing Home
Nottinghamshire County Council,1111/1001,Adult Social Care and Health,ASCH,Third Party Payments,ECA,21/05/2013,12-12641,445.7,Hallcroft Nursing Home
Nottinghamshire County Council,1111/1001,Adult Social Care and Health,ASCH,Third Party Payments,ECA,21/05/2013,12-12664,445.7,Foxby Hill N/R Home
Nottinghamshire County Council,1111/1001,Adult Social Care and Health,ASCH,Third Party Payments,ECA,21/05/2013,12-12665,445.7,Foxby Hill N/R Home
Nottinghamshire County Council,1111/1001,Adult Social Care and Health,ASCH,Third Party Payments,ECA,21/05/2013,12-12694,445.7,Broadgate Nursing Home
Nottinghamshire County Council,1111/1001,Adult Social Care and Health,ASCH,Third Party Payments,ECA,21/05/2013,12-12696,445.7,Broadgate Nursing Home
Nottinghamshire County Council,1111/1001,Adult Social Care and Health,ASCH,Third Party Payments,ECA,21/05/2013,12-12697,445.7,Broadgate Nursing Home
Nottinghamshire County Council,1111/1001,Adult Social Care and Health,ASCH,Third Party Payments,ECA,21/05/2013,12-12698,598.4,Broadgate Nursing Home
Nottinghamshire County Council,1111/1001,Adult Social Care and Health,ASCH,Third Party Payments,ECA,21/05/2013,12-12699,445.7,Broadgate Nursing Home
Nottinghamshire County Council,1111/1001,Adult Social Care and Health,ASCH,Third Party Payments,ECA,21/05/2013,12-12700,445.7,Broadgate Nursing Home
Nottinghamshire County Council,1111/1001,Adult Social Care and Health,ASCH,Third Party Payments,ECA,21/05/2013,12-12701,445.7,Broadgate Nursing Home
Nottinghamshire County Council,1111/1001,Adult Social Care and Health,ASCH,Third Party Payments,ECA,21/05/2013,12-12702,598.4,Broadgate Nursing Home
Nottinghamshire County Council,1111/1001,Adult Social Care and Health,ASCH,Third Party Payments,ECA,21/05/2013,12-12703,445.7,Byars Nursing Home
Nottinghamshire County Council,1111/1001,Adult Social Care and Health,ASCH,Third Party Payments,ECA,21/05/2013,12-12704,445.7,Byars Nursing Home
Nottinghamshire County Council,1111/1001,Adult Social Care and Health,ASCH,Third Party Payments,ECA,21/05/2013,12-12705,445.7,Byars Nursing Home
Nottinghamshire County Council,1111/1001,Adult Social Care and Health,ASCH,Third Party Payments,ECA,21/05/2013,12-12706,1754.73,Byars Nursing Home
Nottinghamshire County Council,1111/1001,Adult Social Care and Health,ASCH,Third Party Payments,ECA,21/05/2013,12-12707,445.7,Byars Nursing Home
Nottinghamshire County Council,1111/1001,Adult Social Care and Health,ASCH,Third Party Payments,ECA,21/05/2013,12-12708,445.7,Byars Nursing Home
Nottinghamshire County Council,1111/1001,Adult Social Care and Health,ASCH,Third Party Payments,ECA,21/05/2013,12-12709,445.7,Byars Nursing Home
Nottinghamshire County Council,1111/1001,Adult Social Care and Health,ASCH,Third Party Payments,ECA,21/05/2013,12-12710,445.7,Byars Nursing Home
Nottinghamshire County Council,1111/1001,Adult Social Care and Health,ASCH,Third Party Payments,ECA,21/05/2013,12-12711,445.7,Byars Nursing Home
Nottinghamshire County Council,1111/1001,Adult Social Care and Health,ASCH,Third Party Payments,ECA,21/05/2013,12-12712,445.7,Byars Nursing Home
Nottinghamshire County Council,1111/1001,Adult Social Care and Health,ASCH,Third Party Payments,ECA,21/05/2013,12-12713,445.7,Byars Nursing Home
Nottinghamshire County Council,1111/1001,Adult Social Care and Health,ASCH,Third Party Payments,ECA,21/05/2013,12-12724,445.7,Victoria Care Home
Nottinghamshire County Council,1111/1001,Adult Social Care and Health,ASCH,Third Party Payments,ECA,21/05/2013,12-12728,445.7,Victoria Care Home
Nottinghamshire County Council,1111/1001,Adult Social Care and Health,ASCH,Third Party Payments,ECA,21/05/2013,12-12729,445.7,Victoria Care Home
Nottinghamshire County Council,1111/1001,Adult Social Care and Health,ASCH,Third Party Payments,ECA,21/05/2013,12-12732,445.7,Victoria Care Home
Nottinghamshire County Council,1111/1001,Adult Social Care and Health,ASCH,Third Party Payments,ECA,21/05/2013,12-12735,445.7,Victoria Care Home
Nottinghamshire County Council,1111/1001,Adult Social Care and Health,ASCH,Third Party Payments,ECA,21/05/2013,12-12738,445.7,Victoria Care Home
Nottinghamshire County Council,1111/1001,Adult Social Care and Health,ASCH,Third Party Payments,ECA,21/05/2013,12-12740,445.7,Victoria Care Home
Nottinghamshire County Council,1111/1001,Adult Social Care and Health,ASCH,Third Party Payments,ECA,21/05/2013,12-12747,445.7,Victoria Care Home
Nottinghamshire County Council,1111/1001,Adult Social Care and Health,ASCH,Third Party Payments,ECA,21/05/2013,12-12784,445.7,Woodleigh Christian Care Home
Nottinghamshire County Council,1111/1001,Adult Social Care and Health,ASCH,Third Party Payments,ECA,21/05/2013,12-12786,445.7,Woodleigh Christian Care Home
Nottinghamshire County Council,1111/1001,Adult Social Care and Health,ASCH,Third Party Payments,ECA,21/05/2013,12-12790,445.7,Woodleigh Christian Care Home
Nottinghamshire County Council,1111/1001,Adult Social Care and Health,ASCH,Third Party Payments,ECA,21/05/2013,12-12792,445.7,Woodleigh Christian Care Home
Nottinghamshire County Council,1111/1001,Adult Social Care and Health,ASCH,Third Party Payments,ECA,21/05/2013,12-12795,445.7,Woodleigh Christian Care Home
Nottinghamshire County Council,1111/1001,Adult Social Care and Health,ASCH,Third Party Payments,ECA,21/05/2013,12-12796,445.7,Woodleigh Christian Care Home
Nottinghamshire County Council,1111/1001,Adult Social Care and Health,ASCH,Third Party Payments,ECA,21/05/2013,12-12797,445.7,Woodleigh Christian Care Home
Nottinghamshire County Council,1111/1001,Adult Social Care and Health,ASCH,Third Party Payments,ECA,21/05/2013,12-12799,445.7,Woodleigh Christian Care Home
Nottinghamshire County Council,1111/1001,Adult Social Care and Health,ASCH,Third Party Payments,ECA,21/05/2013,12-12820,445.7,Millington Springs
Nottinghamshire County Council,1111/1001,Adult Social Care and Health,ASCH,Third Party Payments,ECA,21/05/2013,12-12821,445.7,Millington Springs
Nottinghamshire County Council,1111/1001,Adult Social Care and Health,ASCH,Third Party Payments,ECA,21/05/2013,12-12822,-652.2,Millington Springs
Nottinghamshire County Council,1111/1001,Adult Social Care and Health,ASCH,Third Party Payments,ECA,21/05/2013,12-12823,445.7,Millington Springs
Nottinghamshire County Council,1111/1001,Adult Social Care and Health,ASCH,Third Party Payments,ECA,21/05/2013,12-12825,445.7,Millington Springs
Nottinghamshire County Council,1111/1001,Adult Social Care and Health,ASCH,Third Party Payments,ECA,21/05/2013,12-12826,2152.75,Millington Springs
Nottinghamshire County Council,1111/1001,Adult Social Care and Health,ASCH,Third Party Payments,ECA,21/05/2013,12-12827,445.7,Millington Springs
Nottinghamshire County Council,1111/1001,Adult Social Care and Health,ASCH,Third Party Payments,ECA,21/05/2013,12-12828,445.7,Millington Springs
Nottinghamshire County Council,1111/1001,Adult Social Care and Health,ASCH,Third Party Payments,ECA,21/05/2013,12-12830,450.8,Millington Springs
Nottinghamshire County Council,1111/1001,Adult Social Care and Health,ASCH,Third Party Payments,ECA,21/05/2013,12-12831,445.7,Millington Springs
Nottinghamshire County Council,1111/1001,Adult Social Care and Health,ASCH,Third Party Payments,ECA,21/05/2013,12-12832,445.7,Millington Springs
Nottinghamshire County Council,1111/1001,Adult Social Care and Health,ASCH,Third Party Payments,ECA,21/05/2013,12-12834,2138.31,Millington Springs
Nottinghamshire County Council,1111/1001,Adult Social Care and Health,ASCH,Third Party Payments,ECA,21/05/2013,12-12836,445.7,Millington Springs
Nottinghamshire County Council,1111/1001,Adult Social Care and Health,ASCH,Third Party Payments,ECA,21/05/2013,12-12881,445.7,Lound Hall Nursing Home
Nottinghamshire County Council,1111/1001,Adult Social Care and Health,ASCH,Third Party Payments,ECA,21/05/2013,12-12882,445.7,Lound Hall Nursing Home
Nottinghamshire County Council,1111/1001,Adult Social Care and Health,ASCH,Third Party Payments,ECA,21/05/2013,12-12885,445.7,Lound Hall Nursing Home
Nottinghamshire County Council,1111/1001,Adult Social Care and Health,ASCH,Third Party Payments,ECA,21/05/2013,12-12888,-70.33,Lound Hall Nursing Home
Nottinghamshire County Council,1111/1001,Adult Social Care and Health,ASCH,Third Party Payments,ECA,21/05/2013,12-12910,445.7,The Shires Care Centre
Nottinghamshire County Council,1111/1001,Adult Social Care and Health,ASCH,Third Party Payments,ECA,21/05/2013,12-12912,445.7,The Shires Care Centre
Nottinghamshire County Council,1111/1001,Adult Social Care and Health,ASCH,Third Party Payments,ECA,21/05/2013,12-12913,445.7,The Shires Care Centre
Nottinghamshire County Council,1111/1001,Adult Social Care and Health,ASCH,Third Party Payments,ECA,21/05/2013,12-12914,445.7,The Shires Care Centre
Nottinghamshire County Council,1111/1001,Adult Social Care and Health,ASCH,Third Party Payments,ECA,21/05/2013,12-12920,217.4,The Shires Care Centre
Nottinghamshire County Council,1111/1001,Adult Social Care and Health,ASCH,Third Party Payments,ECA,21/05/2013,12-12924,445.7,The Shires Care Centre
Nottinghamshire County Council,1111/1001,Adult Social Care and Health,ASCH,Third Party Payments,ECA,21/05/2013,12-12926,445.7,The Shires Care Centre
Nottinghamshire County Council,1111/1001,Adult Social Care and Health,ASCH,Third Party Payments,ECA,21/05/2013,12-12929,598.4,The Shires Care Centre
Nottinghamshire County Council,1111/1001,Adult Social Care and Health,ASCH,Third Party Payments,ECA,21/05/2013,12-12952,445.7,Cherry Holt Care Home
Nottinghamshire County Council,1111/1001,Adult Social Care and Health,ASCH,Third Party Payments,ECA,21/05/2013,12-12953,445.7,Cherry Holt Care Home
Nottinghamshire County Council,1111/1001,Adult Social Care and Health,ASCH,Third Party Payments,ECA,21/05/2013,12-12954,445.7,Cherry Holt Care Home
Nottinghamshire County Council,1111/1001,Adult Social Care and Health,ASCH,Third Party Payments,ECA,21/05/2013,12-12956,616.51,Cherry Holt Care Home
Nottinghamshire County Council,1111/1001,Adult Social Care and Health,ASCH,Third Party Payments,ECA,21/05/2013,12-12957,445.7,Cherry Holt Care Home
Nottinghamshire County Council,1111/1001,Adult Social Care and Health,ASCH,Third Party Payments,ECA,21/05/2013,12-12959,445.7,Cherry Holt Care Home
Nottinghamshire County Council,1111/1001,Adult Social Care and Health,ASCH,Third Party Payments,ECA,21/05/2013,12-12960,445.7,Cherry Holt Care Home
Nottinghamshire County Council,1111/1001,Adult Social Care and Health,ASCH,Third Party Payments,ECA,21/05/2013,12-12961,445.7,Cherry Holt Care Home
Nottinghamshire County Council,1111/1001,Adult Social Care and Health,ASCH,Third Party Payments,ECA,21/05/2013,12-12963,445.7,Cherry Holt Care Home
Nottinghamshire County Council,1111/1001,Adult Social Care and Health,ASCH,Third Party Payments,ECA,21/05/2013,12-12965,445.7,Cherry Holt Care Home
Nottinghamshire County Council,1111/1001,Adult Social Care and Health,ASCH,Third Party Payments,ECA,21/05/2013,12-12969,445.7,Cherry Holt Care Home
Nottinghamshire County Council,1111/1001,Adult Social Care and Health,ASCH,Third Party Payments,ECA,21/05/2013,12-12970,598.4,Cherry Holt Care Home
Nottinghamshire County Council,1111/1001,Adult Social Care and Health,ASCH,Third Party Payments,ECA,21/05/2013,12-12972,445.7,Cherry Holt Care Home
Nottinghamshire County Council,1111/1001,Adult Social Care and Health,ASCH,Third Party Payments,ECA,21/05/2013,12-12974,445.7,Cherry Holt Care Home
Nottinghamshire County Council,1111/1001,Adult Social Care and Health,ASCH,Third Party Payments,ECA,21/05/2013,12-12976,445.7,Cherry Holt Care Home
Nottinghamshire County Council,1111/1001,Adult Social Care and Health,ASCH,Third Party Payments,ECA,21/05/2013,12-12977,219.58,Cherry Holt Care Home
Nottinghamshire County Council,1111/1001,Adult Social Care and Health,ASCH,Third Party Payments,ECA,21/05/2013,12-12979,141.16,Cherry Holt Care Home
Nottinghamshire County Council,1111/1001,Adult Social Care and Health,ASCH,Third Party Payments,ECA,21/05/2013,12-12982,445.7,Cherry Holt Care Home
Nottinghamshire County Council,1111/1001,Adult Social Care and Health,ASCH,Third Party Payments,ECA,21/05/2013,12-12983,445.7,Cherry Holt Care Home
Nottinghamshire County Council,1111/1001,Adult Social Care and Health,ASCH,Third Party Payments,ECA,21/05/2013,12-12984,445.7,Cherry Holt Care Home
Nottinghamshire County Council,1111/1001,Adult Social Care and Health,ASCH,Third Party Payments,ECA,21/05/2013,12-13009,445.7,Stanton Hall Nursing Home
Nottinghamshire County Council,1111/1001,Adult Social Care and Health,ASCH,Third Party Payments,ECA,21/05/2013,12-13010,445.7,Stanton Hall Nursing Home
Nottinghamshire County Council,1111/1001,Adult Social Care and Health,ASCH,Third Party Payments,ECA,21/05/2013,12-13012,445.7,Stoke House Nursing Home
Nottinghamshire County Council,1111/1001,Adult Social Care and Health,ASCH,Third Party Payments,ECA,21/05/2013,12-13013,445.7,Stoke House Nursing Home
Nottinghamshire County Council,1111/1001,Adult Social Care and Health,ASCH,Third Party Payments,ECA,21/05/2013,12-13014,445.7,Stoke House Nursing Home
Nottinghamshire County Council,1111/1001,Adult Social Care and Health,ASCH,Third Party Payments,ECA,21/05/2013,12-13015,445.7,Stoke House Nursing Home
Nottinghamshire County Council,1111/1001,Adult Social Care and Health,ASCH,Third Party Payments,ECA,21/05/2013,12-13016,445.7,Stoke House Nursing Home
Nottinghamshire County Council,1111/1001,Adult Social Care and Health,ASCH,Third Party Payments,ECA,21/05/2013,12-13017,445.7,Stoke House Nursing Home
Nottinghamshire County Council,1111/1001,Adult Social Care and Health,ASCH,Third Party Payments,ECA,21/05/2013,12-13018,445.7,Stoke House Nursing Home
Nottinghamshire County Council,1111/1001,Adult Social Care and Health,ASCH,Third Party Payments,ECA,21/05/2013,12-13019,445.7,Stoke House Nursing Home
Nottinghamshire County Council,1111/1001,Adult Social Care and Health,ASCH,Third Party Payments,ECA,21/05/2013,12-13020,445.7,Stoke House Nursing Home
Nottinghamshire County Council,1111/1001,Adult Social Care and Health,ASCH,Third Party Payments,ECA,21/05/2013,12-13021,445.7,Stoke House Nursing Home
Nottinghamshire County Council,1111/1001,Adult Social Care and Health,ASCH,Third Party Payments,ECA,21/05/2013,12-13022,445.7,Stoke House Nursing Home
Nottinghamshire County Council,1111/1001,Adult Social Care and Health,ASCH,Third Party Payments,ECA,21/05/2013,12-13023,445.7,Stoke House Nursing Home
Nottinghamshire County Council,1111/1001,Adult Social Care and Health,ASCH,Third Party Payments,ECA,21/05/2013,12-13024,445.7,Stoke House Nursing Home
Nottinghamshire County Council,1111/1001,Adult Social Care and Health,ASCH,Third Party Payments,ECA,21/05/2013,12-13025,445.7,Stoke House Nursing Home
Nottinghamshire County Council,1111/1001,Adult Social Care and Health,ASCH,Third Party Payments,ECA,21/05/2013,12-13026,445.7,Stoke House Nursing Home
Nottinghamshire County Council,1111/1001,Adult Social Care and Health,ASCH,Third Party Payments,ECA,21/05/2013,12-13027,598.4,Stoke House Nursing Home
Nottinghamshire County Council,1111/1001,Adult Social Care and Health,ASCH,Third Party Payments,ECA,21/05/2013,12-13028,445.7,Stoke House Nursing Home
Nottinghamshire County Council,1111/1001,Adult Social Care and Health,ASCH,Third Party Payments,ECA,21/05/2013,12-13086,445.7,Alexandra Nursing Home
Nottinghamshire County Council,1111/1001,Adult Social Care and Health,ASCH,Third Party Payments,ECA,21/05/2013,12-13128,445.7,Ernhale Lodge Nursing Home
Nottinghamshire County Council,1111/1001,Adult Social Care and Health,ASCH,Third Party Payments,ECA,21/05/2013,12-13129,445.7,Ernhale Lodge Nursing Home
Nottinghamshire County Council,1111/1001,Adult Social Care and Health,ASCH,Third Party Payments,ECA,21/05/2013,12-13130,445.7,Ernhale Lodge Nursing Home
Nottinghamshire County Council,1111/1001,Adult Social Care and Health,ASCH,Third Party Payments,ECA,21/05/2013,12-13133,445.7,Ernhale Lodge Nursing Home
Nottinghamshire County Council,1111/1001,Adult Social Care and Health,ASCH,Third Party Payments,ECA,21/05/2013,12-13134,445.7,Ernhale Lodge Nursing Home
Nottinghamshire County Council,1111/1001,Adult Social Care and Health,ASCH,Third Party Payments,ECA,21/05/2013,12-13135,445.7,Ernhale Lodge Nursing Home
Nottinghamshire County Council,1111/1001,Adult Social Care and Health,ASCH,Third Party Payments,ECA,21/05/2013,12-13138,445.7,Ernhale Lodge Nursing Home
Nottinghamshire County Council,1111/1001,Adult Social Care and Health,ASCH,Third Party Payments,ECA,21/05/2013,12-13190,880.5,Willow Brook Nursing Home
Nottinghamshire County Council,1111/1001,Adult Social Care and Health,ASCH,Third Party Payments,ECA,21/05/2013,12-13191,880.5,Willow Brook Nursing Home
Nottinghamshire County Council,1111/1001,Adult Social Care and Health,ASCH,Third Party Payments,ECA,21/05/2013,12-13192,880.5,Willow Brook Nursing Home
Nottinghamshire County Council,1111/1001,Adult Social Care and Health,ASCH,Third Party Payments,ECA,21/05/2013,12-13195,880.5,Willow Brook Nursing Home
Nottinghamshire County Council,1111/1001,Adult Social Care and Health,ASCH,Third Party Payments,ECA,21/05/2013,12-13201,880.5,Willow Brook Nursing Home
Nottinghamshire County Council,1111/1001,Adult Social Care and Health,ASCH,Third Party Payments,ECA,21/05/2013,12-13202,880.5,Willow Brook Nursing Home
Nottinghamshire County Council,1111/1001,Adult Social Care and Health,ASCH,Third Party Payments,ECA,21/05/2013,12-13203,880.5,Willow Brook Nursing Home
Nottinghamshire County Council,1111/1001,Adult Social Care and Health,ASCH,Third Party Payments,ECA,21/05/2013,12-13205,880.5,Willow Brook Nursing Home
Nottinghamshire County Council,1111/1001,Adult Social Care and Health,ASCH,Third Party Payments,ECA,21/05/2013,12-13207,880.5,Willow Brook Nursing Home
Nottinghamshire County Council,1111/1001,Adult Social Care and Health,ASCH,Third Party Payments,ECA,21/05/2013,12-13208,880.5,Willow Brook Nursing Home
Nottinghamshire County Council,1111/1001,Adult Social Care and Health,ASCH,Third Party Payments,ECA,21/05/2013,12-13216,445.7,Pathfinders Neurological Care Centr
Nottinghamshire County Council,1111/1001,Adult Social Care and Health,ASCH,Third Party Payments,ECA,21/05/2013,12-13217,445.7,Pathfinders Neurological Care Centr
Nottinghamshire County Council,1111/1001,Adult Social Care and Health,ASCH,Third Party Payments,ECA,21/05/2013,12-13218,445.7,Pathfinders Neurological Care Centr
Nottinghamshire County Council,1111/1001,Adult Social Care and Health,ASCH,Third Party Payments,ECA,21/05/2013,12-13225,445.7,Pathfinders Neurological Care Centr
Nottinghamshire County Council,1111/1001,Adult Social Care and Health,ASCH,Third Party Payments,ECA,21/05/2013,12-13227,445.7,Pathfinders Neurological Care Centr
Nottinghamshire County Council,1111/1001,Adult Social Care and Health,ASCH,Third Party Payments,ECA,21/05/2013,12-13228,445.7,Pathfinders Neurological Care Centr
Nottinghamshire County Council,1111/1001,Adult Social Care and Health,ASCH,Third Party Payments,ECA,21/05/2013,12-13229,445.7,Pathfinders Neurological Care Centr
Nottinghamshire County Council,1111/1001,Adult Social Care and Health,ASCH,Third Party Payments,ECA,21/05/2013,12-13230,445.7,Pathfinders Neurological Care Centr
Nottinghamshire County Council,1111/1001,Adult Social Care and Health,ASCH,Third Party Payments,ECA,21/05/2013,12-13246,445.7,Carlton House Nursing Home
Nottinghamshire County Council,1111/1001,Adult Social Care and Health,ASCH,Third Party Payments,ECA,21/05/2013,12-13247,445.7,Carlton House Nursing Home
Nottinghamshire County Council,1111/1001,Adult Social Care and Health,ASCH,Third Party Payments,ECA,21/05/2013,12-13248,445.7,Carlton House Nursing Home
Nottinghamshire County Council,1111/1001,Adult Social Care and Health,ASCH,Third Party Payments,ECA,21/05/2013,12-13249,598.4,Carlton House Nursing Home
Nottinghamshire County Council,1111/1001,Adult Social Care and Health,ASCH,Third Party Payments,ECA,21/05/2013,12-13250,445.7,Carlton House Nursing Home
Nottinghamshire County Council,1111/1001,Adult Social Care and Health,ASCH,Third Party Payments,ECA,21/05/2013,12-13251,445.7,Carlton House Nursing Home
Nottinghamshire County Council,1111/1001,Adult Social Care and Health,ASCH,Third Party Payments,ECA,21/05/2013,12-13252,445.7,Carlton House Nursing Home
Nottinghamshire County Council,1111/1001,Adult Social Care and Health,ASCH,Third Party Payments,ECA,21/05/2013,12-13264,445.7,Greenwood Lodge
Nottinghamshire County Council,1111/1001,Adult Social Care and Health,ASCH,Third Party Payments,ECA,21/05/2013,12-13265,445.7,Greenwood Lodge
Nottinghamshire County Council,1111/1001,Adult Social Care and Health,ASCH,Third Party Payments,ECA,21/05/2013,12-13266,445.7,Greenwood Lodge
Nottinghamshire County Council,1111/1001,Adult Social Care and Health,ASCH,Third Party Payments,ECA,21/05/2013,12-13267,445.7,Greenwood Lodge
Nottinghamshire County Council,1111/1001,Adult Social Care and Health,ASCH,Third Party Payments,ECA,21/05/2013,12-13268,445.7,Greenwood Lodge
Nottinghamshire County Council,1111/1001,Adult Social Care and Health,ASCH,Third Party Payments,ECA,21/05/2013,12-13269,445.7,Greenwood Lodge
Nottinghamshire County Council,1111/1001,Adult Social Care and Health,ASCH,Third Party Payments,ECA,21/05/2013,12-13270,445.7,Greenwood Lodge
Nottinghamshire County Council,1111/1001,Adult Social Care and Health,ASCH,Third Party Payments,ECA,21/05/2013,12-13273,-652.2,St Andrews Lodge
Nottinghamshire County Council,1111/1001,Adult Social Care and Health,ASCH,Third Party Payments,ECA,21/05/2013,12-13275,445.7,St Andrews Lodge
Nottinghamshire County Council,1111/1001,Adult Social Care and Health,ASCH,Third Party Payments,ECA,21/05/2013,12-13278,445.7,St Andrews Lodge
Nottinghamshire County Council,1111/1001,Adult Social Care and Health,ASCH,Third Party Payments,ECA,21/05/2013,12-13279,445.7,St Andrews Lodge
Nottinghamshire County Council,1111/1001,Adult Social Care and Health,ASCH,Third Party Payments,ECA,21/05/2013,12-13280,598.4,Hill House Care Home
Nottinghamshire County Council,1111/1001,Adult Social Care and Health,ASCH,Third Party Payments,ECA,21/05/2013,12-13312,445.7,Boughton Manor Nursing Homes Limite
Nottinghamshire County Council,1111/1001,Adult Social Care and Health,ASCH,Third Party Payments,ECA,21/05/2013,12-13314,445.7,Boughton Manor Nursing Homes Limite
Nottinghamshire County Council,1111/1001,Adult Social Care and Health,ASCH,Third Party Payments,ECA,21/05/2013,12-13315,445.7,Boughton Manor Nursing Homes Limite
Nottinghamshire County Council,1111/1001,Adult Social Care and Health,ASCH,Third Party Payments,ECA,21/05/2013,12-13316,445.7,Boughton Manor Nursing Homes Limite
Nottinghamshire County Council,1111/1001,Adult Social Care and Health,ASCH,Third Party Payments,ECA,21/05/2013,12-13317,445.7,Boughton Manor Nursing Homes Limite
Nottinghamshire County Council,1111/1001,Adult Social Care and Health,ASCH,Third Party Payments,ECA,21/05/2013,12-13318,598.4,Boughton Manor Nursing Homes Limite
Nottinghamshire County Council,1111/1001,Adult Social Care and Health,ASCH,Third Party Payments,ECA,21/05/2013,12-13319,445.7,Boughton Manor Nursing Homes Limite
Nottinghamshire County Council,1111/1001,Adult Social Care and Health,ASCH,Third Party Payments,ECA,21/05/2013,12-13320,445.7,Boughton Manor Nursing Homes Limite
Nottinghamshire County Council,1111/1001,Adult Social Care and Health,ASCH,Third Party Payments,ECA,21/05/2013,12-13321,445.7,Boughton Manor Nursing Homes Limite
Nottinghamshire County Council,1111/1001,Adult Social Care and Health,ASCH,Third Party Payments,ECA,21/05/2013,12-13322,445.7,Boughton Manor Nursing Homes Limite
Nottinghamshire County Council,1111/1001,Adult Social Care and Health,ASCH,Third Party Payments,ECA,21/05/2013,12-13323,445.7,Boughton Manor Nursing Homes Limite
Nottinghamshire County Council,1111/1001,Adult Social Care and Health,ASCH,Third Party Payments,ECA,21/05/2013,12-13324,445.7,Boughton Manor Nursing Homes Limite
Nottinghamshire County Council,1111/1001,Adult Social Care and Health,ASCH,Third Party Payments,ECA,21/05/2013,12-13325,445.7,Boughton Manor Nursing Homes Limite
Nottinghamshire County Council,1111/1001,Adult Social Care and Health,ASCH,Third Party Payments,ECA,21/05/2013,12-13326,445.7,Boughton Manor Nursing Homes Limite
Nottinghamshire County Council,1111/1001,Adult Social Care and Health,ASCH,Third Party Payments,ECA,21/05/2013,12-13327,445.7,Boughton Manor Nursing Homes Limite
Nottinghamshire County Council,1111/1001,Adult Social Care and Health,ASCH,Third Party Payments,ECA,21/05/2013,12-13328,445.7,Boughton Manor Nursing Homes Limite
Nottinghamshire County Council,1111/1001,Adult Social Care and Health,ASCH,Third Party Payments,ECA,21/05/2013,12-13329,445.7,Boughton Manor Nursing Homes Limite
Nottinghamshire County Council,1111/1001,Adult Social Care and Health,ASCH,Third Party Payments,ECA,21/05/2013,12-13447,445.7,Westvilla Nursing Home
Nottinghamshire County Council,1111/1001,Adult Social Care and Health,ASCH,Third Party Payments,ECA,21/05/2013,12-13448,445.7,Westvilla Nursing Home
Nottinghamshire County Council,1111/1001,Adult Social Care and Health,ASCH,Third Party Payments,ECA,21/05/2013,12-13449,445.7,Westvilla Nursing Home
Nottinghamshire County Council,1111/1001,Adult Social Care and Health,ASCH,Third Party Payments,ECA,21/05/2013,12-13450,445.7,Westvilla Nursing Home
Nottinghamshire County Council,1111/1001,Adult Social Care and Health,ASCH,Third Party Payments,ECA,21/05/2013,12-13451,445.7,Westvilla Nursing Home
Nottinghamshire County Council,1111/1001,Adult Social Care and Health,ASCH,Third Party Payments,ECA,21/05/2013,12-13452,445.7,Westvilla Nursing Home
Nottinghamshire County Council,1111/1001,Adult Social Care and Health,ASCH,Third Party Payments,ECA,21/05/2013,12-13453,445.7,Westvilla Nursing Home
Nottinghamshire County Council,1111/1001,Adult Social Care and Health,ASCH,Third Party Payments,ECA,21/05/2013,12-13454,445.7,Westvilla Nursing Home
Nottinghamshire County Council,1111/1001,Adult Social Care and Health,ASCH,Third Party Payments,ECA,21/05/2013,12-13455,445.7,Westvilla Nursing Home
Nottinghamshire County Council,1111/1001,Adult Social Care and Health,ASCH,Third Party Payments,ECA,21/05/2013,12-13456,445.7,Westvilla Nursing Home
Nottinghamshire County Council,1111/1001,Adult Social Care and Health,ASCH,Third Party Payments,ECA,21/05/2013,12-13457,445.7,Westvilla Nursing Home
Nottinghamshire County Council,1111/1001,Adult Social Care and Health,ASCH,Third Party Payments,ECA,21/05/2013,12-13459,445.7,Westvilla Nursing Home
Nottinghamshire County Council,1111/1001,Adult Social Care and Health,ASCH,Third Party Payments,ECA,21/05/2013,12-13460,445.69,Westvilla Nursing Home
Nottinghamshire County Council,1111/1001,Adult Social Care and Health,ASCH,Third Party Payments,ECA,21/05/2013,12-13461,445.7,Westvilla Nursing Home
Nottinghamshire County Council,1111/1001,Adult Social Care and Health,ASCH,Third Party Payments,ECA,21/05/2013,12-13475,445.7,Parkside Care Home
Nottinghamshire County Council,1111/1001,Adult Social Care and Health,ASCH,Third Party Payments,ECA,21/05/2013,12-13476,444.61,Parkside Care Home
Nottinghamshire County Council,1111/1001,Adult Social Care and Health,ASCH,Third Party Payments,ECA,21/05/2013,12-13479,445.7,Parkside Care Home
Nottinghamshire County Council,1111/1001,Adult Social Care and Health,ASCH,Third Party Payments,ECA,21/05/2013,12-13481,445.7,Parkside Care Home
Nottinghamshire County Council,1111/1001,Adult Social Care and Health,ASCH,Third Party Payments,ECA,21/05/2013,12-13482,445.7,Parkside Care Home
Nottinghamshire County Council,1111/1001,Adult Social Care and Health,ASCH,Third Party Payments,ECA,21/05/2013,12-13483,445.7,Parkside Care Home
Nottinghamshire County Council,1111/1001,Adult Social Care and Health,ASCH,Third Party Payments,ECA,21/05/2013,12-13485,442.12,Parkside Care Home
Nottinghamshire County Council,1111/1001,Adult Social Care and Health,ASCH,Third Party Payments,ECA,21/05/2013,12-13486,434.8,Parkside Care Home
Nottinghamshire County Council,1111/1001,Adult Social Care and Health,ASCH,Third Party Payments,ECA,21/05/2013,12-13487,445.7,Parkside Care Home
Nottinghamshire County Council,1111/1001,Adult Social Care and Health,ASCH,Third Party Payments,ECA,21/05/2013,12-13488,445.7,Parkside Care Home
Nottinghamshire County Council,1111/1001,Adult Social Care and Health,ASCH,Third Party Payments,ECA,21/05/2013,12-13489,445.7,Parkside Care Home
Nottinghamshire County Council,1111/1001,Adult Social Care and Health,ASCH,Third Party Payments,ECA,21/05/2013,12-13491,445.7,Parkside Care Home
Nottinghamshire County Council,1111/1001,Adult Social Care and Health,ASCH,Third Party Payments,ECA,21/05/2013,12-13492,445.7,Parkside Care Home
Nottinghamshire County Council,1111/1001,Adult Social Care and Health,ASCH,Third Party Payments,ECA,21/05/2013,12-13493,1.4,Parkside Care Home
Nottinghamshire County Council,1111/1001,Adult Social Care and Health,ASCH,Third Party Payments,ECA,21/05/2013,12-13496,445.7,Parkside Care Home
Nottinghamshire County Council,1111/1001,Adult Social Care and Health,ASCH,Third Party Payments,ECA,21/05/2013,12-13498,1517.17,Parkside Care Home
Nottinghamshire County Council,1111/1001,Adult Social Care and Health,ASCH,Third Party Payments,ECA,21/05/2013,12-13500,445.7,Parkside Care Home
Nottinghamshire County Council,1111/1001,Adult Social Care and Health,ASCH,Third Party Payments,ECA,21/05/2013,12-13501,445.7,Parkside Care Home
Nottinghamshire County Council,1111/1001,Adult Social Care and Health,ASCH,Third Party Payments,ECA,21/05/2013,12-13502,445.7,Parkside Care Home
Nottinghamshire County Council,1111/1001,Adult Social Care and Health,ASCH,Third Party Payments,ECA,21/05/2013,12-13503,445.7,Parkside Care Home
Nottinghamshire County Council,1111/1001,Adult Social Care and Health,ASCH,Third Party Payments,ECA,21/05/2013,12-13536,445.7,Forest Manor Care Home
Nottinghamshire County Council,1111/1001,Adult Social Care and Health,ASCH,Third Party Payments,ECA,21/05/2013,12-13538,445.7,Forest Manor Care Home
Nottinghamshire County Council,1111/1001,Adult Social Care and Health,ASCH,Third Party Payments,ECA,21/05/2013,12-13539,445.7,Forest Manor Care Home
Nottinghamshire County Council,1111/1001,Adult Social Care and Health,ASCH,Third Party Payments,ECA,21/05/2013,12-13540,445.7,Forest Manor Care Home
Nottinghamshire County Council,1111/1001,Adult Social Care and Health,ASCH,Third Party Payments,ECA,21/05/2013,12-13542,445.7,Forest Manor Care Home
Nottinghamshire County Council,1111/1001,Adult Social Care and Health,ASCH,Third Party Payments,ECA,21/05/2013,12-13544,445.7,Forest Manor Care Home
Nottinghamshire County Council,1111/1001,Adult Social Care and Health,ASCH,Third Party Payments,ECA,21/05/2013,12-13545,445.7,Forest Manor Care Home
Nottinghamshire County Council,1111/1001,Adult Social Care and Health,ASCH,Third Party Payments,ECA,21/05/2013,12-13547,445.7,Forest Manor Care Home
Nottinghamshire County Council,1111/1001,Adult Social Care and Health,ASCH,Third Party Payments,ECA,21/05/2013,12-13548,445.7,Forest Manor Care Home
Nottinghamshire County Council,1111/1001,Adult Social Care and Health,ASCH,Third Party Payments,ECA,21/05/2013,12-13549,445.7,Forest Manor Care Home
Nottinghamshire County Council,1111/1001,Adult Social Care and Health,ASCH,Third Party Payments,ECA,21/05/2013,12-13554,445.7,Forest Manor Care Home
Nottinghamshire County Council,1111/1001,Adult Social Care and Health,ASCH,Third Party Payments,ECA,21/05/2013,12-13555,445.7,Forest Manor Care Home
Nottinghamshire County Council,1111/1001,Adult Social Care and Health,ASCH,Third Party Payments,ECA,21/05/2013,12-13572,-652.2,Churchfield Park
Nottinghamshire County Council,1111/1001,Adult Social Care and Health,ASCH,Third Party Payments,ECA,21/05/2013,12-13575,445.7,Churchfield Park
Nottinghamshire County Council,1111/1001,Adult Social Care and Health,ASCH,Third Party Payments,ECA,21/05/2013,12-13576,445.7,Churchfield Park
Nottinghamshire County Council,1111/1001,Adult Social Care and Health,ASCH,Third Party Payments,ECA,21/05/2013,12-13578,445.7,Churchfield Park
Nottinghamshire County Council,1111/1001,Adult Social Care and Health,ASCH,Third Party Payments,ECA,21/05/2013,12-13584,445.7,Lifestyle Care
Nottinghamshire County Council,1111/1001,Adult Social Care and Health,ASCH,Third Party Payments,ECA,21/05/2013,12-13585,445.7,Lifestyle Care
Nottinghamshire County Council,1111/1001,Adult Social Care and Health,ASCH,Third Party Payments,ECA,21/05/2013,12-13586,445.7,Lifestyle Care
Nottinghamshire County Council,1111/1001,Adult Social Care and Health,ASCH,Third Party Payments,ECA,21/05/2013,12-13587,598.4,Lifestyle Care
Nottinghamshire County Council,1111/1001,Adult Social Care and Health,ASCH,Third Party Payments,ECA,21/05/2013,12-13588,445.7,Lifestyle Care
Nottinghamshire County Council,1111/1001,Adult Social Care and Health,ASCH,Third Party Payments,ECA,21/05/2013,12-13589,445.7,Lifestyle Care
Nottinghamshire County Council,1111/1001,Adult Social Care and Health,ASCH,Third Party Payments,ECA,21/05/2013,12-13591,445.7,Lifestyle Care
Nottinghamshire County Council,1111/1001,Adult Social Care and Health,ASCH,Third Party Payments,ECA,21/05/2013,12-13592,445.7,Lifestyle Care
Nottinghamshire County Council,1111/1001,Adult Social Care and Health,ASCH,Third Party Payments,ECA,21/05/2013,12-13593,445.7,Lifestyle Care
Nottinghamshire County Council,1111/1001,Adult Social Care and Health,ASCH,Third Party Payments,ECA,21/05/2013,12-13594,445.7,Lifestyle Care
Nottinghamshire County Council,1111/1001,Adult Social Care and Health,ASCH,Third Party Payments,ECA,21/05/2013,12-13595,445.7,Lifestyle Care
Nottinghamshire County Council,1111/1001,Adult Social Care and Health,ASCH,Third Party Payments,ECA,21/05/2013,12-13596,445.7,Lifestyle Care
Nottinghamshire County Council,1111/1001,Adult Social Care and Health,ASCH,Third Party Payments,ECA,21/05/2013,12-13597,445.7,Lifestyle Care
Nottinghamshire County Council,1111/1001,Adult Social Care and Health,ASCH,Third Party Payments,ECA,21/05/2013,12-13598,444.61,Lifestyle Care
Nottinghamshire County Council,1111/1001,Adult Social Care and Health,ASCH,Third Party Payments,ECA,21/05/2013,12-13599,445.69,Lifestyle Care
Nottinghamshire County Council,1111/1001,Adult Social Care and Health,ASCH,Third Party Payments,ECA,21/05/2013,12-13815,445.7,Eastholme Nursing Home
Nottinghamshire County Council,1111/1001,Adult Social Care and Health,ASCH,Third Party Payments,ECA,21/05/2013,12-13821,445.7,Albemarle Court
Nottinghamshire County Council,1111/1001,Adult Social Care and Health,ASCH,Third Party Payments,ECA,21/05/2013,12-13824,445.7,Albemarle Court
Nottinghamshire County Council,1111/1001,Adult Social Care and Health,ASCH,Third Party Payments,ECA,21/05/2013,12-13908,445.7,Jubilee Court Nursing Home
Nottinghamshire County Council,1111/1001,Adult Social Care and Health,ASCH,Third Party Payments,ECA,21/05/2013,12-13909,445.7,Jubilee Court Nursing Home
Nottinghamshire County Council,1111/1001,Adult Social Care and Health,ASCH,Third Party Payments,ECA,21/05/2013,12-13911,445.7,Jubilee Court Nursing Home
Nottinghamshire County Council,1111/1001,Adult Social Care and Health,ASCH,Third Party Payments,ECA,21/05/2013,12-13912,445.7,Jubilee Court Nursing Home
Nottinghamshire County Council,1111/1001,Adult Social Care and Health,ASCH,Third Party Payments,ECA,21/05/2013,12-13916,445.7,Jubilee Court Nursing Home
Nottinghamshire County Council,1111/1001,Adult Social Care and Health,ASCH,Third Party Payments,ECA,21/05/2013,12-13919,445.7,Jubilee Court Nursing Home
Nottinghamshire County Council,1111/1001,Adult Social Care and Health,ASCH,Third Party Payments,ECA,21/05/2013,12-13920,445.7,Jubilee Court Nursing Home
Nottinghamshire County Council,1111/1001,Adult Social Care and Health,ASCH,Third Party Payments,ECA,21/05/2013,12-13921,512.44,Jubilee Court Nursing Home
Nottinghamshire County Council,1111/1001,Adult Social Care and Health,ASCH,Third Party Payments,ECA,21/05/2013,12-13928,1315.3,Robert Harvey House Nursing Home
Nottinghamshire County Council,1111/1001,Adult Social Care and Health,ASCH,Third Party Payments,ECA,28/05/2013,12-14134,439.16,Ashcroft
Nottinghamshire County Council,1111/1001,Adult Social Care and Health,ASCH,Third Party Payments,ECA,28/05/2013,12-14136,2262.54,Spring Water Lodge
Nottinghamshire County Council,1111/1001,Adult Social Care and Health,ASCH,Third Party Payments,ECA,28/05/2013,12-14146,2.02,Stoneyford Christian Nursing Home
Nottinghamshire County Council,1111/1001,Adult Social Care and Health,ASCH,Third Party Payments,ECA,28/05/2013,12-14150,1078.01,Landermeads Nursing Home
Nottinghamshire County Council,1111/1001,Adult Social Care and Health,ASCH,Third Party Payments,ECA,28/05/2013,12-14165,473.42,Newton House Nursing Home
Nottinghamshire County Council,1111/1001,Adult Social Care and Health,ASCH,Third Party Payments,ECA,28/05/2013,12-14166,679,Newton House Nursing Home
Nottinghamshire County Council,1111/1001,Adult Social Care and Health,ASCH,Third Party Payments,ECA,28/05/2013,12-14167,523.75,Newton House Nursing Home
Nottinghamshire County Council,1111/1001,Adult Social Care and Health,ASCH,Third Party Payments,ECA,28/05/2013,12-14168,445.7,Newton House Nursing Home
Nottinghamshire County Council,1111/1001,Adult Social Care and Health,ASCH,Third Party Payments,ECA,28/05/2013,12-14175,248.46,Aj & Sa Verjee
Nottinghamshire County Council,1111/1001,Adult Social Care and Health,ASCH,Third Party Payments,ECA,28/05/2013,12-14176,445.7,Hollybank Nursing Home
Nottinghamshire County Council,1111/1001,Adult Social Care and Health,ASCH,Third Party Payments,ECA,28/05/2013,12-14209,1000.68,Victoria Care Home
Nottinghamshire County Council,1111/1001,Adult Social Care and Health,ASCH,Third Party Payments,ECA,28/05/2013,12-14210,232.93,Victoria Care Home
Nottinghamshire County Council,1111/1001,Adult Social Care and Health,ASCH,Third Party Payments,ECA,28/05/2013,12-14211,94.11,Victoria Care Home
Nottinghamshire County Council,1111/1001,Adult Social Care and Health,ASCH,Third Party Payments,ECA,28/05/2013,12-14215,445.7,The Poplars (Derbys)
Nottinghamshire County Council,1111/1001,Adult Social Care and Health,ASCH,Third Party Payments,ECA,28/05/2013,12-14217,445.7,Blyth Country House Care Home
Nottinghamshire County Council,1111/1001,Adult Social Care and Health,ASCH,Third Party Payments,ECA,28/05/2013,12-14218,445.7,Blyth Country House Care Home
Nottinghamshire County Council,1111/1001,Adult Social Care and Health,ASCH,Third Party Payments,ECA,28/05/2013,12-14220,445.7,Blyth Country House Care Home
Nottinghamshire County Council,1111/1001,Adult Social Care and Health,ASCH,Third Party Payments,ECA,28/05/2013,12-14227,445.7,Blyth Country House Care Home
Nottinghamshire County Council,1111/1001,Adult Social Care and Health,ASCH,Third Party Payments,ECA,28/05/2013,12-14231,329.37,Cherry Holt Care Home
Nottinghamshire County Council,1111/1001,Adult Social Care and Health,ASCH,Third Party Payments,ECA,28/05/2013,12-14233,445.7,West Lodge Nursing Home
Nottinghamshire County Council,1111/1001,Adult Social Care and Health,ASCH,Third Party Payments,ECA,28/05/2013,12-14356,445.7,Denison House Nursing Home
Nottinghamshire County Council,1111/1001,Adult Social Care and Health,ASCH,Third Party Payments,ECA,28/05/2013,12-14358,444.61,Parkmanor Care Home
Nottinghamshire County Council,1111/1001,Adult Social Care and Health,ASCH,Third Party Payments,EGA,01/05/2013,12-10008,1228.56,Nottm Community Housing Assoc
Nottinghamshire County Council,1111/1001,Adult Social Care and Health,ASCH,Third Party Payments,EGA,01/05/2013,12-10009,516,Care UK Learning Disabilities Servi
Nottinghamshire County Council,1111/1001,Adult Social Care and Health,ASCH,Third Party Payments,EGA,01/05/2013,12-10013,3373.64,Care UK Learning Disabilities Servi
Nottinghamshire County Council,1111/1001,Adult Social Care and Health,ASCH,Third Party Payments,EGA,01/05/2013,12-10014,1756.44,Care UK Learning Disabilities Servi
Nottinghamshire County Council,1111/1001,Adult Social Care and Health,ASCH,Third Party Payments,EGA,01/05/2013,12-10015,1916.44,Care UK Learning Disabilities Servi
Nottinghamshire County Council,1111/1001,Adult Social Care and Health,ASCH,Third Party Payments,EGA,02/05/2013,12-10018,11446.43,Hatzfeld Care Ltd
Nottinghamshire County Council,1111/1001,Adult Social Care and Health,ASCH,Third Party Payments,EGA,02/05/2013,12-10019,13509.23,Direct Health (uk) Ltd
Nottinghamshire County Council,1111/1001,Adult Social Care and Health,ASCH,Third Party Payments,EGA,02/05/2013,12-10020,989.14,Freedom Care Services Ltd
Nottinghamshire County Council,1111/1001,Adult Social Care and Health,ASCH,Third Party Payments,EGA,02/05/2013,12-10021,1689.31,Hatzfeld Care Ltd
Nottinghamshire County Council,1111/1001,Adult Social Care and Health,ASCH,Third Party Payments,EGA,02/05/2013,12-10022,4411.56,Hatzfeld Care Ltd
Nottinghamshire County Council,1111/1001,Adult Social Care and Health,ASCH,Third Party Payments,EGA,02/05/2013,12-10023,6422.99,Priority Homecare Ltd
Nottinghamshire County Council,1111/1001,Adult Social Care and Health,ASCH,Third Party Payments,EGA,02/05/2013,12-10024,7229.52,Care Uk Homecare Ltd
Nottinghamshire County Council,1111/1001,Adult Social Care and Health,ASCH,Third Party Payments,EGA,02/05/2013,12-10025,7095.9,Crossroads Care East Midlands
Nottinghamshire County Council,1111/1001,Adult Social Care and Health,ASCH,Third Party Payments,EGA,02/05/2013,12-10026,3803.19,Rainbow Care Services Ltd
Nottinghamshire County Council,1111/1001,Adult Social Care and Health,ASCH,Third Party Payments,EGA,02/05/2013,12-10027,755.48,The Human Support Group
Nottinghamshire County Council,1111/1001,Adult Social Care and Health,ASCH,Third Party Payments,EGA,02/05/2013,12-10028,8448.53,Calverton Supreme Home Care Ltd
Nottinghamshire County Council,1111/1001,Adult Social Care and Health,ASCH,Third Party Payments,EGA,02/05/2013,12-10029,5341.73,Sterling Homecare Ltd
Nottinghamshire County Council,1111/1001,Adult Social Care and Health,ASCH,Third Party Payments,EGA,02/05/2013,12-10030,7426.98,Sterling Homecare Ltd
Nottinghamshire County Council,1111/1001,Adult Social Care and Health,ASCH,Third Party Payments,EGA,02/05/2013,12-10031,2264.87,Direct Health (uk) Ltd
Nottinghamshire County Council,1111/1001,Adult Social Care and Health,ASCH,Third Party Payments,EGA,02/05/2013,12-10032,10057.89,Mears Care Ltd
Nottinghamshire County Council,1111/1001,Adult Social Care and Health,ASCH,Third Party Payments,EGA,02/05/2013,12-10033,1363.43,Westminster Homecare Ltd
Nottinghamshire County Council,1111/1001,Adult Social Care and Health,ASCH,Third Party Payments,EGA,02/05/2013,12-10034,10736.71,Care Uk Homecare Ltd
Nottinghamshire County Council,1111/1001,Adult Social Care and Health,ASCH,Third Party Payments,EGA,02/05/2013,12-10035,3310.47,Medico Nursing & Homecare
Nottinghamshire County Council,1111/1001,Adult Social Care and Health,ASCH,Third Party Payments,EGA,02/05/2013,12-10036,5324.54,Westminster Homecare Ltd
Nottinghamshire County Council,1111/1001,Adult Social Care and Health,ASCH,Third Party Payments,EGA,02/05/2013,12-10037,1832.82,Home Care Solution Ltd
Nottinghamshire County Council,1111/1001,Adult Social Care and Health,ASCH,Third Party Payments,EGA,02/05/2013,12-10038,6908.77,Care Uk Homecare Ltd
Nottinghamshire County Council,1111/1001,Adult Social Care and Health,ASCH,Third Party Payments,EGA,02/05/2013,12-10039,1396.01,Care Uk Homecare Ltd
Nottinghamshire County Council,1111/1001,Adult Social Care and Health,ASCH,Third Party Payments,EGA,02/05/2013,12-10040,1221.39,North Notts Crossroads Care
Nottinghamshire County Council,1111/1001,Adult Social Care and Health,ASCH,Third Party Payments,EGA,02/05/2013,12-10041,621.72,Medico Nursing & Homecare
Nottinghamshire County Council,1111/1001,Adult Social Care and Health,ASCH,Third Party Payments,EGA,02/05/2013,12-10042,3182.93,Always There Homecare Ltd
Nottinghamshire County Council,1111/1001,Adult Social Care and Health,ASCH,Third Party Payments,EGA,02/05/2013,12-10043,535.41,Housing 21
Nottinghamshire County Council,1111/1001,Adult Social Care and Health,ASCH,Third Party Payments,EGA,02/05/2013,12-10044,7163.17,Sterling Homecare Ltd
Nottinghamshire County Council,1111/1001,Adult Social Care and Health,ASCH,Third Party Payments,EGA,02/05/2013,12-10045,1305.54,Crossroads Care East Midlands
Nottinghamshire County Council,1111/1001,Adult Social Care and Health,ASCH,Third Party Payments,EGA,02/05/2013,12-10046,1008.44,Medico Nursing & Homecare
Nottinghamshire County Council,1111/1001,Adult Social Care and Health,ASCH,Third Party Payments,EGA,02/05/2013,12-10047,4053.4,Priority Homecare Ltd
Nottinghamshire County Council,1111/1001,Adult Social Care and Health,ASCH,Third Party Payments,EGA,02/05/2013,12-10048,5276.31,Direct Health (uk) Ltd
Nottinghamshire County Council,1111/1001,Adult Social Care and Health,ASCH,Third Party Payments,EGA,02/05/2013,12-10049,1062.68,Always There Homecare Ltd
Nottinghamshire County Council,1111/1001,Adult Social Care and Health,ASCH,Third Party Payments,EGA,02/05/2013,12-10050,4714.83,Notts Homecare Ltd
Nottinghamshire County Council,1111/1001,Adult Social Care and Health,ASCH,Third Party Payments,EGA,02/05/2013,12-10051,7766.16,North Notts Crossroads Care
Nottinghamshire County Council,1111/1001,Adult Social Care and Health,ASCH,Third Party Payments,EGA,02/05/2013,12-10052,1625.62,Always There Homecare Ltd
Nottinghamshire County Council,1111/1001,Adult Social Care and Health,ASCH,Third Party Payments,EGA,02/05/2013,12-10053,951.72,Premier Nursing Agency Ltd
Nottinghamshire County Council,1111/1001,Adult Social Care and Health,ASCH,Third Party Payments,EGA,02/05/2013,12-10054,2748.63,Medico Nursing & Homecare
Nottinghamshire County Council,1111/1001,Adult Social Care and Health,ASCH,Third Party Payments,EGA,02/05/2013,12-10055,1680,Sterling Homecare Ltd
Nottinghamshire County Council,1111/1001,Adult Social Care and Health,ASCH,Third Party Payments,EGA,02/05/2013,12-10056,8862.19,Leda Homecare Ltd
Nottinghamshire County Council,1111/1001,Adult Social Care and Health,ASCH,Third Party Payments,EGA,02/05/2013,12-10057,536.46,Hatzfeld Care Ltd
Nottinghamshire County Council,1111/1001,Adult Social Care and Health,ASCH,Third Party Payments,EGA,02/05/2013,12-10058,17980.56,Direct Health (uk) Ltd
Nottinghamshire County Council,1111/1001,Adult Social Care and Health,ASCH,Third Party Payments,EGA,02/05/2013,12-10059,4524.83,Direct Health (uk) Ltd
Nottinghamshire County Council,1111/1001,Adult Social Care and Health,ASCH,Third Party Payments,EGA,02/05/2013,12-10060,4872.56,Workwise Healthcare Ltd
Nottinghamshire County Council,1111/1001,Adult Social Care and Health,ASCH,Third Party Payments,EGA,02/05/2013,12-10061,820.95,MEARS CARE LTD (Supporta Care)
Nottinghamshire County Council,1111/1001,Adult Social Care and Health,ASCH,Third Party Payments,EGA,02/05/2013,12-10062,6384.9,Leda Homecare Ltd
Nottinghamshire County Council,1111/1001,Adult Social Care and Health,ASCH,Third Party Payments,EGA,02/05/2013,12-10063,784.63,Amg Consultancy Services Ltd
Nottinghamshire County Council,1111/1001,Adult Social Care and Health,ASCH,Third Party Payments,EGA,02/05/2013,12-10064,2880.94,Westminster Homecare Ltd
Nottinghamshire County Council,1111/1001,Adult Social Care and Health,ASCH,Third Party Payments,EGA,02/05/2013,12-10065,1545.99,Housing 21
Nottinghamshire County Council,1111/1001,Adult Social Care and Health,ASCH,Third Party Payments,EGA,02/05/2013,12-10066,5314.32,Mears Care Ltd
Nottinghamshire County Council,1111/1001,Adult Social Care and Health,ASCH,Third Party Payments,EGA,02/05/2013,12-10067,1865.89,Hatzfeld Care Ltd
Nottinghamshire County Council,1111/1001,Adult Social Care and Health,ASCH,Third Party Payments,EGA,02/05/2013,12-10068,5927.8,Medico Nursing & Homecare
Nottinghamshire County Council,1111/1001,Adult Social Care and Health,ASCH,Third Party Payments,EGA,02/05/2013,12-10069,3567.66,Always There Homecare Ltd
Nottinghamshire County Council,1111/1001,Adult Social Care and Health,ASCH,Third Party Payments,EGA,02/05/2013,12-10070,1617.46,North Notts Crossroads Care
Nottinghamshire County Council,1111/1001,Adult Social Care and Health,ASCH,Third Party Payments,EGA,02/05/2013,12-10071,1927.94,Medico Nursing & Homecare
Nottinghamshire County Council,1111/1001,Adult Social Care and Health,ASCH,Third Party Payments,EGA,02/05/2013,12-10072,559.17,Premier Nursing Agency Ltd
Nottinghamshire County Council,1111/1001,Adult Social Care and Health,ASCH,Third Party Payments,EGA,02/05/2013,12-10073,4560.28,North Notts Crossroads Care
Nottinghamshire County Council,1111/1001,Adult Social Care and Health,ASCH,Third Party Payments,EGA,02/05/2013,12-10074,1860.45,Always There Homecare Ltd
Nottinghamshire County Council,1111/1001,Adult Social Care and Health,ASCH,Third Party Payments,EGA,02/05/2013,12-10075,1848.25,Priority Homecare Ltd
Nottinghamshire County Council,1111/1001,Adult Social Care and Health,ASCH,Third Party Payments,EGA,02/05/2013,12-10076,7730.3,Priority Homecare Ltd
Nottinghamshire County Council,1111/1001,Adult Social Care and Health,ASCH,Third Party Payments,EGA,02/05/2013,12-10077,9133.89,Sterling Homecare Ltd
Nottinghamshire County Council,1111/1001,Adult Social Care and Health,ASCH,Third Party Payments,EGA,02/05/2013,12-10078,2130.04,The Human Support Group
Nottinghamshire County Council,1111/1001,Adult Social Care and Health,ASCH,Third Party Payments,EGA,02/05/2013,12-10079,2056.42,Notts Homecare Ltd
Nottinghamshire County Council,1111/1001,Adult Social Care and Health,ASCH,Third Party Payments,EGA,02/05/2013,12-10080,2989.05,Direct Health (uk) Ltd
Nottinghamshire County Council,1111/1001,Adult Social Care and Health,ASCH,Third Party Payments,EGA,02/05/2013,12-10081,879.21,Premier Nursing Agency Ltd
Nottinghamshire County Council,1111/1001,Adult Social Care and Health,ASCH,Third Party Payments,EGA,02/05/2013,12-10082,597.06,Advantage Healthcare Nursing & Care
Nottinghamshire County Council,1111/1001,Adult Social Care and Health,ASCH,Third Party Payments,EGA,02/05/2013,12-10083,2878.36,Housing 21
Nottinghamshire County Council,1111/1001,Adult Social Care and Health,ASCH,Third Party Payments,EGA,02/05/2013,12-10084,2192.49,Mears Care Ltd
Nottinghamshire County Council,1111/1001,Adult Social Care and Health,ASCH,Third Party Payments,EGA,02/05/2013,12-10085,933.58,Priority Homecare Ltd
Nottinghamshire County Council,1111/1001,Adult Social Care and Health,ASCH,Third Party Payments,EGA,02/05/2013,12-10086,2271.4,Crossroads Care East Midlands
Nottinghamshire County Council,1111/1001,Adult Social Care and Health,ASCH,Third Party Payments,EGA,02/05/2013,12-10087,1253.39,Housing 21
Nottinghamshire County Council,1111/1001,Adult Social Care and Health,ASCH,Third Party Payments,EGA,02/05/2013,12-10088,1352.11,Freedom Care Services Ltd
Nottinghamshire County Council,1111/1001,Adult Social Care and Health,ASCH,Third Party Payments,EGA,02/05/2013,12-10089,7571.23,Workwise Healthcare Ltd
Nottinghamshire County Council,1111/1001,Adult Social Care and Health,ASCH,Third Party Payments,EGA,02/05/2013,12-10090,9663.03,Sterling Homecare Ltd
Nottinghamshire County Council,1111/1001,Adult Social Care and Health,ASCH,Third Party Payments,EGA,02/05/2013,12-10091,3954.97,Home Care Solution Ltd
Nottinghamshire County Council,1111/1001,Adult Social Care and Health,ASCH,Third Party Payments,EGA,02/05/2013,12-10100,522.8,Time Out Care Services Ltd
Nottinghamshire County Council,1111/1001,Adult Social Care and Health,ASCH,Third Party Payments,EGA,02/05/2013,12-10102,2072,Eden Supported Living Ltd
Nottinghamshire County Council,1111/1001,Adult Social Care and Health,ASCH,Third Party Payments,EGA,02/05/2013,12-10103,1600,Bees Knees
Nottinghamshire County Council,1111/1001,Adult Social Care and Health,ASCH,Third Party Payments,EGA,03/05/2013,12-10104,1860.44,Eden Supported Living Ltd
Nottinghamshire County Council,1111/1001,Adult Social Care and Health,ASCH,Third Party Payments,EGA,03/05/2013,12-10105,1100.4,Lifeways Community Care Ltd
Nottinghamshire County Council,1111/1001,Adult Social Care and Health,ASCH,Third Party Payments,EGA,03/05/2013,12-10106,516,Care UK Learning Disabilities Servi
Nottinghamshire County Council,1111/1001,Adult Social Care and Health,ASCH,Third Party Payments,EGA,07/05/2013,12-10122,1490.37,Nottm Community Housing Assoc
Nottinghamshire County Council,1111/1001,Adult Social Care and Health,ASCH,Third Party Payments,EGA,07/05/2013,12-10123,1371.88,Hatzfeld Care Ltd
Nottinghamshire County Council,1111/1001,Adult Social Care and Health,ASCH,Third Party Payments,EGA,07/05/2013,12-10125,798,Spring Water Lodge
Nottinghamshire County Council,1111/1001,Adult Social Care and Health,ASCH,Third Party Payments,EGA,07/05/2013,12-10127,505.14,Four Seasons (Evedale) Ltd/Tudor Gr
Nottinghamshire County Council,1111/1001,Adult Social Care and Health,ASCH,Third Party Payments,EGA,07/05/2013,12-10129,1564,Charnwood House
Nottinghamshire County Council,1111/1001,Adult Social Care and Health,ASCH,Third Party Payments,EGA,07/05/2013,12-10130,2906,Four Seasons (Evedale) Ltd Re Sycam
Nottinghamshire County Council,1111/1001,Adult Social Care and Health,ASCH,Third Party Payments,EGA,07/05/2013,12-10131,9170,Four Seasons (Evedale) Ltd Re Sycam
Nottinghamshire County Council,1111/1001,Adult Social Care and Health,ASCH,Third Party Payments,EGA,07/05/2013,12-10132,1628,George Hythe House
Nottinghamshire County Council,1111/1001,Adult Social Care and Health,ASCH,Third Party Payments,EGA,07/05/2013,12-10134,705.71,Edward House Care Home
Nottinghamshire County Council,1111/1001,Adult Social Care and Health,ASCH,Third Party Payments,EGA,07/05/2013,12-10135,3544,Beeches Nursing Home
Nottinghamshire County Council,1111/1001,Adult Social Care and Health,ASCH,Third Party Payments,EGA,07/05/2013,12-10138,2958.28,Berry Hill Park
Nottinghamshire County Council,1111/1001,Adult Social Care and Health,ASCH,Third Party Payments,EGA,07/05/2013,12-10139,5789.43,Countrywide Care Homes Ltd T/A Clum
Nottinghamshire County Council,1111/1001,Adult Social Care and Health,ASCH,Third Party Payments,EGA,07/05/2013,12-10140,1986.43,Countrywide Care Homes Ltd T/A Clum
Nottinghamshire County Council,1111/1001,Adult Social Care and Health,ASCH,Third Party Payments,EGA,07/05/2013,12-10141,3492,Countrywide Care Homes Ltd T/A Clum
Nottinghamshire County Council,1111/1001,Adult Social Care and Health,ASCH,Third Party Payments,EGA,07/05/2013,12-10142,6598.57,Countrywide Care Homes Ltd T/A Clum
Nottinghamshire County Council,1111/1001,Adult Social Care and Health,ASCH,Third Party Payments,EGA,07/05/2013,12-10143,5751.71,Countrywide Care Homes Ltd T/A Clum
Nottinghamshire County Council,1111/1001,Adult Social Care and Health,ASCH,Third Party Payments,EGA,07/05/2013,12-10144,3277.14,Countrywide Care Homes Ltd T/A Clum
Nottinghamshire County Council,1111/1001,Adult Social Care and Health,ASCH,Third Party Payments,EGA,07/05/2013,12-10145,3986.57,Landermeads Nursing Home
Nottinghamshire County Council,1111/1001,Adult Social Care and Health,ASCH,Third Party Payments,EGA,07/05/2013,12-10147,1030,Landermeads Nursing Home
Nottinghamshire County Council,1111/1001,Adult Social Care and Health,ASCH,Third Party Payments,EGA,07/05/2013,12-10148,2211,Sutton Lodge Nursing Home
Nottinghamshire County Council,1111/1001,Adult Social Care and Health,ASCH,Third Party Payments,EGA,07/05/2013,12-10149,4190.14,The Moorlands Nursing Home
Nottinghamshire County Council,1111/1001,Adult Social Care and Health,ASCH,Third Party Payments,EGA,07/05/2013,12-10150,3613.43,Burkitt Care Home
Nottinghamshire County Council,1111/1001,Adult Social Care and Health,ASCH,Third Party Payments,EGA,07/05/2013,12-10151,2440.29,Burkitt Care Home
Nottinghamshire County Council,1111/1001,Adult Social Care and Health,ASCH,Third Party Payments,EGA,07/05/2013,12-10153,12776.34,Red Rose Nursing Home
Nottinghamshire County Council,1111/1001,Adult Social Care and Health,ASCH,Third Party Payments,EGA,07/05/2013,12-10154,4413,Wren Hall Nursing Home
Nottinghamshire County Council,1111/1001,Adult Social Care and Health,ASCH,Third Party Payments,EGA,07/05/2013,12-10155,4819,Wren Hall Nursing Home
Nottinghamshire County Council,1111/1001,Adult Social Care and Health,ASCH,Third Party Payments,EGA,07/05/2013,12-10159,4539,Wren Hall Nursing Home
Nottinghamshire County Council,1111/1001,Adult Social Care and Health,ASCH,Third Party Payments,EGA,07/05/2013,12-10161,4255,Wren Hall Nursing Home
Nottinghamshire County Council,1111/1001,Adult Social Care and Health,ASCH,Third Party Payments,EGA,07/05/2013,12-10163,4779,Wren Hall Nursing Home
Nottinghamshire County Council,1111/1001,Adult Social Care and Health,ASCH,Third Party Payments,EGA,07/05/2013,12-10167,4539,Wren Hall Nursing Home
Nottinghamshire County Council,1111/1001,Adult Social Care and Health,ASCH,Third Party Payments,EGA,07/05/2013,12-10170,4288,Wren Hall Nursing Home
Nottinghamshire County Council,1111/1001,Adult Social Care and Health,ASCH,Third Party Payments,EGA,07/05/2013,12-10171,5857,Wren Hall Nursing Home
Nottinghamshire County Council,1111/1001,Adult Social Care and Health,ASCH,Third Party Payments,EGA,07/05/2013,12-10172,4573,Wren Hall Nursing Home
Nottinghamshire County Council,1111/1001,Adult Social Care and Health,ASCH,Third Party Payments,EGA,07/05/2013,12-10173,4779,Wren Hall Nursing Home
Nottinghamshire County Council,1111/1001,Adult Social Care and Health,ASCH,Third Party Payments,EGA,07/05/2013,12-10174,4723,Wren Hall Nursing Home
Nottinghamshire County Council,1111/1001,Adult Social Care and Health,ASCH,Third Party Payments,EGA,07/05/2013,12-10175,4772,Wren Hall Nursing Home
Nottinghamshire County Council,1111/1001,Adult Social Care and Health,ASCH,Third Party Payments,EGA,07/05/2013,12-10176,5180.8,Guiding Principles Milligan
Nottinghamshire County Council,1111/1001,Adult Social Care and Health,ASCH,Third Party Payments,EGA,07/05/2013,12-10177,8585,Fbc Care Homes Ltd
Nottinghamshire County Council,1111/1001,Adult Social Care and Health,ASCH,Third Party Payments,EGA,07/05/2013,12-10178,1467,Fbc Care Homes Ltd
Nottinghamshire County Council,1111/1001,Adult Social Care and Health,ASCH,Third Party Payments,EGA,07/05/2013,12-10179,2077.15,Fernleaf Care Home
Nottinghamshire County Council,1111/1001,Adult Social Care and Health,ASCH,Third Party Payments,EGA,07/05/2013,12-10181,5100,Beech Tree Hall
Nottinghamshire County Council,1111/1001,Adult Social Care and Health,ASCH,Third Party Payments,EGA,07/05/2013,12-10182,8313.8,Beech Tree Hall
Nottinghamshire County Council,1111/1001,Adult Social Care and Health,ASCH,Third Party Payments,EGA,07/05/2013,12-10183,7148,Beech Tree Hall
Nottinghamshire County Council,1111/1001,Adult Social Care and Health,ASCH,Third Party Payments,EGA,07/05/2013,12-10184,6960,Beech Tree Hall
Nottinghamshire County Council,1111/1001,Adult Social Care and Health,ASCH,Third Party Payments,EGA,07/05/2013,12-10185,4558.43,Newgate Lodge Care Home
Nottinghamshire County Council,1111/1001,Adult Social Care and Health,ASCH,Third Party Payments,EGA,07/05/2013,12-10186,2175,Hillside Farm Care Home
Nottinghamshire County Council,1111/1001,Adult Social Care and Health,ASCH,Third Party Payments,EGA,07/05/2013,12-10187,1685,Eton Park Nursing Home
Nottinghamshire County Council,1111/1001,Adult Social Care and Health,ASCH,Third Party Payments,EGA,07/05/2013,12-10188,3616,Eton Park Nursing Home
Nottinghamshire County Council,1111/1001,Adult Social Care and Health,ASCH,Third Party Payments,EGA,07/05/2013,12-10189,1685,Eton Park Nursing Home
Nottinghamshire County Council,1111/1001,Adult Social Care and Health,ASCH,Third Party Payments,EGA,07/05/2013,12-10190,1685,Eton Park Nursing Home
Nottinghamshire County Council,1111/1001,Adult Social Care and Health,ASCH,Third Party Payments,EGA,07/05/2013,12-10191,1604,Eton Park Nursing Home
Nottinghamshire County Council,1111/1001,Adult Social Care and Health,ASCH,Third Party Payments,EGA,07/05/2013,12-10192,1685,Eton Park Nursing Home
Nottinghamshire County Council,1111/1001,Adult Social Care and Health,ASCH,Third Party Payments,EGA,07/05/2013,12-10193,1685,Eton Park Nursing Home
Nottinghamshire County Council,1111/1001,Adult Social Care and Health,ASCH,Third Party Payments,EGA,07/05/2013,12-10194,1685,Eton Park Nursing Home
Nottinghamshire County Council,1111/1001,Adult Social Care and Health,ASCH,Third Party Payments,EGA,07/05/2013,12-10195,3158.86,Aj & Sa Verjee
Nottinghamshire County Council,1111/1001,Adult Social Care and Health,ASCH,Third Party Payments,EGA,07/05/2013,12-10196,988,Sutton Court
Nottinghamshire County Council,1111/1001,Adult Social Care and Health,ASCH,Third Party Payments,EGA,07/05/2013,12-10197,7169.57,Mansfield Manor Care Home
Nottinghamshire County Council,1111/1001,Adult Social Care and Health,ASCH,Third Party Payments,EGA,07/05/2013,12-10198,884,The Troc Residential Home
Nottinghamshire County Council,1111/1001,Adult Social Care and Health,ASCH,Third Party Payments,EGA,07/05/2013,12-10199,631.43,Giltbrook Carehomes Ltd
Nottinghamshire County Council,1111/1001,Adult Social Care and Health,ASCH,Third Party Payments,EGA,07/05/2013,12-10200,2995.29,Bramcote House Nursing Home
Nottinghamshire County Council,1111/1001,Adult Social Care and Health,ASCH,Third Party Payments,EGA,07/05/2013,12-10201,558.57,Meadow Lodge (Beeston)
Nottinghamshire County Council,1111/1001,Adult Social Care and Health,ASCH,Third Party Payments,EGA,07/05/2013,12-10202,2139.43,The Beeches
Nottinghamshire County Council,1111/1001,Adult Social Care and Health,ASCH,Third Party Payments,EGA,07/05/2013,12-10204,917.43,Westfield Residential Home
Nottinghamshire County Council,1111/1001,Adult Social Care and Health,ASCH,Third Party Payments,EGA,07/05/2013,12-10205,1647,Silverdale Residential Home
Nottinghamshire County Council,1111/1001,Adult Social Care and Health,ASCH,Third Party Payments,EGA,07/05/2013,12-10206,1647,Silverdale Residential Home
Nottinghamshire County Council,1111/1001,Adult Social Care and Health,ASCH,Third Party Payments,EGA,07/05/2013,12-10207,1636,Silverdale Residential Home
Nottinghamshire County Council,1111/1001,Adult Social Care and Health,ASCH,Third Party Payments,EGA,07/05/2013,12-10208,1636,Silverdale Residential Home
Nottinghamshire County Council,1111/1001,Adult Social Care and Health,ASCH,Third Party Payments,EGA,07/05/2013,12-10209,1636,Silverdale Residential Home
Nottinghamshire County Council,1111/1001,Adult Social Care and Health,ASCH,Third Party Payments,EGA,07/05/2013,12-10210,4342,St Saviours Care Home
Nottinghamshire County Council,1111/1001,Adult Social Care and Health,ASCH,Third Party Payments,EGA,07/05/2013,12-10211,6215.71,St Saviours Care Home
Nottinghamshire County Council,1111/1001,Adult Social Care and Health,ASCH,Third Party Payments,EGA,07/05/2013,12-10212,6930,The Shires Care Centre
Nottinghamshire County Council,1111/1001,Adult Social Care and Health,ASCH,Third Party Payments,EGA,07/05/2013,12-10213,1010.29,Loxley Lodge Residential Home
Nottinghamshire County Council,1111/1001,Adult Social Care and Health,ASCH,Third Party Payments,EGA,07/05/2013,12-10214,3741.86,Cherry Holt Care Home
Nottinghamshire County Council,1111/1001,Adult Social Care and Health,ASCH,Third Party Payments,EGA,07/05/2013,12-10215,2842.29,Cherry Holt Care Home
Nottinghamshire County Council,1111/1001,Adult Social Care and Health,ASCH,Third Party Payments,EGA,07/05/2013,12-10216,4985.2,Willow Garth Care Home
Nottinghamshire County Council,1111/1001,Adult Social Care and Health,ASCH,Third Party Payments,EGA,07/05/2013,12-10217,4985.2,Willow Garth Care Home
Nottinghamshire County Council,1111/1001,Adult Social Care and Health,ASCH,Third Party Payments,EGA,07/05/2013,12-10218,5200,Willow Garth Care Home
Nottinghamshire County Council,1111/1001,Adult Social Care and Health,ASCH,Third Party Payments,EGA,07/05/2013,12-10219,2640,The Oaklands Residential Home
Nottinghamshire County Council,1111/1001,Adult Social Care and Health,ASCH,Third Party Payments,EGA,07/05/2013,12-10220,3448.48,Leonard Cheshire Care Home
Nottinghamshire County Council,1111/1001,Adult Social Care and Health,ASCH,Third Party Payments,EGA,07/05/2013,12-10221,3662.56,Leonard Cheshire Care Home
Nottinghamshire County Council,1111/1001,Adult Social Care and Health,ASCH,Third Party Payments,EGA,07/05/2013,12-10222,2860,West Lodge Nursing Home
Nottinghamshire County Council,1111/1001,Adult Social Care and Health,ASCH,Third Party Payments,EGA,07/05/2013,12-10223,1146,Carlton House Nursing Home
Nottinghamshire County Council,1111/1001,Adult Social Care and Health,ASCH,Third Party Payments,EGA,07/05/2013,12-10224,884,Southwell Court Care Home
Nottinghamshire County Council,1111/1001,Adult Social Care and Health,ASCH,Third Party Payments,EGA,07/05/2013,12-10225,3028.29,Clipstone Hall Care Home
Nottinghamshire County Council,1111/1001,Adult Social Care and Health,ASCH,Third Party Payments,EGA,07/05/2013,12-10226,3904.29,Clipstone Hall Care Home
Nottinghamshire County Council,1111/1001,Adult Social Care and Health,ASCH,Third Party Payments,EGA,07/05/2013,12-10227,876,Clipstone Hall Care Home
Nottinghamshire County Council,1111/1001,Adult Social Care and Health,ASCH,Third Party Payments,EGA,07/05/2013,12-10228,1270.29,Kestrel Lodge House
Nottinghamshire County Council,1111/1001,Adult Social Care and Health,ASCH,Third Party Payments,EGA,07/05/2013,12-10229,3975,Portland Residential College
Nottinghamshire County Council,1111/1001,Adult Social Care and Health,ASCH,Third Party Payments,EGA,07/05/2013,12-10230,2000,The Hall (nr Pickering)
Nottinghamshire County Council,1111/1001,Adult Social Care and Health,ASCH,Third Party Payments,EGA,07/05/2013,12-10231,1616,Braywood Gardens
Nottinghamshire County Council,1111/1001,Adult Social Care and Health,ASCH,Third Party Payments,EGA,07/05/2013,12-10232,988,Braywood Gardens
Nottinghamshire County Council,1111/1001,Adult Social Care and Health,ASCH,Third Party Payments,EGA,07/05/2013,12-10233,2613,Braywood Gardens
Nottinghamshire County Council,1111/1001,Adult Social Care and Health,ASCH,Third Party Payments,EGA,07/05/2013,12-10234,564.57,Bramwell
Nottinghamshire County Council,1111/1001,Adult Social Care and Health,ASCH,Third Party Payments,EGA,07/05/2013,12-10235,1764.29,Bramwell
Nottinghamshire County Council,1111/1001,Adult Social Care and Health,ASCH,Third Party Payments,EGA,07/05/2013,12-10236,1912.86,Bramwell
Nottinghamshire County Council,1111/1001,Adult Social Care and Health,ASCH,Third Party Payments,EGA,07/05/2013,12-10237,2060,Maun View
Nottinghamshire County Council,1111/1001,Adult Social Care and Health,ASCH,Third Party Payments,EGA,07/05/2013,12-10238,1976,Maun View
Nottinghamshire County Council,1111/1001,Adult Social Care and Health,ASCH,Third Party Payments,EGA,07/05/2013,12-10239,2280.71,Westwood
Nottinghamshire County Council,1111/1001,Adult Social Care and Health,ASCH,Third Party Payments,EGA,07/05/2013,12-10240,1782.86,Westwood
Nottinghamshire County Council,1111/1001,Adult Social Care and Health,ASCH,Third Party Payments,EGA,07/05/2013,12-10241,2005.71,Westwood
Nottinghamshire County Council,1111/1001,Adult Social Care and Health,ASCH,Third Party Payments,EGA,07/05/2013,12-10242,1188.57,Westwood
Nottinghamshire County Council,1111/1001,Adult Social Care and Health,ASCH,Third Party Payments,EGA,07/05/2013,12-10243,1337.14,Westwood
Nottinghamshire County Council,1111/1001,Adult Social Care and Health,ASCH,Third Party Payments,EGA,07/05/2013,12-10244,2525.71,Westwood
Nottinghamshire County Council,1111/1001,Adult Social Care and Health,ASCH,Third Party Payments,EGA,07/05/2013,12-10245,2302.86,Westwood
Nottinghamshire County Council,1111/1001,Adult Social Care and Health,ASCH,Third Party Payments,EGA,07/05/2013,12-10246,1485.71,Westwood
Nottinghamshire County Council,1111/1001,Adult Social Care and Health,ASCH,Third Party Payments,EGA,07/05/2013,12-10247,1857.14,Westwood
Nottinghamshire County Council,1111/1001,Adult Social Care and Health,ASCH,Third Party Payments,EGA,07/05/2013,12-10248,3002,Westwood
Nottinghamshire County Council,1111/1001,Adult Social Care and Health,ASCH,Third Party Payments,EGA,07/05/2013,12-10249,3678.57,Westwood
Nottinghamshire County Council,1111/1001,Adult Social Care and Health,ASCH,Third Party Payments,EGA,07/05/2013,12-10250,965.71,Westwood
Nottinghamshire County Council,1111/1001,Adult Social Care and Health,ASCH,Third Party Payments,EGA,07/05/2013,12-10251,1931.43,Westwood
Nottinghamshire County Council,1111/1001,Adult Social Care and Health,ASCH,Third Party Payments,EGA,07/05/2013,12-10252,668.57,Westwood
Nottinghamshire County Council,1111/1001,Adult Social Care and Health,ASCH,Third Party Payments,EGA,07/05/2013,12-10253,1040,Westwood
Nottinghamshire County Council,1111/1001,Adult Social Care and Health,ASCH,Third Party Payments,EGA,07/05/2013,12-10254,2600,Westwood
Nottinghamshire County Council,1111/1001,Adult Social Care and Health,ASCH,Third Party Payments,EGA,07/05/2013,12-10255,2600,Westwood
Nottinghamshire County Council,1111/1001,Adult Social Care and Health,ASCH,Third Party Payments,EGA,07/05/2013,12-10256,1411.43,Westwood
Nottinghamshire County Council,1111/1001,Adult Social Care and Health,ASCH,Third Party Payments,EGA,07/05/2013,12-10257,520,Westwood
Nottinghamshire County Council,1111/1001,Adult Social Care and Health,ASCH,Third Party Payments,EGA,07/05/2013,12-10258,1273,Westwood
Nottinghamshire County Council,1111/1001,Adult Social Care and Health,ASCH,Third Party Payments,EGA,07/05/2013,12-10259,515,Leawood Manor
Nottinghamshire County Council,1111/1001,Adult Social Care and Health,ASCH,Third Party Payments,EGA,07/05/2013,12-10260,6957.86,Leawood Manor
Nottinghamshire County Council,1111/1001,Adult Social Care and Health,ASCH,Third Party Payments,EGA,07/05/2013,12-10261,9944,The Quays
Nottinghamshire County Council,1111/1001,Adult Social Care and Health,ASCH,Third Party Payments,EGA,07/05/2013,12-10262,13558.72,The Quays
Nottinghamshire County Council,1111/1001,Adult Social Care and Health,ASCH,Third Party Payments,EGA,07/05/2013,12-10263,3964.29,Tabley House Care Home
Nottinghamshire County Council,1111/1001,Adult Social Care and Health,ASCH,Third Party Payments,EGA,07/05/2013,12-10264,9660,Pendine Park Nursing Home
Nottinghamshire County Council,1111/1001,Adult Social Care and Health,ASCH,Third Party Payments,EGA,07/05/2013,12-10265,969.43,Jubilee Court Nursing Home
Nottinghamshire County Council,1111/1001,Adult Social Care and Health,ASCH,Third Party Payments,EGA,07/05/2013,12-10266,1728,Little Brocklesby House Ltd
Nottinghamshire County Council,1111/1001,Adult Social Care and Health,ASCH,Third Party Payments,EGA,07/05/2013,12-10275,1976,Maun View
Nottinghamshire County Council,1111/1001,Adult Social Care and Health,ASCH,Third Party Payments,EGA,07/05/2013,12-10276,1976,Maun View
Nottinghamshire County Council,1111/1001,Adult Social Care and Health,ASCH,Third Party Payments,EGA,07/05/2013,12-10277,1976,Maun View
Nottinghamshire County Council,1111/1001,Adult Social Care and Health,ASCH,Third Party Payments,EGA,09/05/2013,12-10282,5006.91,Westminster Homecare Ltd
Nottinghamshire County Council,1111/1001,Adult Social Care and Health,ASCH,Third Party Payments,EGA,09/05/2013,12-10283,857.46,Premier Nursing Agency Ltd
Nottinghamshire County Council,1111/1001,Adult Social Care and Health,ASCH,Third Party Payments,EGA,09/05/2013,12-10284,10565.2,Care Uk Homecare Ltd
Nottinghamshire County Council,1111/1001,Adult Social Care and Health,ASCH,Third Party Payments,EGA,09/05/2013,12-10285,1260.77,North Notts Crossroads Care
Nottinghamshire County Council,1111/1001,Adult Social Care and Health,ASCH,Third Party Payments,EGA,09/05/2013,12-10286,1404.65,Care Uk Homecare Ltd
Nottinghamshire County Council,1111/1001,Adult Social Care and Health,ASCH,Third Party Payments,EGA,09/05/2013,12-10287,615.89,Medico Nursing & Homecare
Nottinghamshire County Council,1111/1001,Adult Social Care and Health,ASCH,Third Party Payments,EGA,09/05/2013,12-10288,2877.98,Medico Nursing & Homecare
Nottinghamshire County Council,1111/1001,Adult Social Care and Health,ASCH,Third Party Payments,EGA,09/05/2013,12-10289,2527.26,Always There Homecare Ltd
Nottinghamshire County Council,1111/1001,Adult Social Care and Health,ASCH,Third Party Payments,EGA,09/05/2013,12-10290,742.88,Housing 21
Nottinghamshire County Council,1111/1001,Adult Social Care and Health,ASCH,Third Party Payments,EGA,09/05/2013,12-10291,1091.19,Medico Nursing & Homecare
Nottinghamshire County Council,1111/1001,Adult Social Care and Health,ASCH,Third Party Payments,EGA,09/05/2013,12-10292,5582.07,Direct Health (uk) Ltd
Nottinghamshire County Council,1111/1001,Adult Social Care and Health,ASCH,Third Party Payments,EGA,09/05/2013,12-10293,1789.24,Crossroads Care East Midlands
Nottinghamshire County Council,1111/1001,Adult Social Care and Health,ASCH,Third Party Payments,EGA,09/05/2013,12-10294,3879.79,Priority Homecare Ltd
Nottinghamshire County Council,1111/1001,Adult Social Care and Health,ASCH,Third Party Payments,EGA,09/05/2013,12-10295,4578.84,Notts Homecare Ltd
Nottinghamshire County Council,1111/1001,Adult Social Care and Health,ASCH,Third Party Payments,EGA,09/05/2013,12-10296,554.45,Always There Homecare Ltd
Nottinghamshire County Council,1111/1001,Adult Social Care and Health,ASCH,Third Party Payments,EGA,09/05/2013,12-10297,2013,Home Care Solution Ltd
Nottinghamshire County Council,1111/1001,Adult Social Care and Health,ASCH,Third Party Payments,EGA,09/05/2013,12-10298,8171.58,North Notts Crossroads Care
Nottinghamshire County Council,1111/1001,Adult Social Care and Health,ASCH,Third Party Payments,EGA,09/05/2013,12-10299,575.56,Premier Nursing Agency Ltd
Nottinghamshire County Council,1111/1001,Adult Social Care and Health,ASCH,Third Party Payments,EGA,09/05/2013,12-10300,2733,Medico Nursing & Homecare
Nottinghamshire County Council,1111/1001,Adult Social Care and Health,ASCH,Third Party Payments,EGA,09/05/2013,12-10301,1676.77,Sterling Homecare Ltd
Nottinghamshire County Council,1111/1001,Adult Social Care and Health,ASCH,Third Party Payments,EGA,09/05/2013,12-10302,8583,Leda Homecare Ltd
Nottinghamshire County Council,1111/1001,Adult Social Care and Health,ASCH,Third Party Payments,EGA,09/05/2013,12-10303,1861.2,Always There Homecare Ltd
Nottinghamshire County Council,1111/1001,Adult Social Care and Health,ASCH,Third Party Payments,EGA,09/05/2013,12-10304,4866.17,North Notts Crossroads Care
Nottinghamshire County Council,1111/1001,Adult Social Care and Health,ASCH,Third Party Payments,EGA,09/05/2013,12-10305,5444.03,Mears Care Ltd
